Workbook

Sheet cumulative_TE_counts
A1: Cfra | C1: =SUM(B:B) -> 11958 | F1: Sarc | H1: =SUM(G:G) -> 85556 | K1: Pgem | M1: =SUM(L:L) -> 83489 | P1: Awhi | R1: =SUM(Q:Q) -> 55501 | U1: Ihof | W1: =SUM(V:V) -> 31500 | Z1: Sros | AB1: =SUM(AA:AA) -> 70630 | AE1: Mbre | AG1: =SUM(AF:AF) -> 5210 | AJ1: Cowc | AL1: =SUM(AK:AK) -> 3360 | AO1: Nk52 | AQ1: =SUM(AP:AP) -> 2558 | AT1: Clim | AV1: =SUM(AU:AU) -> 1470
B2: Total fam | C2: =COUNTIF(D:D,"<101") -> 972 | G2: Total fam | H2: =COUNTIF(I:I,"<101") -> 3064 | L2: Total fam | M2: =COUNTIF(N:N,"<101") -> 3601 | Q2: Total fam | R2: =COUNTIF(S:S,"<101") -> 2950 | V2: Total fam | W2: =COUNTIF(X:X,"<101") -> 1728 | AA2: Total fam | AB2: =COUNTIF(AC:AC,"<101") -> 843 | AF2: Total fam | AG2: =COUNTIF(AH:AH,"<101") -> 548 | AK2: Total fam | AL2: =COUNTIF(AM:AM,"<101") -> 433 | AP2: Total fam | AQ2: =COUNTIF(AR:AR,"<101") -> 988 | AU2: Total fam | AV2: =COUNTIF(AW:AW,"<101") -> 611
A3: =C3/C$1 -> 0.0005017561465 | B3: P25 | C3: =COUNTIF(D:D,"<25") -> 6 | F3: =H3/H$1 -> 8.181775679e-05 | G3: P25 | H3: =COUNTIF(I:I,"<25") -> 7 | K3: =M3/M$1 -> 3.593287739e-05 | L3: P25 | M3: =COUNTIF(N:N,"<25") -> 3 | P3: =R3/R$1 -> 0.0001801769337 | Q3: P25 | R3: =COUNTIF(S:S,"<25") -> 10 | U3: =W3/W$1 -> 0.000126984127 | V3: P25 | W3: =COUNTIF(X:X,"<25") -> 4 | Z3: =AB3/AB$1 -> 4.247486904e-05 | AA3: P25 | AB3: =COUNTIF(AC:AC,"<25") -> 3 | AE3: =AG3/AG$1 -> 0.0003838771593 | AF3: P25 | AG3: =COUNTIF(AH:AH,"<25") -> 2 | AJ3: =AL3/AL$1 -> 0.0005952380952 | AK3: P25 | AL3: =COUNTIF(AM:AM,"<25") -> 2 | AO3: =AQ3/AQ$1 -> 0.01133698202 | AP3: P25 | AQ3: =COUNTIF(AR:AR,"<25") -> 29 | AT3: =AV3/AV$1 -> 0.009523809524 | AU3: P25 | AV3: =COUNTIF(AW:AW,"<25") -> 14
A4: =C4/C$1 -> 0.00209065061 | B4: P50 | C4: =COUNTIF(D:D,"<50") -> 25 | F4: =H4/H$1 -> 0.000409088784 | G4: P50 | H4: =COUNTIF(I:I,"<50") -> 35 | K4: =M4/M$1 -> 0.0001557091353 | L4: P50 | M4: =COUNTIF(N:N,"<50") -> 13 | P4: =R4/R$1 -> 0.0009008846687 | Q4: P50 | R4: =COUNTIF(S:S,"<50") -> 50 | U4: =W4/W$1 -> 0.0009206349206 | V4: P50 | W4: =COUNTIF(X:X,"<50") -> 29 | Z4: =AB4/AB$1 -> 0.0001982160555 | AA4: P50 | AB4: =COUNTIF(AC:AC,"<50") -> 14 | AE4: =AG4/AG$1 -> 0.003646833013 | AF4: P50 | AG4: =COUNTIF(AH:AH,"<50") -> 19 | AJ4: =AL4/AL$1 -> 0.002678571429 | AK4: P50 | AL4: =COUNTIF(AM:AM,"<50") -> 9 | AO4: =AQ4/AQ$1 -> 0.04769351056 | AP4: P50 | AQ4: =COUNTIF(AR:AR,"<50") -> 122 | AT4: =AV4/AV$1 -> 0.04421768707 | AU4: P50 | AV4: =COUNTIF(AW:AW,"<50") -> 65
A5: =C5/C$1 -> 0.006690081954 | B5: P75 | C5: =COUNTIF(D:D,"<75") -> 80 | F5: =H5/H$1 -> 0.001262331105 | G5: P75 | H5: =COUNTIF(I:I,"<75") -> 108 | K5: =M5/M$1 -> 0.0005150379092 | L5: P75 | M5: =COUNTIF(N:N,"<75") -> 43 | P5: =R5/R$1 -> 0.003387326354 | Q5: P75 | R5: =COUNTIF(S:S,"<75") -> 188 | U5: =W5/W$1 -> 0.00380952381 | V5: P75 | W5: =COUNTIF(X:X,"<75") -> 120 | Z5: =AB5/AB$1 -> 0.0005663315871 | AA5: P75 | AB5: =COUNTIF(AC:AC,"<75") -> 40 | AE5: =AG5/AG$1 -> 0.01497120921 | AF5: P75 | AG5: =COUNTIF(AH:AH,"<75") -> 78 | AJ5: =AL5/AL$1 -> 0.01428571429 | AK5: P75 | AL5: =COUNTIF(AM:AM,"<75") -> 48 | AO5: =AQ5/AQ$1 -> 0.1403440188 | AP5: P75 | AQ5: =COUNTIF(AR:AR,"<75") -> 359 | AT5: =AV5/AV$1 -> 0.1653061224 | AU5: P75 | AV5: =COUNTIF(AW:AW,"<75") -> 243
A6: Motif:Novosib-6_CR | B6: 825 | C6: =B6 -> 825 | D6: =C6/$C$1*100 -> 6.899147015 | F6: Motif:Daphne-18_HM | G6: 6782 | H6: =G6 -> 6782 | I6: =H6/$H$1*100 -> 7.926971808 | K6: Motif:Gypsy-24_DEl-I | L6: 8793 | M6: =L6 -> 8793 | N6: =M6/$M$1*100 -> 10.53192636 | P6: Motif:Gypsy-24_DEl-I | Q6: 2947 | R6: =Q6 -> 2947 | S6: =R6/$R$1*100 -> 5.309814238 | U6: Motif:CR1-79_HM | V6: 2030 | W6: =V6 -> 2030 | X6: =W6/$W$1*100 -> 6.444444444 | Z6: Motif:Novosib-6_CR | AA6: 7080 | AB6: =AA6 -> 7080 | AC6: =AB6/$AB$1*100 -> 10.02406909 | AE6: Motif:IMPB_01 | AF6: 613 | AG6: =AF6 -> 613 | AH6: =AG6/$AG$1*100 -> 11.76583493 | AJ6: Motif:RTAg4 | AK6: 358 | AL6: =AK6 -> 358 | AM6: =AL6/$AL$1*100 -> 10.6547619 | AO6: Motif:MINISAT2_CB | AP6: 54 | AQ6: =AP6 -> 54 | AR6: =AQ6/$AQ$1*100 -> 2.111024238 | AT6: Motif:DNA2-5_DR | AU6: 60 | AV6: =AU6 -> 60 | AW6: =AV6/$AV$1*100 -> 4.081632653
A7: Motif:Daphne-18_HM | B7: 487 | C7: =B7+C6 -> 1312 | D7: =C7/$C$1*100 -> 10.9717344 | F7: Motif:CR1-79_HM | G7: 5390 | H7: =G7+H6 -> 12172 | I7: =H7/$H$1*100 -> 14.22693908 | K7: Motif:R5-1_SM | L7: 7591 | M7: =L7+M6 -> 16384 | N7: =M7/$M$1*100 -> 19.6241421 | P7: Motif:R5-1_SM | Q7: 2790 | R7: =Q7+R6 -> 5737 | S7: =R7/$R$1*100 -> 10.33675069 | U7: Motif:Daphne-18_HM | V7: 2022 | W7: =V7+W6 -> 4052 | X7: =W7/$W$1*100 -> 12.86349206 | Z7: Motif:Sola1-1_AC | AA7: 4425 | AB7: =AA7+AB6 -> 11505 | AC7: =AB7/$AB$1*100 -> 16.28911228 | AE7: Motif:Cre-1_MB | AF7: 504 | AG7: =AF7+AG6 -> 1117 | AH7: =AG7/$AG$1*100 -> 21.43953935 | AJ7: Motif:Ag-Jock-1 | AK7: 250 | AL7: =AK7+AL6 -> 608 | AM7: =AL7/$AL$1*100 -> 18.0952381 | AO7: Motif:tRNA-3_DRe | AP7: 38 | AQ7: =AP7+AQ6 -> 92 | AR7: =AQ7/$AQ$1*100 -> 3.596559812 | AT7: Motif:IMPB_01 | AU7: 46 | AV7: =AU7+AV6 -> 106 | AW7: =AV7/$AV$1*100 -> 7.210884354
A8: Motif:Sola1-1_AC | B8: 452 | C8: =B8+C7 -> 1764 | D8: =C8/$C$1*100 -> 14.75163071 | F8: Motif:Novosib-6_CR | G8: 2319 | H8: =G8+H7 -> 14491 | I8: =H8/$H$1*100 -> 16.93744448 | K8: Motif:Coprina_Cc1 | L8: 3734 | M8: =L8+M7 -> 20118 | N8: =M8/$M$1*100 -> 24.09658757 | P8: Motif:Penelope-13_HM | Q8: 1506 | R8: =Q8+R7 -> 7243 | S8: =R8/$R$1*100 -> 13.05021531 | U8: Motif:Penelope-1_DR | V8: 1490 | W8: =V8+W7 -> 5542 | X8: =W8/$W$1*100 -> 17.59365079 | Z8: Motif:REP-4_PBa | AA8: 3589 | AB8: =AA8+AB7 -> 15094 | AC8: =AB8/$AB$1*100 -> 21.37052244 | AE8: Motif:Mbcv_LTR | AF8: 275 | AG8: =AF8+AG7 -> 1392 | AH8: =AG8/$AG$1*100 -> 26.71785029 | AJ8: Motif:hAT-N4_ALy | AK8: 246 | AL8: =AK8+AL7 -> 854 | AM8: =AL8/$AL$1*100 -> 25.41666667 | AO8: Motif:EnSpm-1_HV | AP8: 38 | AQ8: =AP8+AQ7 -> 130 | AR8: =AQ8/$AQ$1*100 -> 5.082095387 | AT8: Motif:RTAg4 | AU8: 38 | AV8: =AU8+AV7 -> 144 | AW8: =AV8/$AV$1*100 -> 9.795918367
A9: Motif:CR1-79_HM | B9: 416 | C9: =B9+C8 -> 2180 | D9: =C9/$C$1*100 -> 18.23047332 | F9: Motif:Penelope-1_DR | G9: 1653 | H9: =G9+H8 -> 16144 | I9: =H9/$H$1*100 -> 18.86951237 | K9: Motif:EnSpm1_SB | L9: 3520 | M9: =L9+M8 -> 23638 | N9: =M9/$M$1*100 -> 28.31271185 | P9: Motif:EnSpm-34_SBi | Q9: 1160 | R9: =Q9+R8 -> 8403 | S9: =R9/$R$1*100 -> 15.14026774 | U9: Motif:Polinton-1N1_DR | V9: 1476 | W9: =V9+W8 -> 7018 | X9: =W9/$W$1*100 -> 22.27936508 | Z9: Motif:hAT-N144_DR | AA9: 3444 | AB9: =AA9+AB8 -> 18538 | AC9: =AB9/$AB$1*100 -> 26.24663741 | AE9: Motif:Ginger2-1_LS | AF9: 169 | AG9: =AF9+AG8 -> 1561 | AH9: =AG9/$AG$1*100 -> 29.96161228 | AJ9: Motif:TART_DV | AK9: 186 | AL9: =AK9+AL8 -> 1040 | AM9: =AL9/$AL$1*100 -> 30.95238095 | AO9: Motif:tRNA-Gly-GGA | AP9: 32 | AQ9: =AP9+AQ8 -> 162 | AR9: =AQ9/$AQ$1*100 -> 6.333072713 | AT9: Motif:hAT-N4_ALy | AU9: 32 | AV9: =AU9+AV8 -> 176 | AW9: =AV9/$AV$1*100 -> 11.97278912
A10: Motif:Sola3-1_BF | B10: 354 | C10: =B10+C9 -> 2534 | D10: =C10/$C$1*100 -> 21.19083459 | F10: Motif:MuDr-3_HM | G10: 1585 | H10: =G10+H9 -> 17729 | I10: =H10/$H$1*100 -> 20.72210014 | K10: Motif:EnSpm-34_SBi | L10: 2990 | M10: =L10+M9 -> 26628 | N10: =M10/$M$1*100 -> 31.89402197 | P10: Motif:IMPB_01 | Q10: 1051 | R10: =Q10+R9 -> 9454 | S10: =R10/$R$1*100 -> 17.03392732 | U10: Motif:DNA9-3_DR | V10: 890 | W10: =V10+W9 -> 7908 | X10: =W10/$W$1*100 -> 25.1047619 | Z10: Motif:Sola3-1_BF | AA10: 2487 | AB10: =AA10+AB9 -> 21025 | AC10: =AB10/$AB$1*100 -> 29.76780405 | AE10: Motif:DNA2-5_DR | AF10: 109 | AG10: =AF10+AG9 -> 1670 | AH10: =AG10/$AG$1*100 -> 32.0537428 | AJ10: Motif:Tx1-3_PM | AK10: 156 | AL10: =AK10+AL9 -> 1196 | AM10: =AL10/$AL$1*100 -> 35.5952381 | AO10: Motif:tRNA-Asp-GAY | AP10: 31 | AQ10: =AP10+AQ9 -> 193 | AR10: =AQ10/$AQ$1*100 -> 7.544956998 | AT10: Motif:Ginger1-1_AC | AU10: 24 | AV10: =AU10+AV9 -> 200 | AW10: =AV10/$AV$1*100 -> 13.60544218
A11: Motif:hAT-N144_DR | B11: 298 | C11: =B11+C10 -> 2832 | D11: =C11/$C$1*100 -> 23.68289012 | F11: Motif:DNA8-25_DR | G11: 1541 | H11: =G11+H10 -> 19270 | I11: =H11/$H$1*100 -> 22.52325962 | K11: Motif:L1-1_STu | L11: 2369 | M11: =L11+M10 -> 28997 | N11: =M11/$M$1*100 -> 34.73152152 | P11: Motif:CR1-42_HM | Q11: 974 | R11: =Q11+R10 -> 10428 | S11: =R11/$R$1*100 -> 18.78885065 | U11: Motif:Gypsy68-I_AG | V11: 616 | W11: =V11+W10 -> 8524 | X11: =W11/$W$1*100 -> 27.06031746 | Z11: Motif:ERV1-N3-I_DR | AA11: 2161 | AB11: =AA11+AB10 -> 23186 | AC11: =AB11/$AB$1*100 -> 32.82741045 | AE11: Motif:Gypsy-53_PM-LTR | AF11: 92 | AG11: =AF11+AG10 -> 1762 | AH11: =AG11/$AG$1*100 -> 33.81957774 | AJ11: Motif:Jockey-3_DGri | AK11: 156 | AL11: =AK11+AL10 -> 1352 | AM11: =AL11/$AL$1*100 -> 40.23809524 | AO11: Motif:Gypsy-22-LTR_DR | AP11: 30 | AQ11: =AP11+AQ10 -> 223 | AR11: =AQ11/$AQ$1*100 -> 8.717748241 | AT11: Motif:EnSpm-9_DR | AU11: 23 | AV11: =AU11+AV10 -> 223 | AW11: =AV11/$AV$1*100 -> 15.17006803
A12: Motif:ERV1-N3-I_DR | B12: 289 | C12: =B12+C11 -> 3121 | D12: =C12/$C$1*100 -> 26.09968222 | F12: Motif:hAT-N144_DR | G12: 1516 | H12: =G12+H11 -> 20786 | I12: =H12/$H$1*100 -> 24.29519847 | K12: Motif:GLT2_SM | L12: 2260 | M12: =L12+M11 -> 31257 | N12: =M12/$M$1*100 -> 37.43846495 | P12: Motif:CR1-79_HM | Q12: 937 | R12: =Q12+R11 -> 11365 | S12: =R12/$R$1*100 -> 20.47710852 | U12: Motif:Gypsy-24_DEl-I | V12: 557 | W12: =V12+W11 -> 9081 | X12: =W12/$W$1*100 -> 28.82857143 | Z12: Motif:Mariner-62_HSal | AA12: 2098 | AB12: =AA12+AB11 -> 25284 | AC12: =AB12/$AB$1*100 -> 35.79781962 | AE12: Motif:Nematis_Cr | AF12: 83 | AG12: =AF12+AG11 -> 1845 | AH12: =AG12/$AG$1*100 -> 35.41266795 | AJ12: Motif:CACTA-1_CapOwc | AK12: 120 | AL12: =AK12+AL11 -> 1472 | AM12: =AL12/$AL$1*100 -> 43.80952381 | AO12: Motif:Baggins1_Cis | AP12: 28 | AQ12: =AP12+AQ11 -> 251 | AR12: =AQ12/$AQ$1*100 -> 9.812353401 | AT12: Motif:DNA-N4_DR | AU12: 22 | AV12: =AU12+AV11 -> 245 | AW12: =AV12/$AV$1*100 -> 16.66666667
A13: Motif:REP-4_PBa | B13: 287 | C13: =B13+C12 -> 3408 | D13: =C13/$C$1*100 -> 28.49974912 | F13: Motif:EnSpm-7_HM | G13: 1290 | H13: =G13+H12 -> 22076 | I13: =H13/$H$1*100 -> 25.80298284 | K13: Motif:LIN4b_SM | L13: 1987 | M13: =L13+M12 -> 33244 | N13: =M13/$M$1*100 -> 39.81841919 | P13: Motif:Daphne-18_HM | Q13: 847 | R13: =Q13+R12 -> 12212 | S13: =R13/$R$1*100 -> 22.00320715 | U13: Motif:hAT-N144_DR | V13: 551 | W13: =V13+W12 -> 9632 | X13: =W13/$W$1*100 -> 30.57777778 | Z13: Motif:Ginger1-1_AC | AA13: 1943 | AB13: =AA13+AB12 -> 27227 | AC13: =AB13/$AB$1*100 -> 38.54877531 | AE13: Motif:Kolobok-3_Aplcal | AF13: 81 | AG13: =AF13+AG12 -> 1926 | AH13: =AG13/$AG$1*100 -> 36.96737044 | AJ13: Motif:Copia-7_ES-I | AK13: 100 | AL13: =AK13+AL12 -> 1572 | AM13: =AL13/$AL$1*100 -> 46.78571429 | AO13: Motif:tRNA-Gly-GGY | AP13: 27 | AQ13: =AP13+AQ12 -> 278 | AR13: =AQ13/$AQ$1*100 -> 10.86786552 | AT13: Motif:DNA8-5_DR | AU13: 22 | AV13: =AU13+AV12 -> 267 | AW13: =AV13/$AV$1*100 -> 18.16326531
A14: Motif:ENSPM-6_DR | B14: 203 | C14: =B14+C13 -> 3611 | D14: =C14/$C$1*100 -> 30.19735742 | F14: Motif:Sola1-1_AC | G14: 1140 | H14: =G14+H13 -> 23216 | I14: =H14/$H$1*100 -> 27.13544345 | K14: Motif:EnSpm-5_HM | L14: 1848 | M14: =L14+M13 -> 35092 | N14: =M14/$M$1*100 -> 42.03188444 | P14: Motif:Ginger1-1_AC | Q14: 753 | R14: =Q14+R13 -> 12965 | S14: =R14/$R$1*100 -> 23.35993946 | U14: Motif:Neptune_Hyd | V14: 527 | W14: =V14+W13 -> 10159 | X14: =W14/$W$1*100 -> 32.25079365 | Z14: Motif:Kolobok-3_Aplcal | AA14: 1392 | AB14: =AA14+AB13 -> 28619 | AC14: =AB14/$AB$1*100 -> 40.51960923 | AE14: Motif:DNA8-5_DR | AF14: 79 | AG14: =AF14+AG13 -> 2005 | AH14: =AG14/$AG$1*100 -> 38.48368522 | AJ14: Motif:RT1 | AK14: 68 | AL14: =AK14+AL13 -> 1640 | AM14: =AL14/$AL$1*100 -> 48.80952381 | AO14: Motif:tRNA-Val-GTY | AP14: 25 | AQ14: =AP14+AQ13 -> 303 | AR14: =AQ14/$AQ$1*100 -> 11.84519156 | AT14: Motif:Ag-Jock-1 | AU14: 22 | AV14: =AU14+AV13 -> 289 | AW14: =AV14/$AV$1*100 -> 19.65986395
A15: Motif:Kolobok-3_Aplcal | B15: 202 | C15: =B15+C14 -> 3813 | D15: =C15/$C$1*100 -> 31.88660311 | F15: Motif:Neptune_Hyd | G15: 1099 | H15: =G15+H14 -> 24315 | I15: =H15/$H$1*100 -> 28.41998223 | K15: Motif:Penelope-13_HM | L15: 1835 | M15: =L15+M14 -> 36927 | N15: =M15/$M$1*100 -> 44.22977877 | P15: Motif:LIN4b_SM | Q15: 745 | R15: =Q15+R14 -> 13710 | S15: =R15/$R$1*100 -> 24.70225762 | U15: Motif:ERV1-N6-I_DR | V15: 492 | W15: =V15+W14 -> 10651 | X15: =W15/$W$1*100 -> 33.81269841 | Z15: Motif:Mariner-N13_HSal | AA15: 1347 | AB15: =AA15+AB14 -> 29966 | AC15: =AB15/$AB$1*100 -> 42.42673085 | AE15: Motif:Tx1-1_CGi | AF15: 74 | AG15: =AF15+AG14 -> 2079 | AH15: =AG15/$AG$1*100 -> 39.90403071 | AJ15: Motif:Gypsy-1_AC-I | AK15: 65 | AL15: =AK15+AL14 -> 1705 | AM15: =AL15/$AL$1*100 -> 50.74404762 | AO15: Motif:tRNA-Pro-CCY | AP15: 23 | AQ15: =AP15+AQ14 -> 326 | AR15: =AQ15/$AQ$1*100 -> 12.74433151 | AT15: Motif:Polinton-8_NVi | AU15: 19 | AV15: =AU15+AV14 -> 308 | AW15: =AV15/$AV$1*100 -> 20.95238095
A16: Motif:Polinton-1_DR | B16: 188 | C16: =B16+C15 -> 4001 | D16: =C16/$C$1*100 -> 33.45877237 | F16: Motif:DNA9-3_DR | G16: 1082 | H16: =G16+H15 -> 25397 | I16: =H16/$H$1*100 -> 29.68465099 | K16: Motif:BMSAT1 | L16: 1644 | M16: =L16+M15 -> 38571 | N16: =M16/$M$1*100 -> 46.19890045 | P16: Motif:hAT-40_HM | Q16: 733 | R16: =Q16+R15 -> 14443 | S16: =R16/$R$1*100 -> 26.02295454 | U16: Motif:EnSpm-N13_DR | V16: 489 | W16: =V16+W15 -> 11140 | X16: =W16/$W$1*100 -> 35.36507937 | Z16: Motif:Polinton-1_DR | AA16: 1345 | AB16: =AA16+AB15 -> 31311 | AC16: =AB16/$AB$1*100 -> 44.33102081 | AE16: Motif:EnSpm-9_DR | AF16: 68 | AG16: =AF16+AG15 -> 2147 | AH16: =AG16/$AG$1*100 -> 41.20921305 | AJ16: Motif:Gypsy8-I_Dpse | AK16: 58 | AL16: =AK16+AL15 -> 1763 | AM16: =AL16/$AL$1*100 -> 52.4702381 | AO16: Motif:hAT6-2N1_SP | AP16: 23 | AQ16: =AP16+AQ15 -> 349 | AR16: =AQ16/$AQ$1*100 -> 13.64347146 | AT16: Motif:Sola3-1_BF | AU16: 16 | AV16: =AU16+AV15 -> 324 | AW16: =AV16/$AV$1*100 -> 22.04081633
A17: Motif:Mariner-62_HSal | B17: 167 | C17: =B17+C16 -> 4168 | D17: =C17/$C$1*100 -> 34.85532698 | F17: Motif:Sola3-1_BF | G17: 1035 | H17: =G17+H16 -> 26432 | I17: =H17/$H$1*100 -> 30.89438496 | K17: Motif:L1-11_DR | L17: 1539 | M17: =L17+M16 -> 40110 | N17: =M17/$M$1*100 -> 48.04225706 | P17: Motif:GLT2_SM | Q17: 714 | R17: =Q17+R16 -> 15157 | S17: =R17/$R$1*100 -> 27.30941785 | U17: Motif:L1-53_DR | V17: 403 | W17: =V17+W16 -> 11543 | X17: =W17/$W$1*100 -> 36.64444444 | Z17: Motif:Mariner-N5_HSal | AA17: 1333 | AB17: =AA17+AB16 -> 32644 | AC17: =AB17/$AB$1*100 -> 46.21832083 | AE17: Motif:hAT-N4_ALy | AF17: 67 | AG17: =AF17+AG16 -> 2214 | AH17: =AG17/$AG$1*100 -> 42.49520154 | AJ17: Motif:Jockey-6_DK | AK17: 51 | AL17: =AK17+AL16 -> 1814 | AM17: =AL17/$AL$1*100 -> 53.98809524 | AO17: Motif:5S | AP17: 23 | AQ17: =AP17+AQ16 -> 372 | AR17: =AQ17/$AQ$1*100 -> 14.54261142 | AT17: Motif:REP-4_PBa | AU17: 16 | AV17: =AU17+AV16 -> 340 | AW17: =AV17/$AV$1*100 -> 23.1292517
A18: Motif:Penelope-1_DR | B18: 161 | C18: =B18+C17 -> 4329 | D18: =C18/$C$1*100 -> 36.20170597 | F18: Motif:EnSpm-N13_DR | G18: 977 | H18: =G18+H17 -> 27409 | I18: =H18/$H$1*100 -> 32.03632708 | K18: Motif:CR1-42_HM | L18: 1395 | M18: =L18+M17 -> 41505 | N18: =M18/$M$1*100 -> 49.71313586 | P18: Motif:DNA9-3_DR | Q18: 678 | R18: =Q18+R17 -> 15835 | S18: =R18/$R$1*100 -> 28.53101746 | U18: Motif:R5-1_SM | V18: 357 | W18: =V18+W17 -> 11900 | X18: =W18/$W$1*100 -> 37.77777778 | Z18: Motif:ISL2EU-3N1_CFl | AA18: 1273 | AB18: =AA18+AB17 -> 33917 | AC18: =AB18/$AB$1*100 -> 48.0206711 | AE18: Motif:Mbcv_I-int | AF18: 63 | AG18: =AF18+AG17 -> 2277 | AH18: =AG18/$AG$1*100 -> 43.70441459 | AJ18: Motif:MULE-1_CapOwc | AK18: 46 | AL18: =AK18+AL17 -> 1860 | AM18: =AL18/$AL$1*100 -> 55.35714286 | AO18: Motif:TguLTRK9a | AP18: 22 | AQ18: =AP18+AQ17 -> 394 | AR18: =AQ18/$AQ$1*100 -> 15.40265833 | AT18: Motif:TART_DV | AU18: 14 | AV18: =AU18+AV17 -> 354 | AW18: =AV18/$AV$1*100 -> 24.08163265
A19: Motif:Homo6 | B19: 159 | C19: =B19+C18 -> 4488 | D19: =C19/$C$1*100 -> 37.53135976 | F19: Motif:REP-4_PBa | G19: 968 | H19: =G19+H18 -> 28377 | I19: =H19/$H$1*100 -> 33.16774978 | K19: Motif:TART_DV | L19: 1337 | M19: =L19+M18 -> 42842 | N19: =M19/$M$1*100 -> 51.31454443 | P19: Motif:CR1-3_HM | Q19: 571 | R19: =Q19+R18 -> 16406 | S19: =R19/$R$1*100 -> 29.55982775 | U19: Motif:MuDr-3_HM | V19: 332 | W19: =V19+W18 -> 12232 | X19: =W19/$W$1*100 -> 38.83174603 | Z19: Motif:ENSPM-6_DR | AA19: 1266 | AB19: =AA19+AB18 -> 35183 | AC19: =AB19/$AB$1*100 -> 49.81311058 | AE19: Motif:hAT-N53_DR | AF19: 61 | AG19: =AF19+AG18 -> 2338 | AH19: =AG19/$AG$1*100 -> 44.87523992 | AJ19: Motif:Sola3-1_CapOwc | AK19: 44 | AL19: =AK19+AL18 -> 1904 | AM19: =AL19/$AL$1*100 -> 56.66666667 | AO19: Motif:Gypsy104-I_Dr | AP19: 22 | AQ19: =AP19+AQ18 -> 416 | AR19: =AQ19/$AQ$1*100 -> 16.26270524 | AT19: Motif:Tx1-3_PM | AU19: 13 | AV19: =AU19+AV18 -> 367 | AW19: =AV19/$AV$1*100 -> 24.96598639
A20: Motif:Neptune_Hyd | B20: 157 | C20: =B20+C19 -> 4645 | D20: =C20/$C$1*100 -> 38.84428834 | F20: Motif:Kolobok-N1_AEc | G20: 881 | H20: =G20+H19 -> 29258 | I20: =H20/$H$1*100 -> 34.19748469 | K20: Motif:Ginger2-2_NV | L20: 1326 | M20: =L20+M19 -> 44168 | N20: =M20/$M$1*100 -> 52.90277761 | P20: Motif:EnSpm-5_HM | Q20: 547 | R20: =Q20+R19 -> 16953 | S20: =R20/$R$1*100 -> 30.54539558 | U20: Motif:DNA8-25_DR | V20: 293 | W20: =V20+W19 -> 12525 | X20: =W20/$W$1*100 -> 39.76190476 | Z20: Motif:Helitron-2_DR | AA20: 1092 | AB20: =AA20+AB19 -> 36275 | AC20: =AB20/$AB$1*100 -> 51.35919581 | AE20: Motif:DNA-8-5_DR | AF20: 59 | AG20: =AF20+AG19 -> 2397 | AH20: =AG20/$AG$1*100 -> 46.00767754 | AJ20: Motif:Gypsy-50_GA-LTR | AK20: 40 | AL20: =AK20+AL19 -> 1944 | AM20: =AL20/$AL$1*100 -> 57.85714286 | AO20: Motif:tRNAGlu_CB | AP20: 21 | AQ20: =AP20+AQ19 -> 437 | AR20: =AQ20/$AQ$1*100 -> 17.08365911 | AT20: Motif:Jockey-3_DGri | AU20: 13 | AV20: =AU20+AV19 -> 380 | AW20: =AV20/$AV$1*100 -> 25.85034014
A21: Motif:Gypsy-31-LTR_DR | B21: 155 | C21: =B21+C20 -> 4800 | D21: =C21/$C$1*100 -> 40.14049172 | F21: Motif:Mariner-29_HM | G21: 845 | H21: =G21+H20 -> 30103 | I21: =H21/$H$1*100 -> 35.1851419 | K21: Motif:Ginger1-1_AC | L21: 1309 | M21: =L21+M20 -> 45477 | N21: =M21/$M$1*100 -> 54.47064883 | P21: Motif:Polinton1_SM | Q21: 534 | R21: =Q21+R20 -> 17487 | S21: =R21/$R$1*100 -> 31.5075404 | U21: Motif:Kolobok-4_DR | V21: 266 | W21: =V21+W20 -> 12791 | X21: =W21/$W$1*100 -> 40.60634921 | Z21: Motif:DNA-8-5_DR | AA21: 1053 | AB21: =AA21+AB20 -> 37328 | AC21: =AB21/$AB$1*100 -> 52.85006371 | AE21: Motif:Polinton-9_NVi | AF21: 53 | AG21: =AF21+AG20 -> 2450 | AH21: =AG21/$AG$1*100 -> 47.02495202 | AJ21: Motif:Polinton-2A_NV | AK21: 38 | AL21: =AK21+AL20 -> 1982 | AM21: =AL21/$AL$1*100 -> 58.98809524 | AO21: Motif:MuDR-N1_ZM | AP21: 17 | AQ21: =AP21+AQ20 -> 454 | AR21: =AQ21/$AQ$1*100 -> 17.74824081 | AT21: Motif:EnSpm-1_HV | AU21: 13 | AV21: =AU21+AV20 -> 393 | AW21: =AV21/$AV$1*100 -> 26.73469388
A22: Motif:Ginger1-1_AC | B22: 153 | C22: =B22+C21 -> 4953 | D22: =C22/$C$1*100 -> 41.41996989 | F22: Motif:Mariner-31_HM | G22: 808 | H22: =G22+H21 -> 30911 | I22: =H22/$H$1*100 -> 36.12955257 | K22: Motif:Gypsy8-SM_I-int | L22: 1282 | M22: =L22+M21 -> 46759 | N22: =M22/$M$1*100 -> 56.00618045 | P22: Motif:hAT-N144_DR | Q22: 533 | R22: =Q22+R21 -> 18020 | S22: =R22/$R$1*100 -> 32.46788346 | U22: Motif:EnSpm-22_HMa | V22: 255 | W22: =V22+W21 -> 13046 | X22: =W22/$W$1*100 -> 41.41587302 | Z22: Motif:Gypsy-31-LTR_DR | AA22: 998 | AB22: =AA22+AB21 -> 38326 | AC22: =AB22/$AB$1*100 -> 54.26306102 | AE22: Motif:REP-4_PBa | AF22: 47 | AG22: =AF22+AG21 -> 2497 | AH22: =AG22/$AG$1*100 -> 47.92706334 | AJ22: Motif:EnSpm1_SB | AK22: 32 | AL22: =AK22+AL21 -> 2014 | AM22: =AL22/$AL$1*100 -> 59.94047619 | AO22: Motif:Gypsy-16_OD-I | AP22: 17 | AQ22: =AP22+AQ21 -> 471 | AR22: =AQ22/$AQ$1*100 -> 18.41282252 | AT22: Motif:DNA2-10_CGi | AU22: 13 | AV22: =AU22+AV21 -> 406 | AW22: =AV22/$AV$1*100 -> 27.61904762
A23: Motif:hAT-2n1_DR | B23: 149 | C23: =B23+C22 -> 5102 | D23: =C23/$C$1*100 -> 42.66599766 | F23: Motif:EnSpm-22_HMa | G23: 786 | H23: =G23+H22 -> 31697 | I23: =H23/$H$1*100 -> 37.0482491 | K23: Motif:SAT-1_PGr | L23: 1133 | M23: =L23+M22 -> 47892 | N23: =M23/$M$1*100 -> 57.36324546 | P23: Motif:TART_DV | Q23: 532 | R23: =Q23+R22 -> 18552 | S23: =R23/$R$1*100 -> 33.42642475 | U23: Motif:SAT2_CM | V23: 250 | W23: =V23+W22 -> 13296 | X23: =W23/$W$1*100 -> 42.20952381 | Z23: Motif:EnSpm-7_DR | AA23: 941 | AB23: =AA23+AB22 -> 39267 | AC23: =AB23/$AB$1*100 -> 55.59535608 | AE23: Motif:Mariner-1_MBr | AF23: 46 | AG23: =AF23+AG22 -> 2543 | AH23: =AG23/$AG$1*100 -> 48.80998081 | AJ23: Motif:CACTA_LP | AK23: 30 | AL23: =AK23+AL22 -> 2044 | AM23: =AL23/$AL$1*100 -> 60.83333333 | AO23: Motif:Gypsy159-I_DR | AP23: 17 | AQ23: =AP23+AQ22 -> 488 | AR23: =AQ23/$AQ$1*100 -> 19.07740422 | AT23: Motif:Polinton-2A_NV | AU23: 10 | AV23: =AU23+AV22 -> 416 | AW23: =AV23/$AV$1*100 -> 28.29931973
A24: Motif:Gypsy68-I_AG | B24: 134 | C24: =B24+C23 -> 5236 | D24: =C24/$C$1*100 -> 43.78658639 | F24: Motif:hAT-2n1_DR | G24: 784 | H24: =G24+H23 -> 32481 | I24: =H24/$H$1*100 -> 37.96460798 | K24: Motif:Polinton-1_SM | L24: 1062 | M24: =L24+M23 -> 48954 | N24: =M24/$M$1*100 -> 58.63526932 | P24: Motif:Gypsy8-SM_I-int | Q24: 521 | R24: =Q24+R23 -> 19073 | S24: =R24/$R$1*100 -> 34.36514657 | U24: Motif:Helitron-N12_CGi | V24: 237 | W24: =V24+W23 -> 13533 | X24: =W24/$W$1*100 -> 42.96190476 | Z24: Motif:EnSpm-N14_DR | AA24: 932 | AB24: =AA24+AB23 -> 40199 | AC24: =AB24/$AB$1*100 -> 56.91490868 | AE24: Motif:hAT-N144_DR | AF24: 44 | AG24: =AF24+AG23 -> 2587 | AH24: =AG24/$AG$1*100 -> 49.65451056 | AJ24: Motif:ATCopia24I | AK24: 29 | AL24: =AK24+AL23 -> 2073 | AM24: =AL24/$AL$1*100 -> 61.69642857 | AO24: Motif:tRNA-1_DRe | AP24: 15 | AQ24: =AP24+AQ23 -> 503 | AR24: =AQ24/$AQ$1*100 -> 19.66379984 | AT24: Motif:hAT-N53_DR | AU24: 10 | AV24: =AU24+AV23 -> 426 | AW24: =AV24/$AV$1*100 -> 28.97959184
A25: Motif:Mariner-N13_HSal | B25: 128 | C25: =B25+C24 -> 5364 | D25: =C25/$C$1*100 -> 44.8569995 | F25: Motif:EnSpm-4_HM | G25: 766 | H25: =G25+H24 -> 33247 | I25: =H25/$H$1*100 -> 38.859928 | K25: Motif:hAT-40_HM | L25: 1046 | M25: =L25+M24 -> 50000 | N25: =M25/$M$1*100 -> 59.88812898 | P25: Motif:EnSpm1_SB | Q25: 489 | R25: =Q25+R24 -> 19562 | S25: =R25/$R$1*100 -> 35.24621178 | U25: Motif:EnSpm-7_HM | V25: 236 | W25: =V25+W24 -> 13769 | X25: =W25/$W$1*100 -> 43.71111111 | Z25: Motif:hAT-N4_ALy | AA25: 915 | AB25: =AA25+AB24 -> 41114 | AC25: =AB25/$AB$1*100 -> 58.21039218 | AE25: Motif:TART_DV | AF25: 42 | AG25: =AF25+AG24 -> 2629 | AH25: =AG25/$AG$1*100 -> 50.46065259 | AJ25: Motif:Mariner-1_MLP | AK25: 28 | AL25: =AK25+AL24 -> 2101 | AM25: =AL25/$AL$1*100 -> 62.5297619 | AO25: Motif:Polinton-2A_NV | AP25: 15 | AQ25: =AP25+AQ24 -> 518 | AR25: =AQ25/$AQ$1*100 -> 20.25019547 | AT25: Motif:hAT-310_Ami | AU25: 10 | AV25: =AU25+AV24 -> 436 | AW25: =AV25/$AV$1*100 -> 29.65986395
A26: Motif:ISL2EU-3N1_CFl | B26: 127 | C26: =B26+C25 -> 5491 | D26: =C26/$C$1*100 -> 45.91905001 | F26: Motif:Kolobok-4_DR | G26: 734 | H26: =G26+H25 -> 33981 | I26: =H26/$H$1*100 -> 39.71784562 | K26: Motif:Polinton1_SM | L26: 1038 | M26: =L26+M25 -> 51038 | N26: =M26/$M$1*100 -> 61.13140653 | P26: Motif:Polinton-1_SM | Q26: 464 | R26: =Q26+R25 -> 20026 | S26: =R26/$R$1*100 -> 36.08223275 | U26: Motif:Polinton-1_DR | V26: 235 | W26: =V26+W25 -> 14004 | X26: =W26/$W$1*100 -> 44.45714286 | Z26: Motif:EnSpm-9_DR | AA26: 784 | AB26: =AA26+AB25 -> 41898 | AC26: =AB26/$AB$1*100 -> 59.3204021 | AE26: Motif:Novosib-6_CR | AF26: 42 | AG26: =AF26+AG25 -> 2671 | AH26: =AG26/$AG$1*100 -> 51.26679463 | AJ26: Motif:Sat-1_CPa | AK26: 27 | AL26: =AK26+AL25 -> 2128 | AM26: =AL26/$AL$1*100 -> 63.33333333 | AO26: Motif:L1-44_XT | AP26: 15 | AQ26: =AP26+AQ25 -> 533 | AR26: =AQ26/$AQ$1*100 -> 20.83659109 | AT26: Motif:Harbinger2-2_ES | AU26: 10 | AV26: =AU26+AV25 -> 446 | AW26: =AV26/$AV$1*100 -> 30.34013605
A27: Motif:EnSpm1_HV | B27: 125 | C27: =B27+C26 -> 5616 | D27: =C27/$C$1*100 -> 46.96437531 | F27: Motif:EnSpm-1_HM | G27: 722 | H27: =G27+H26 -> 34703 | I27: =H27/$H$1*100 -> 40.56173734 | K27: Motif:Sat-1_CPa | L27: 1017 | M27: =L27+M26 -> 52055 | N27: =M27/$M$1*100 -> 62.34953108 | P27: Motif:Sat-1_CPa | Q27: 402 | R27: =Q27+R26 -> 20428 | S27: =R27/$R$1*100 -> 36.80654403 | U27: Motif:DNA-2-12_DR | V27: 227 | W27: =V27+W26 -> 14231 | X27: =W27/$W$1*100 -> 45.17777778 | Z27: Motif:Homo6 | AA27: 766 | AB27: =AA27+AB26 -> 42664 | AC27: =AB27/$AB$1*100 -> 60.40492708 | AE27: Motif:Copia17-NVi_I-int | AF27: 42 | AG27: =AF27+AG26 -> 2713 | AH27: =AG27/$AG$1*100 -> 52.07293666 | AJ27: Motif:Gypsy61-I_AG | AK27: 25 | AL27: =AK27+AL26 -> 2153 | AM27: =AL27/$AL$1*100 -> 64.07738095 | AO27: Motif:Gypsy-9_Trm-I | AP27: 14 | AQ27: =AP27+AQ26 -> 547 | AR27: =AQ27/$AQ$1*100 -> 21.38389367 | AT27: Motif:DNA-8-5_DR | AU27: 10 | AV27: =AU27+AV26 -> 456 | AW27: =AV27/$AV$1*100 -> 31.02040816
A28: Motif:Ginger1-5_HM | B28: 123 | C28: =B28+C27 -> 5739 | D28: =C28/$C$1*100 -> 47.99297541 | F28: Motif:P-30_HM | G28: 693 | H28: =G28+H27 -> 35396 | I28: =H28/$H$1*100 -> 41.37173313 | K28: Motif:CR1-3_HM | L28: 945 | M28: =L28+M27 -> 53000 | N28: =M28/$M$1*100 -> 63.48141671 | P28: Motif:Novosib-6_CR | Q28: 388 | R28: =Q28+R27 -> 20816 | S28: =R28/$R$1*100 -> 37.50563053 | U28: Motif:EnSpm-34_SBi | V28: 220 | W28: =V28+W27 -> 14451 | X28: =W28/$W$1*100 -> 45.87619048 | Z28: Motif:hAT-4_PBa | AA28: 765 | AB28: =AA28+AB27 -> 43429 | AC28: =AB28/$AB$1*100 -> 61.48803625 | AE28: Motif:Sola1-1_MonBre | AF28: 41 | AG28: =AF28+AG27 -> 2754 | AH28: =AG28/$AG$1*100 -> 52.85988484 | AJ28: Motif:EnSpm-5_HM | AK28: 22 | AL28: =AK28+AL27 -> 2175 | AM28: =AL28/$AL$1*100 -> 64.73214286 | AO28: Motif:Gypsy-52_BG-I | AP28: 14 | AQ28: =AP28+AQ27 -> 561 | AR28: =AQ28/$AQ$1*100 -> 21.93119625 | AT28: Motif:Tx1-5_PM | AU28: 9 | AV28: =AU28+AV27 -> 465 | AW28: =AV28/$AV$1*100 -> 31.63265306
A29: Motif:DNA-8-5_DR | B29: 120 | C29: =B29+C28 -> 5859 | D29: =C29/$C$1*100 -> 48.99648771 | F29: Motif:Gypsy68-I_AG | G29: 688 | H29: =G29+H28 -> 36084 | I29: =H29/$H$1*100 -> 42.1758848 | K29: Motif:DIRS-4_DR | L29: 761 | M29: =L29+M28 -> 53761 | N29: =M29/$M$1*100 -> 64.39291404 | P29: Motif:Penelope-1_DR | Q29: 371 | R29: =Q29+R28 -> 21187 | S29: =R29/$R$1*100 -> 38.17408695 | U29: Motif:Kolobok-2_DR | V29: 207 | W29: =V29+W28 -> 14658 | X29: =W29/$W$1*100 -> 46.53333333 | Z29: Motif:Polinton-2A_NV | AA29: 760 | AB29: =AA29+AB28 -> 44189 | AC29: =AB29/$AB$1*100 -> 62.56406626 | AE29: Motif:DNA-11_CGi | AF29: 40 | AG29: =AF29+AG28 -> 2794 | AH29: =AG29/$AG$1*100 -> 53.62763916 | AJ29: Motif:DNA2-5_DR | AK29: 22 | AL29: =AK29+AL28 -> 2197 | AM29: =AL29/$AL$1*100 -> 65.38690476 | AO29: Motif:tRNA-Asn-AAC | AP29: 13 | AQ29: =AP29+AQ28 -> 574 | AR29: =AQ29/$AQ$1*100 -> 22.43940579 | AT29: Motif:Tx1-1_CGi | AU29: 9 | AV29: =AU29+AV28 -> 474 | AW29: =AV29/$AV$1*100 -> 32.24489796
A30: Motif:Kolobok-N1_AEc | B30: 110 | C30: =B30+C29 -> 5969 | D30: =C30/$C$1*100 -> 49.91637398 | F30: Motif:IS3EU-4_DR | G30: 687 | H30: =G30+H29 -> 36771 | I30: =H30/$H$1*100 -> 42.97886764 | K30: Motif:EnSpm-17_HM | L30: 721 | M30: =L30+M29 -> 54482 | N30: =M30/$M$1*100 -> 65.25650086 | P30: Motif:Gypsy-600_AA-I | Q30: 336 | R30: =Q30+R29 -> 21523 | S30: =R30/$R$1*100 -> 38.77948145 | U30: Motif:HELITRON7_OS | V30: 201 | W30: =V30+W29 -> 14859 | X30: =W30/$W$1*100 -> 47.17142857 | Z30: Motif:EnSpm1_HV | AA30: 752 | AB30: =AA30+AB29 -> 44941 | AC30: =AB30/$AB$1*100 -> 63.62876964 | AE30: Motif:DNA3-4_CGi | AF30: 37 | AG30: =AF30+AG29 -> 2831 | AH30: =AG30/$AG$1*100 -> 54.3378119 | AJ30: Motif:Tx1-5_PM | AK30: 19 | AL30: =AK30+AL29 -> 2216 | AM30: =AL30/$AL$1*100 -> 65.95238095 | AO30: Motif:IMPB_01 | AP30: 12 | AQ30: =AP30+AQ29 -> 586 | AR30: =AQ30/$AQ$1*100 -> 22.90852228 | AT30: Motif:Sola1-1_AC | AU30: 9 | AV30: =AU30+AV29 -> 483 | AW30: =AV30/$AV$1*100 -> 32.85714286
A31: Motif:EnSpm-2_TD | B31: 110 | C31: =B31+C30 -> 6079 | D31: =C31/$C$1*100 -> 50.83626024 | F31: Motif:ENSPM-6_DR | G31: 676 | H31: =G31+H30 -> 37447 | I31: =H31/$H$1*100 -> 43.76899341 | K31: Motif:Polinton3_SM | L31: 624 | M31: =L31+M30 -> 55106 | N31: =M31/$M$1*100 -> 66.00390471 | P31: Motif:Polinton3_SM | Q31: 334 | R31: =Q31+R30 -> 21857 | S31: =R31/$R$1*100 -> 39.38127241 | U31: Motif:Kolobok-N1_AEc | V31: 195 | W31: =V31+W30 -> 15054 | X31: =W31/$W$1*100 -> 47.79047619 | Z31: Motif:DNA6-6_DR | AA31: 730 | AB31: =AA31+AB30 -> 45671 | AC31: =AB31/$AB$1*100 -> 64.66232479 | AE31: Motif:Ginger1-1_AC | AF31: 36 | AG31: =AF31+AG30 -> 2867 | AH31: =AG31/$AG$1*100 -> 55.02879079 | AJ31: Motif:Polinton-2_PBa | AK31: 19 | AL31: =AK31+AL30 -> 2235 | AM31: =AL31/$AL$1*100 -> 66.51785714 | AO31: Motif:hAT-N4_ALy | AP31: 12 | AQ31: =AP31+AQ30 -> 598 | AR31: =AQ31/$AQ$1*100 -> 23.37763878 | AT31: Motif:RT1 | AU31: 9 | AV31: =AU31+AV30 -> 492 | AW31: =AV31/$AV$1*100 -> 33.46938776
A32: Motif:Helitron-2_DR | B32: 104 | C32: =B32+C31 -> 6183 | D32: =C32/$C$1*100 -> 51.7059709 | F32: Motif:Polinton-1_DR | G32: 650 | H32: =G32+H31 -> 38097 | I32: =H32/$H$1*100 -> 44.52872972 | K32: Motif:DNA-1-7_DR | L32: 607 | M32: =L32+M31 -> 55713 | N32: =M32/$M$1*100 -> 66.73094659 | P32: Motif:Sola3-1_BF | Q32: 313 | R32: =Q32+R31 -> 22170 | S32: =R32/$R$1*100 -> 39.94522621 | U32: Motif:ENSPM-6_DR | V32: 192 | W32: =V32+W31 -> 15246 | X32: =W32/$W$1*100 -> 48.4 | Z32: Motif:RTAg4 | AA32: 703 | AB32: =AA32+AB31 -> 46374 | AC32: =AB32/$AB$1*100 -> 65.65765256 | AE32: Motif:Sola3-1_BF | AF32: 35 | AG32: =AF32+AG31 -> 2902 | AH32: =AG32/$AG$1*100 -> 55.70057582 | AJ32: Motif:Gypsy-91_SB-I | AK32: 18 | AL32: =AK32+AL31 -> 2253 | AM32: =AL32/$AL$1*100 -> 67.05357143 | AO32: Motif:Gypsy89-I_DR | AP32: 12 | AQ32: =AP32+AQ31 -> 610 | AR32: =AQ32/$AQ$1*100 -> 23.84675528 | AT32: Motif:RLTR31D_MM | AU32: 9 | AV32: =AU32+AV31 -> 501 | AW32: =AV32/$AV$1*100 -> 34.08163265
A33: Motif:hAT-4_PBa | B33: 102 | C33: =B33+C32 -> 6285 | D33: =C33/$C$1*100 -> 52.55895635 | F33: Motif:Helitron-3N3_PM | G33: 649 | H33: =G33+H32 -> 38746 | I33: =H33/$H$1*100 -> 45.28729721 | K33: Motif:hAT-N4_ALy | L33: 556 | M33: =L33+M32 -> 56269 | N33: =M33/$M$1*100 -> 67.39690259 | P33: Motif:DNA8-25_DR | Q33: 302 | R33: =Q33+R32 -> 22472 | S33: =R33/$R$1*100 -> 40.48936055 | U33: Motif:MuDR-1_NV | V33: 189 | W33: =V33+W32 -> 15435 | X33: =W33/$W$1*100 -> 49 | Z33: Motif:TART_DV | AA33: 684 | AB33: =AA33+AB32 -> 47058 | AC33: =AB33/$AB$1*100 -> 66.62607957 | AE33: Motif:DNA8-10_CGi | AF33: 34 | AG33: =AF33+AG32 -> 2936 | AH33: =AG33/$AG$1*100 -> 56.35316699 | AJ33: Motif:DIRS-4_DR | AK33: 18 | AL33: =AK33+AL32 -> 2271 | AM33: =AL33/$AL$1*100 -> 67.58928571 | AO33: Motif:Gypsy-21_DEl-I | AP33: 12 | AQ33: =AP33+AQ32 -> 622 | AR33: =AQ33/$AQ$1*100 -> 24.31587177 | AT33: Motif:LTR160B_MD | AU33: 9 | AV33: =AU33+AV32 -> 510 | AW33: =AV33/$AV$1*100 -> 34.69387755
A34: Motif:Dada-1_BF | B34: 102 | C34: =B34+C33 -> 6387 | D34: =C34/$C$1*100 -> 53.4119418 | F34: Motif:Gypsy-31-LTR_DR | G34: 604 | H34: =G34+H33 -> 39350 | I34: =H34/$H$1*100 -> 45.99326757 | K34: Motif:Polinton-2A_NV | L34: 533 | M34: =L34+M33 -> 56802 | N34: =M34/$M$1*100 -> 68.03531004 | P34: Motif:L1-11_DR | Q34: 301 | R34: =Q34+R33 -> 22773 | S34: =R34/$R$1*100 -> 41.03169312 | U34: Motif:Penelope-13_HM | V34: 179 | W34: =V34+W33 -> 15614 | X34: =W34/$W$1*100 -> 49.56825397 | Z34: Motif:Gypsy82-LTR_Dr | AA34: 624 | AB34: =AA34+AB33 -> 47682 | AC34: =AB34/$AB$1*100 -> 67.50955685 | AE34: Motif:DNA-3_FV | AF34: 34 | AG34: =AF34+AG33 -> 2970 | AH34: =AG34/$AG$1*100 -> 57.00575816 | AJ34: Motif:R1_DYa | AK34: 17 | AL34: =AK34+AL33 -> 2288 | AM34: =AL34/$AL$1*100 -> 68.0952381 | AO34: Motif:Copia-58_BG-I | AP34: 12 | AQ34: =AP34+AQ33 -> 634 | AR34: =AQ34/$AQ$1*100 -> 24.78498827 | AT34: Motif:Gypsy98-LTR_Dr | AU34: 9 | AV34: =AU34+AV33 -> 519 | AW34: =AV34/$AV$1*100 -> 35.30612245
A35: Motif:Mariner-N5_HSal | B35: 101 | C35: =B35+C34 -> 6488 | D35: =C35/$C$1*100 -> 54.25656464 | F35: Motif:Ginger1-10_HM | G35: 568 | H35: =G35+H34 -> 39918 | I35: =H35/$H$1*100 -> 46.65716022 | K35: Motif:hAT-2_HM | L35: 503 | M35: =L35+M34 -> 57305 | N35: =M35/$M$1*100 -> 68.63778462 | P35: Motif:ENSPM-6_DR | Q35: 296 | R35: =Q35+R34 -> 23069 | S35: =R35/$R$1*100 -> 41.56501685 | U35: Motif:EnSpm-1_HM | V35: 178 | W35: =V35+W34 -> 15792 | X35: =W35/$W$1*100 -> 50.13333333 | Z35: Motif:IMPB_01 | AA35: 607 | AB35: =AA35+AB34 -> 48289 | AC35: =AB35/$AB$1*100 -> 68.36896503 | AE35: Motif:L1-55_XT | AF35: 33 | AG35: =AF35+AG34 -> 3003 | AH35: =AG35/$AG$1*100 -> 57.63915547 | AJ35: Motif:hAT-2_HM | AK35: 17 | AL35: =AK35+AL34 -> 2305 | AM35: =AL35/$AL$1*100 -> 68.60119048 | AO35: Motif:tRNA-Ser-TCY | AP35: 11 | AQ35: =AP35+AQ34 -> 645 | AR35: =AQ35/$AQ$1*100 -> 25.21501173 | AT35: Motif:ERV1-1_SSc-I | AU35: 9 | AV35: =AU35+AV34 -> 528 | AW35: =AV35/$AV$1*100 -> 35.91836735
A36: Motif:ERV1-N6-I_DR | B36: 101 | C36: =B36+C35 -> 6589 | D36: =C36/$C$1*100 -> 55.10118749 | F36: Motif:hAT-N131_DR | G36: 554 | H36: =G36+H35 -> 40472 | I36: =H36/$H$1*100 -> 47.30468933 | K36: Motif:DNA3-11_Mad | L36: 487 | M36: =L36+M35 -> 57792 | N36: =M36/$M$1*100 -> 69.22109499 | P36: Motif:IS3EU-4_DR | Q36: 274 | R36: =Q36+R35 -> 23343 | S36: =R36/$R$1*100 -> 42.05870165 | U36: Motif:L1-48_DR | V36: 167 | W36: =V36+W35 -> 15959 | X36: =W36/$W$1*100 -> 50.66349206 | Z36: Motif:LTR24_Sar | AA36: 534 | AB36: =AA36+AB35 -> 48823 | AC36: =AB36/$AB$1*100 -> 69.1250177 | AE36: Motif:Sola1-1_AC | AF36: 32 | AG36: =AF36+AG35 -> 3035 | AH36: =AG36/$AG$1*100 -> 58.25335893 | AJ36: Motif:Gypsy-9-I_CR | AK36: 17 | AL36: =AK36+AL35 -> 2322 | AM36: =AL36/$AL$1*100 -> 69.10714286 | AO36: Motif:tRNA-Ala-GCY | AP36: 11 | AQ36: =AP36+AQ35 -> 656 | AR36: =AQ36/$AQ$1*100 -> 25.64503518 | AT36: Motif:TE-X-4_NVi | AU36: 8 | AV36: =AU36+AV35 -> 536 | AW36: =AV36/$AV$1*100 -> 36.46258503
A37: Motif:DNA8-25_DR | B37: 94 | C37: =B37+C36 -> 6683 | D37: =C37/$C$1*100 -> 55.88727212 | F37: Motif:ERV1-N3-I_DR | G37: 551 | H37: =G37+H36 -> 41023 | I37: =H37/$H$1*100 -> 47.94871195 | K37: Motif:DNA-6-N2_DR | L37: 475 | M37: =L37+M36 -> 58267 | N37: =M37/$M$1*100 -> 69.79003222 | P37: Motif:DIRS-4_DR | Q37: 272 | R37: =Q37+R36 -> 23615 | S37: =R37/$R$1*100 -> 42.5487829 | U37: Motif:HMSBEAGLE_I-int | V37: 167 | W37: =V37+W36 -> 16126 | X37: =W37/$W$1*100 -> 51.19365079 | Z37: Motif:Dada-1_BF | AA37: 492 | AB37: =AA37+AB36 -> 49315 | AC37: =AB37/$AB$1*100 -> 69.82160555 | AE37: Motif:DNA4-24_CGi | AF37: 32 | AG37: =AF37+AG36 -> 3067 | AH37: =AG37/$AG$1*100 -> 58.86756238 | AJ37: Motif:MinoAg1 | AK37: 16 | AL37: =AK37+AL36 -> 2338 | AM37: =AL37/$AL$1*100 -> 69.58333333 | AO37: Motif:Gypsy8-I_VC | AP37: 11 | AQ37: =AP37+AQ36 -> 667 | AR37: =AQ37/$AQ$1*100 -> 26.07505864 | AT37: Motif:Polinton-9_NVi | AU37: 8 | AV37: =AU37+AV36 -> 544 | AW37: =AV37/$AV$1*100 -> 37.00680272
A38: Motif:DNA9-3_DR | B38: 91 | C38: =B38+C37 -> 6774 | D38: =C38/$C$1*100 -> 56.64826894 | F38: Motif:Chapaev-8_HM | G38: 540 | H38: =G38+H37 -> 41563 | I38: =H38/$H$1*100 -> 48.57987751 | K38: Motif:ENSPM2_VV | L38: 449 | M38: =L38+M37 -> 58716 | N38: =M38/$M$1*100 -> 70.32782762 | P38: Motif:Dada-tL_DR | Q38: 264 | R38: =Q38+R37 -> 23879 | S38: =R38/$R$1*100 -> 43.02445001 | U38: Motif:DNA4-4B_CGi | V38: 165 | W38: =V38+W37 -> 16291 | X38: =W38/$W$1*100 -> 51.71746032 | Z38: Motif:L1-3_CR | AA38: 474 | AB38: =AA38+AB37 -> 49789 | AC38: =AB38/$AB$1*100 -> 70.49270848 | AE38: Motif:TE-X-4_NVi | AF38: 30 | AG38: =AF38+AG37 -> 3097 | AH38: =AG38/$AG$1*100 -> 59.44337812 | AJ38: Motif:Jockey-2_DGri | AK38: 15 | AL38: =AK38+AL37 -> 2353 | AM38: =AL38/$AL$1*100 -> 70.0297619 | AO38: Motif:Gypsy-12_DRh-I | AP38: 11 | AQ38: =AP38+AQ37 -> 678 | AR38: =AQ38/$AQ$1*100 -> 26.5050821 | AT38: Motif:MdoLTR2-int | AU38: 8 | AV38: =AU38+AV37 -> 552 | AW38: =AV38/$AV$1*100 -> 37.55102041
A39: Motif:DIRS-15B_DR | B39: 88 | C39: =B39+C38 -> 6862 | D39: =C39/$C$1*100 -> 57.38417796 | F39: Motif:HELITRON7_OS | G39: 521 | H39: =G39+H38 -> 42084 | I39: =H39/$H$1*100 -> 49.18883538 | K39: Motif:DNA-8-3_HM | L39: 429 | M39: =L39+M38 -> 59145 | N39: =M39/$M$1*100 -> 70.84166776 | P39: Motif:DNA-1-7_DR | Q39: 262 | R39: =Q39+R38 -> 24141 | S39: =R39/$R$1*100 -> 43.49651358 | U39: Motif:Ginger1-10_HM | V39: 163 | W39: =V39+W38 -> 16454 | X39: =W39/$W$1*100 -> 52.23492063 | Z39: Motif:Ag-Jock-1 | AA39: 453 | AB39: =AA39+AB38 -> 50242 | AC39: =AB39/$AB$1*100 -> 71.134079 | AE39: Motif:MERMITE18D | AF39: 30 | AG39: =AF39+AG38 -> 3127 | AH39: =AG39/$AG$1*100 -> 60.01919386 | AJ39: Motif:Gypsy-22_SB-I | AK39: 15 | AL39: =AK39+AL38 -> 2368 | AM39: =AL39/$AL$1*100 -> 70.47619048 | AO39: Motif:Gypsy10-PTR_I-int | AP39: 11 | AQ39: =AP39+AQ38 -> 689 | AR39: =AQ39/$AQ$1*100 -> 26.93510555 | AT39: Motif:Mariner-N5_HSal | AU39: 8 | AV39: =AU39+AV38 -> 560 | AW39: =AV39/$AV$1*100 -> 38.0952381
A40: Motif:EnSpm-7_DR | B40: 80 | C40: =B40+C39 -> 6942 | D40: =C40/$C$1*100 -> 58.05318615 | F40: Motif:DNA7-N1_DR | G40: 518 | H40: =G40+H39 -> 42602 | I40: =H40/$H$1*100 -> 49.79428678 | K40: Motif:Merlin-1_Aplcal | L40: 426 | M40: =L40+M39 -> 59571 | N40: =M40/$M$1*100 -> 71.35191462 | P40: Motif:Gypsy68-I_AG | Q40: 255 | R40: =Q40+R39 -> 24396 | S40: =R40/$R$1*100 -> 43.95596476 | U40: Motif:Chapaev-8_HM | V40: 159 | W40: =V40+W39 -> 16613 | X40: =W40/$W$1*100 -> 52.73968254 | Z40: Motif:Gypsy-6_AEc-LTR | AA40: 446 | AB40: =AA40+AB39 -> 50688 | AC40: =AB40/$AB$1*100 -> 71.76553872 | AE40: Motif:MdoLTR2-int | AF40: 29 | AG40: =AF40+AG39 -> 3156 | AH40: =AG40/$AG$1*100 -> 60.57581574 | AJ40: Motif:DNA-8-3_HM | AK40: 15 | AL40: =AK40+AL39 -> 2383 | AM40: =AL40/$AL$1*100 -> 70.92261905 | AO40: Motif:DNA-N4_DR | AP40: 11 | AQ40: =AP40+AQ39 -> 700 | AR40: =AQ40/$AQ$1*100 -> 27.36512901 | AT40: Motif:DNA9-3_DR | AU40: 8 | AV40: =AU40+AV39 -> 568 | AW40: =AV40/$AV$1*100 -> 38.63945578
A41: Motif:EnSpm-N13_DR | B41: 77 | C41: =B41+C40 -> 7019 | D41: =C41/$C$1*100 -> 58.69710654 | F41: Motif:TE-X-5_DR | G41: 494 | H41: =G41+H40 -> 43096 | I41: =H41/$H$1*100 -> 50.37168638 | K41: Motif:hAT6-2_NV | L41: 395 | M41: =L41+M40 -> 59966 | N41: =M41/$M$1*100 -> 71.82503084 | P41: Motif:Kolobok-3_Aplcal | Q41: 252 | R41: =Q41+R40 -> 24648 | S41: =R41/$R$1*100 -> 44.41001063 | U41: Motif:Chapaev-1_AA | V41: 155 | W41: =V41+W40 -> 16768 | X41: =W41/$W$1*100 -> 53.23174603 | Z41: Motif:TSESSEBEII | AA41: 436 | AB41: =AA41+AB40 -> 51124 | AC41: =AB41/$AB$1*100 -> 72.38284015 | AE41: Motif:Polinton-8_NVi | AF41: 28 | AG41: =AF41+AG40 -> 3184 | AH41: =AG41/$AG$1*100 -> 61.11324376 | AJ41: Motif:Copia3-I_CR | AK41: 14 | AL41: =AK41+AL40 -> 2397 | AM41: =AL41/$AL$1*100 -> 71.33928571 | AO41: Motif:tRNA-Met_ | AP41: 10 | AQ41: =AP41+AQ40 -> 710 | AR41: =AQ41/$AQ$1*100 -> 27.75605942 | AT41: Motif:Copia17-NVi_I-int | AU41: 8 | AV41: =AU41+AV40 -> 576 | AW41: =AV41/$AV$1*100 -> 39.18367347
A42: Motif:EnSpm-N14_DR | B42: 74 | C42: =B42+C41 -> 7093 | D42: =C42/$C$1*100 -> 59.31593912 | F42: Motif:Ginger1-5_HM | G42: 490 | H42: =G42+H41 -> 43586 | I42: =H42/$H$1*100 -> 50.94441068 | K42: Motif:FUGUREP2 | L42: 393 | M42: =L42+M41 -> 60359 | N42: =M42/$M$1*100 -> 72.29575154 | P42: Motif:DNA7-N1_DR | Q42: 248 | R42: =Q42+R41 -> 24896 | S42: =R42/$R$1*100 -> 44.85684943 | U42: Motif:ZFERV-2-I_DR | V42: 147 | W42: =V42+W41 -> 16915 | X42: =W42/$W$1*100 -> 53.6984127 | Z42: Motif:Ginger1-5_HM | AA42: 426 | AB42: =AA42+AB41 -> 51550 | AC42: =AB42/$AB$1*100 -> 72.98598329 | AE42: Motif:TE-5_CGi | AF42: 27 | AG42: =AF42+AG41 -> 3211 | AH42: =AG42/$AG$1*100 -> 61.63147793 | AJ42: Motif:Gypsy-23_DEl-I | AK42: 13 | AL42: =AK42+AL41 -> 2410 | AM42: =AL42/$AL$1*100 -> 71.72619048 | AO42: Motif:tRNALeuCTT_CB | AP42: 10 | AQ42: =AP42+AQ41 -> 720 | AR42: =AQ42/$AQ$1*100 -> 28.14698984 | AT42: Motif:TE-5_CGi | AU42: 7 | AV42: =AU42+AV41 -> 583 | AW42: =AV42/$AV$1*100 -> 39.65986395
A43: Motif:HAT-10_Mad | B43: 72 | C43: =B43+C42 -> 7165 | D43: =C43/$C$1*100 -> 59.9180465 | F43: Motif:EnSpm1_HV | G43: 490 | H43: =G43+H42 -> 44076 | I43: =H43/$H$1*100 -> 51.51713498 | K43: Motif:MuDR-11_GM | L43: 391 | M43: =L43+M42 -> 60750 | N43: =M43/$M$1*100 -> 72.7640767 | P43: Motif:Sola1-1_AC | Q43: 244 | R43: =Q43+R42 -> 25140 | S43: =R43/$R$1*100 -> 45.29648114 | U43: Motif:Gypsy-47_Mad-I | V43: 140 | W43: =V43+W42 -> 17055 | X43: =W43/$W$1*100 -> 54.14285714 | Z43: Motif:RLTR32_Rn | AA43: 400 | AB43: =AA43+AB42 -> 51950 | AC43: =AB43/$AB$1*100 -> 73.55231488 | AE43: Motif:RTAg4 | AF43: 26 | AG43: =AF43+AG42 -> 3237 | AH43: =AG43/$AG$1*100 -> 62.13051823 | AJ43: Motif:Copia-1-I_HS | AK43: 11 | AL43: =AK43+AL42 -> 2421 | AM43: =AL43/$AL$1*100 -> 72.05357143 | AO43: Motif:tRNA-Leu-CTA | AP43: 10 | AQ43: =AP43+AQ42 -> 730 | AR43: =AQ43/$AQ$1*100 -> 28.53792025 | AT43: Motif:Polinton-3_PBa | AU43: 7 | AV43: =AU43+AV42 -> 590 | AW43: =AV43/$AV$1*100 -> 40.13605442
A44: Motif:EnSpm-4_HM | B44: 72 | C44: =B44+C43 -> 7237 | D44: =C44/$C$1*100 -> 60.52015387 | F44: Motif:Helitron-2_DR | G44: 464 | H44: =G44+H43 -> 44540 | I44: =H44/$H$1*100 -> 52.05946982 | K44: Motif:TRE3D | L44: 380 | M44: =L44+M43 -> 61130 | N44: =M44/$M$1*100 -> 73.21922648 | P44: Motif:DNA-8-5_DR | Q44: 233 | R44: =Q44+R43 -> 25373 | S44: =R44/$R$1*100 -> 45.7162934 | U44: Motif:EnSpm-4_HM | V44: 139 | W44: =V44+W43 -> 17194 | X44: =W44/$W$1*100 -> 54.58412698 | Z44: Motif:Mariner-15_SIn | AA44: 383 | AB44: =AA44+AB43 -> 52333 | AC44: =AB44/$AB$1*100 -> 74.09457738 | AE44: Motif:Ag-Jock-1 | AF44: 26 | AG44: =AF44+AG43 -> 3263 | AH44: =AG44/$AG$1*100 -> 62.62955854 | AJ44: Motif:Tx1-1_CGi | AK44: 10 | AL44: =AK44+AL43 -> 2431 | AM44: =AL44/$AL$1*100 -> 72.35119048 | AO44: Motif:HELITRON7_CB | AP44: 10 | AQ44: =AP44+AQ43 -> 740 | AR44: =AQ44/$AQ$1*100 -> 28.92885066 | AT44: Motif:Nematis_Cr | AU44: 7 | AV44: =AU44+AV43 -> 597 | AW44: =AV44/$AV$1*100 -> 40.6122449
A45: Motif:L1-53_DR | B45: 71 | C45: =B45+C44 -> 7308 | D45: =C45/$C$1*100 -> 61.11389865 | F45: Motif:Merlin-1_DR | G45: 455 | H45: =G45+H44 -> 44995 | I45: =H45/$H$1*100 -> 52.59128524 | K45: Motif:Gypsy1-SM_LTR | L45: 375 | M45: =L45+M44 -> 61505 | N45: =M45/$M$1*100 -> 73.66838745 | P45: Motif:Ginger1-5_HM | Q45: 231 | R45: =Q45+R44 -> 25604 | S45: =R45/$R$1*100 -> 46.13250212 | U45: Motif:LIN4b_SM | V45: 135 | W45: =V45+W44 -> 17329 | X45: =W45/$W$1*100 -> 55.01269841 | Z45: Motif:HAT-10_Mad | AA45: 369 | AB45: =AA45+AB44 -> 52702 | AC45: =AB45/$AB$1*100 -> 74.61701826 | AE45: Motif:ERV1-1_SSc-I | AF45: 25 | AG45: =AF45+AG44 -> 3288 | AH45: =AG45/$AG$1*100 -> 63.10940499 | AJ45: Motif:Gypsy14-LTR_Dpse | AK45: 10 | AL45: =AK45+AL44 -> 2441 | AM45: =AL45/$AL$1*100 -> 72.64880952 | AO45: Motif:Gypsy-41_AMi-I | AP45: 10 | AQ45: =AP45+AQ44 -> 750 | AR45: =AQ45/$AQ$1*100 -> 29.31978108 | AT45: Motif:DNA8-10_CGi | AU45: 7 | AV45: =AU45+AV44 -> 604 | AW45: =AV45/$AV$1*100 -> 41.08843537
A46: Motif:Helitron-3N3_PM | B46: 67 | C46: =B46+C45 -> 7375 | D46: =C46/$C$1*100 -> 61.67419301 | F46: Motif:P-27_HM | G46: 440 | H46: =G46+H45 -> 45435 | I46: =H46/$H$1*100 -> 53.10556828 | K46: Motif:P-35_HM | L46: 374 | M46: =L46+M45 -> 61879 | N46: =M46/$M$1*100 -> 74.11635066 | P46: Motif:EnSpm-9_DR | Q46: 218 | R46: =Q46+R45 -> 25822 | S46: =R46/$R$1*100 -> 46.52528783 | U46: Motif:EnSpm1_HV | V46: 133 | W46: =V46+W45 -> 17462 | X46: =W46/$W$1*100 -> 55.43492063 | Z46: Motif:hAT-2n1_DR | AA46: 363 | AB46: =AA46+AB45 -> 53065 | AC46: =AB46/$AB$1*100 -> 75.13096418 | AE46: Motif:HARB-6_ALy | AF46: 24 | AG46: =AF46+AG45 -> 3312 | AH46: =AG46/$AG$1*100 -> 63.57005758 | AJ46: Motif:Gypsy-13_SMo-LTR | AK46: 10 | AL46: =AK46+AL45 -> 2451 | AM46: =AL46/$AL$1*100 -> 72.94642857 | AO46: Motif:Gypsy-21_LBS-I | AP46: 10 | AQ46: =AP46+AQ45 -> 760 | AR46: =AQ46/$AQ$1*100 -> 29.71071149 | AT46: Motif:Sola3-1_CapOwc | AU46: 6 | AV46: =AU46+AV45 -> 610 | AW46: =AV46/$AV$1*100 -> 41.49659864
A47: Motif:Gypsy82-LTR_Dr | B47: 66 | C47: =B47+C46 -> 7441 | D47: =C47/$C$1*100 -> 62.22612477 | F47: Motif:HATN16_DR | G47: 435 | H47: =G47+H46 -> 45870 | I47: =H47/$H$1*100 -> 53.6140072 | K47: Motif:HAL1-2a_MD | L47: 281 | M47: =L47+M46 -> 62160 | N47: =M47/$M$1*100 -> 74.45292194 | P47: Motif:Kolobok-N1_AEc | Q47: 210 | R47: =Q47+R46 -> 26032 | S47: =R47/$R$1*100 -> 46.90365939 | U47: Motif:CR1-3_HM | V47: 132 | W47: =V47+W46 -> 17594 | X47: =W47/$W$1*100 -> 55.85396825 | Z47: Motif:Jockey-3_DGri | AA47: 344 | AB47: =AA47+AB46 -> 53409 | AC47: =AB47/$AB$1*100 -> 75.61800934 | AE47: Motif:DNA-N4_DR | AF47: 23 | AG47: =AF47+AG46 -> 3335 | AH47: =AG47/$AG$1*100 -> 64.01151631 | AJ47: Motif:DIRS-8_DR | AK47: 10 | AL47: =AK47+AL46 -> 2461 | AM47: =AL47/$AL$1*100 -> 73.24404762 | AO47: Motif:Gypsy-143_AA-I | AP47: 10 | AQ47: =AP47+AQ46 -> 770 | AR47: =AQ47/$AQ$1*100 -> 30.10164191 | AT47: Motif:Mariner-62_HSal | AU47: 6 | AV47: =AU47+AV46 -> 616 | AW47: =AV47/$AV$1*100 -> 41.9047619
A48: Motif:EnSpm-9_DR | B48: 64 | C48: =B48+C47 -> 7505 | D48: =C48/$C$1*100 -> 62.76133133 | F48: Motif:DNA-2-24_DR | G48: 422 | H48: =G48+H47 -> 46292 | I48: =H48/$H$1*100 -> 54.10725139 | K48: Motif:Proto1-2_NG | L48: 273 | M48: =L48+M47 -> 62433 | N48: =M48/$M$1*100 -> 74.77991113 | P48: Motif:Polinton-1_DR | Q48: 206 | R48: =Q48+R47 -> 26238 | S48: =R48/$R$1*100 -> 47.27482388 | U48: Motif:GLT2_SM | V48: 130 | W48: =V48+W47 -> 17724 | X48: =W48/$W$1*100 -> 56.26666667 | Z48: Motif:EnSpm-4_HM | AA48: 321 | AB48: =AA48+AB47 -> 53730 | AC48: =AB48/$AB$1*100 -> 76.07249044 | AE48: Motif:LTR160B_MD | AF48: 21 | AG48: =AF48+AG47 -> 3356 | AH48: =AG48/$AG$1*100 -> 64.41458733 | AJ48: Motif:Copia-1_ES-I | AK48: 10 | AL48: =AK48+AL47 -> 2471 | AM48: =AL48/$AL$1*100 -> 73.54166667 | AO48: Motif:tRNA-Ser-TCG | AP48: 9 | AQ48: =AP48+AQ47 -> 779 | AR48: =AQ48/$AQ$1*100 -> 30.45347928 | AT48: Motif:LTR44B_MD | AU48: 6 | AV48: =AU48+AV47 -> 622 | AW48: =AV48/$AV$1*100 -> 42.31292517
A49: Motif:Dada-tL_DR | B49: 63 | C49: =B49+C48 -> 7568 | D49: =C49/$C$1*100 -> 63.28817528 | F49: Motif:Dada-tL_DR | G49: 422 | H49: =G49+H48 -> 46714 | I49: =H49/$H$1*100 -> 54.60049558 | K49: Motif:HMSBEAGLE_I-int | L49: 271 | M49: =L49+M48 -> 62704 | N49: =M49/$M$1*100 -> 75.10450479 | P49: Motif:Polinton-2A_NV | Q49: 205 | R49: =Q49+R48 -> 26443 | S49: =R49/$R$1*100 -> 47.64418659 | U49: Motif:CR1-42_HM | V49: 124 | W49: =V49+W48 -> 17848 | X49: =W49/$W$1*100 -> 56.66031746 | Z49: Motif:ERV-2B_Crp-LTR | AA49: 283 | AB49: =AA49+AB48 -> 54013 | AC49: =AB49/$AB$1*100 -> 76.47317004 | AE49: Motif:MERMITE18F | AF49: 20 | AG49: =AF49+AG48 -> 3376 | AH49: =AG49/$AG$1*100 -> 64.79846449 | AJ49: Motif:ROO_I-int | AK49: 9 | AL49: =AK49+AL48 -> 2480 | AM49: =AL49/$AL$1*100 -> 73.80952381 | AO49: Motif:tRNA-Ile-ATT | AP49: 9 | AQ49: =AP49+AQ48 -> 788 | AR49: =AQ49/$AQ$1*100 -> 30.80531665 | AT49: Motif:L1-55_XT | AU49: 6 | AV49: =AU49+AV48 -> 628 | AW49: =AV49/$AV$1*100 -> 42.72108844
A50: Motif:TSESSEBEII | B50: 59 | C50: =B50+C49 -> 7627 | D50: =C50/$C$1*100 -> 63.78156882 | F50: Motif:Homo6 | G50: 418 | H50: =G50+H49 -> 47132 | I50: =H50/$H$1*100 -> 55.08906447 | K50: Motif:hATm-27_HM | L50: 254 | M50: =L50+M49 -> 62958 | N50: =M50/$M$1*100 -> 75.40873648 | P50: Motif:TRE3D | Q50: 203 | R50: =Q50+R49 -> 26646 | S50: =R50/$R$1*100 -> 48.00994577 | U50: Motif:P-30_HM | V50: 123 | W50: =V50+W49 -> 17971 | X50: =W50/$W$1*100 -> 57.05079365 | Z50: Motif:DNA2-5_DR | AA50: 277 | AB50: =AA50+AB49 -> 54290 | AC50: =AB50/$AB$1*100 -> 76.86535467 | AE50: Motif:Gypsy-19_SB-I | AF50: 20 | AG50: =AF50+AG49 -> 3396 | AH50: =AG50/$AG$1*100 -> 65.18234165 | AJ50: Motif:MuDR1_ZM | AK50: 9 | AL50: =AK50+AL49 -> 2489 | AM50: =AL50/$AL$1*100 -> 74.07738095 | AO50: Motif:TART_DV | AP50: 9 | AQ50: =AP50+AQ49 -> 797 | AR50: =AQ50/$AQ$1*100 -> 31.15715403 | AT50: Motif:Helitron-2_DR | AU50: 6 | AV50: =AU50+AV49 -> 634 | AW50: =AV50/$AV$1*100 -> 43.1292517
A51: Motif:IS3EU-4_DR | B51: 56 | C51: =B51+C50 -> 7683 | D51: =C51/$C$1*100 -> 64.24987456 | F51: Motif:Gypsy-47_Mad-I | G51: 414 | H51: =G51+H50 -> 47546 | I51: =H51/$H$1*100 -> 55.57295806 | K51: Motif:Gypsy-18_PBa-I | L51: 248 | M51: =L51+M50 -> 63206 | N51: =M51/$M$1*100 -> 75.7057816 | P51: Motif:Gypsy1-SM_LTR | Q51: 197 | R51: =Q51+R50 -> 26843 | S51: =R51/$R$1*100 -> 48.36489433 | U51: Motif:Polinton1_SM | V51: 118 | W51: =V51+W50 -> 18089 | X51: =W51/$W$1*100 -> 57.42539683 | Z51: Motif:LTR-12D_Gav | AA51: 263 | AB51: =AA51+AB50 -> 54553 | AC51: =AB51/$AB$1*100 -> 77.23771768 | AE51: Motif:Polinton-3_PBa | AF51: 19 | AG51: =AF51+AG50 -> 3415 | AH51: =AG51/$AG$1*100 -> 65.54702495 | AJ51: Motif:L1-1_CR | AK51: 9 | AL51: =AK51+AL50 -> 2498 | AM51: =AL51/$AL$1*100 -> 74.3452381 | AO51: Motif:Polinton-2_HM | AP51: 9 | AQ51: =AP51+AQ50 -> 806 | AR51: =AQ51/$AQ$1*100 -> 31.5089914 | AT51: Motif:Gypsy8-I_Dpse | AU51: 6 | AV51: =AU51+AV50 -> 640 | AW51: =AV51/$AV$1*100 -> 43.53741497
A52: Motif:TRAS1 | B52: 52 | C52: =B52+C51 -> 7735 | D52: =C52/$C$1*100 -> 64.68472989 | F52: Motif:Transib-2_HM | G52: 413 | H52: =G52+H51 -> 47959 | I52: =H52/$H$1*100 -> 56.05568283 | K52: Motif:ATCopia24I | L52: 241 | M52: =L52+M51 -> 63447 | N52: =M52/$M$1*100 -> 75.99444238 | P52: Motif:hAT-2n1_DR | Q52: 188 | R52: =Q52+R51 -> 27031 | S52: =R52/$R$1*100 -> 48.70362696 | U52: Motif:TE-2_XT | V52: 116 | W52: =V52+W51 -> 18205 | X52: =W52/$W$1*100 -> 57.79365079 | Z52: Motif:Gypsy120-LTR_DR | AA52: 262 | AB52: =AA52+AB51 -> 54815 | AC52: =AB52/$AB$1*100 -> 77.60866487 | AE52: Motif:Mariner-79B_HSal | AF52: 19 | AG52: =AF52+AG51 -> 3434 | AH52: =AG52/$AG$1*100 -> 65.91170825 | AJ52: Motif:L1-11_DR | AK52: 9 | AL52: =AK52+AL51 -> 2507 | AM52: =AL52/$AL$1*100 -> 74.61309524 | AO52: Motif:hAT-N1_SP | AP52: 9 | AQ52: =AP52+AQ51 -> 815 | AR52: =AQ52/$AQ$1*100 -> 31.86082877 | AT52: Motif:ENSPM-6_DR | AU52: 6 | AV52: =AU52+AV51 -> 646 | AW52: =AV52/$AV$1*100 -> 43.94557823
A53: Motif:HARB-4_Mad | B53: 52 | C53: =B53+C52 -> 7787 | D53: =C53/$C$1*100 -> 65.11958521 | F53: Motif:DNA-2-12_DR | G53: 409 | H53: =G53+H52 -> 48368 | I53: =H53/$H$1*100 -> 56.53373229 | K53: Motif:hATN-4_ACar | L53: 240 | M53: =L53+M52 -> 63687 | N53: =M53/$M$1*100 -> 76.2819054 | P53: Motif:EnSpm-N13_DR | Q53: 186 | R53: =Q53+R52 -> 27217 | S53: =R53/$R$1*100 -> 49.03875606 | U53: Motif:P-27_HM | V53: 115 | W53: =V53+W52 -> 18320 | X53: =W53/$W$1*100 -> 58.15873016 | Z53: Motif:EnSpm-N13_DR | AA53: 258 | AB53: =AA53+AB52 -> 55073 | AC53: =AB53/$AB$1*100 -> 77.97394875 | AE53: Motif:Lusen_I-int | AF53: 19 | AG53: =AF53+AG52 -> 3453 | AH53: =AG53/$AG$1*100 -> 66.27639155 | AJ53: Motif:Gypsy-41_GA-I | AK53: 9 | AL53: =AK53+AL52 -> 2516 | AM53: =AL53/$AL$1*100 -> 74.88095238 | AO53: Motif:Gypsy-7_RO-I | AP53: 9 | AQ53: =AP53+AQ52 -> 824 | AR53: =AQ53/$AQ$1*100 -> 32.21266615 | AT53: Motif:DNA-11_CGi | AU53: 6 | AV53: =AU53+AV52 -> 652 | AW53: =AV53/$AV$1*100 -> 44.3537415
A54: Motif:IS3EU-1_DR | B54: 51 | C54: =B54+C53 -> 7838 | D54: =C54/$C$1*100 -> 65.54607794 | F54: Motif:Ginger1-6_HM | G54: 408 | H54: =G54+H53 -> 48776 | I54: =H54/$H$1*100 -> 57.01061293 | K54: Motif:PIVE | L54: 234 | M54: =L54+M53 -> 63921 | N54: =M54/$M$1*100 -> 76.56218184 | P54: Motif:EnSpm-22_HMa | Q54: 185 | R54: =Q54+R53 -> 27402 | S54: =R54/$R$1*100 -> 49.37208339 | U54: Motif:Chapaev-3A_HM | V54: 114 | W54: =V54+W53 -> 18434 | X54: =W54/$W$1*100 -> 58.52063492 | Z54: Motif:Mariner-59N1_HSal | AA54: 248 | AB54: =AA54+AB53 -> 55321 | AC54: =AB54/$AB$1*100 -> 78.32507433 | AE54: Motif:hAT-N36_DR | AF54: 19 | AG54: =AF54+AG53 -> 3472 | AH54: =AG54/$AG$1*100 -> 66.64107486 | AJ54: Motif:Polinton-9_NVi | AK54: 8 | AL54: =AK54+AL53 -> 2524 | AM54: =AL54/$AL$1*100 -> 75.11904762 | AO54: Motif:Gypsy-6_Trm-I | AP54: 9 | AQ54: =AP54+AQ53 -> 833 | AR54: =AQ54/$AQ$1*100 -> 32.56450352 | AT54: Motif:Polinton-1_DR | AU54: 5 | AV54: =AU54+AV53 -> 657 | AW54: =AV54/$AV$1*100 -> 44.69387755
A55: Motif:L1-82_DR | B55: 50 | C55: =B55+C54 -> 7888 | D55: =C55/$C$1*100 -> 65.96420806 | F55: Motif:Kolobok-3_Aplcal | G55: 406 | H55: =G55+H54 -> 49182 | I55: =H55/$H$1*100 -> 57.48515592 | K55: Motif:hAT-N6_ACar | L55: 221 | M55: =L55+M54 -> 64142 | N55: =M55/$M$1*100 -> 76.82688737 | P55: Motif:P-35_HM | Q55: 182 | R55: =Q55+R54 -> 27584 | S55: =R55/$R$1*100 -> 49.70000541 | U55: Motif:TE-X-5_DR | V55: 113 | W55: =V55+W54 -> 18547 | X55: =W55/$W$1*100 -> 58.87936508 | Z55: Motif:hAT-N53_DR | AA55: 248 | AB55: =AA55+AB54 -> 55569 | AC55: =AB55/$AB$1*100 -> 78.67619992 | AE55: Motif:ENSPM-6_ZM | AF55: 19 | AG55: =AF55+AG54 -> 3491 | AH55: =AG55/$AG$1*100 -> 67.00575816 | AJ55: Motif:IMPB_01 | AK55: 8 | AL55: =AK55+AL54 -> 2532 | AM55: =AL55/$AL$1*100 -> 75.35714286 | AO55: Motif:Gypsy-44_DEl-I | AP55: 9 | AQ55: =AP55+AQ54 -> 842 | AR55: =AQ55/$AQ$1*100 -> 32.91634089 | AT55: Motif:Novosib-6_CR | AU55: 5 | AV55: =AU55+AV54 -> 662 | AW55: =AV55/$AV$1*100 -> 45.03401361
A56: Motif:IMPB_01 | B56: 50 | C56: =B56+C55 -> 7938 | D56: =C56/$C$1*100 -> 66.38233818 | F56: Motif:IS3EU-1_DR | G56: 399 | H56: =G56+H55 -> 49581 | I56: =H56/$H$1*100 -> 57.95151713 | K56: Motif:Novosib-6_CR | L56: 200 | M56: =L56+M55 -> 64342 | N56: =M56/$M$1*100 -> 77.06643989 | P56: Motif:Neptune_Hyd | Q56: 179 | R56: =Q56+R55 -> 27763 | S56: =R56/$R$1*100 -> 50.02252212 | U56: Motif:Dada-tL_DR | V56: 113 | W56: =V56+W55 -> 18660 | X56: =W56/$W$1*100 -> 59.23809524 | Z56: Motif:EnSpm-2_TD | AA56: 243 | AB56: =AA56+AB55 -> 55812 | AC56: =AB56/$AB$1*100 -> 79.02024635 | AE56: Motif:RLTR31D_MM | AF56: 18 | AG56: =AF56+AG55 -> 3509 | AH56: =AG56/$AG$1*100 -> 67.3512476 | AJ56: Motif:Helitron-9_CGi | AK56: 8 | AL56: =AK56+AL55 -> 2540 | AM56: =AL56/$AL$1*100 -> 75.5952381 | AO56: Motif:tRNA-Val-GTA | AP56: 8 | AQ56: =AP56+AQ55 -> 850 | AR56: =AQ56/$AQ$1*100 -> 33.22908522 | AT56: Motif:Neptune3_Ren | AU56: 5 | AV56: =AU56+AV55 -> 667 | AW56: =AV56/$AV$1*100 -> 45.37414966
A57: Motif:Daphne-73_HMa | B57: 50 | C57: =B57+C56 -> 7988 | D57: =C57/$C$1*100 -> 66.80046831 | F57: Motif:ZFERV-2-I_DR | G57: 389 | H57: =G57+H56 -> 49970 | I57: =H57/$H$1*100 -> 58.4061901 | K57: Motif:Copia-58_BG-I | L57: 199 | M57: =L57+M56 -> 64541 | N57: =M57/$M$1*100 -> 77.30479464 | P57: Motif:DNA-N4_DR | Q57: 177 | R57: =Q57+R56 -> 27940 | S57: =R57/$R$1*100 -> 50.34143529 | U57: Motif:Kolobok-2_XT | V57: 112 | W57: =V57+W56 -> 18772 | X57: =W57/$W$1*100 -> 59.59365079 | Z57: Motif:hATa-1_EHux | AA57: 237 | AB57: =AA57+AB56 -> 56049 | AC57: =AB57/$AB$1*100 -> 79.35579782 | AE57: Motif:Mariner-62_HSal | AF57: 18 | AG57: =AF57+AG56 -> 3527 | AH57: =AG57/$AG$1*100 -> 67.69673704 | AJ57: Motif:hAT-N144_DR | AK57: 8 | AL57: =AK57+AL56 -> 2548 | AM57: =AL57/$AL$1*100 -> 75.83333333 | AO57: Motif:tRNA-Met-i | AP57: 8 | AQ57: =AP57+AQ56 -> 858 | AR57: =AQ57/$AQ$1*100 -> 33.54182955 | AT57: Motif:MERMITE18D | AU57: 5 | AV57: =AU57+AV56 -> 672 | AW57: =AV57/$AV$1*100 -> 45.71428571
A58: Motif:DNA-N4_DR | B58: 49 | C58: =B58+C57 -> 8037 | D58: =C58/$C$1*100 -> 67.21023583 | F58: Motif:Mariner-30_HM | G58: 387 | H58: =G58+H57 -> 50357 | I58: =H58/$H$1*100 -> 58.85852541 | K58: Motif:CR1-48_HM | L58: 195 | M58: =L58+M57 -> 64736 | N58: =M58/$M$1*100 -> 77.53835835 | P58: Motif:L1-53_DR | Q58: 173 | R58: =Q58+R57 -> 28113 | S58: =R58/$R$1*100 -> 50.65314138 | U58: Motif:Polinton-1_SM | V58: 111 | W58: =V58+W57 -> 18883 | X58: =W58/$W$1*100 -> 59.94603175 | Z58: Motif:DIRS-15B_DR | AA58: 233 | AB58: =AA58+AB57 -> 56282 | AC58: =AB58/$AB$1*100 -> 79.68568597 | AE58: Motif:Jockey-3_DGri | AF58: 18 | AG58: =AF58+AG57 -> 3545 | AH58: =AG58/$AG$1*100 -> 68.04222649 | AJ58: Motif:HAT1_DR | AK58: 8 | AL58: =AK58+AL57 -> 2556 | AM58: =AL58/$AL$1*100 -> 76.07142857 | AO58: Motif:RT1 | AP58: 8 | AQ58: =AP58+AQ57 -> 866 | AR58: =AQ58/$AQ$1*100 -> 33.85457389 | AT58: Motif:MERMITE18B | AU58: 5 | AV58: =AU58+AV57 -> 677 | AW58: =AV58/$AV$1*100 -> 46.05442177
A59: Motif:Gypsy-6_AEc-LTR | B59: 47 | C59: =B59+C58 -> 8084 | D59: =C59/$C$1*100 -> 67.60327814 | F59: Motif:Ginger1-1_AC | G59: 371 | H59: =G59+H58 -> 50728 | I59: =H59/$H$1*100 -> 59.29215952 | K59: Motif:Copia-1-I_HS | L59: 193 | M59: =L59+M58 -> 64929 | N59: =M59/$M$1*100 -> 77.76952652 | P59: Motif:Dada-1_BF | Q59: 169 | R59: =Q59+R58 -> 28282 | S59: =R59/$R$1*100 -> 50.9576404 | U59: Motif:hAT-40_HM | V59: 105 | W59: =V59+W58 -> 18988 | X59: =W59/$W$1*100 -> 60.27936508 | Z59: Motif:Mariner-79B_HSal | AA59: 227 | AB59: =AA59+AB58 -> 56509 | AC59: =AB59/$AB$1*100 -> 80.00707914 | AE59: Motif:Gypsy-38_NVi-LTR | AF59: 18 | AG59: =AF59+AG58 -> 3563 | AH59: =AG59/$AG$1*100 -> 68.38771593 | AJ59: Motif:Gypsy-15_LBS-I | AK59: 8 | AL59: =AK59+AL58 -> 2564 | AM59: =AL59/$AL$1*100 -> 76.30952381 | AO59: Motif:L1-25_ACar | AP59: 8 | AQ59: =AP59+AQ58 -> 874 | AR59: =AQ59/$AQ$1*100 -> 34.16731822 | AT59: Motif:Mariner-79B_HSal | AU59: 5 | AV59: =AU59+AV58 -> 682 | AW59: =AV59/$AV$1*100 -> 46.39455782
A60: Motif:HATN16_DR | B60: 46 | C60: =B60+C59 -> 8130 | D60: =C60/$C$1*100 -> 67.98795785 | F60: Motif:L1-53_DR | G60: 355 | H60: =G60+H59 -> 51083 | I60: =H60/$H$1*100 -> 59.70709243 | K60: Motif:MUDRAVI1 | L60: 186 | M60: =L60+M59 -> 65115 | N60: =M60/$M$1*100 -> 77.99231036 | P60: Motif:hAT-41_Lch | Q60: 168 | R60: =Q60+R59 -> 28450 | S60: =R60/$R$1*100 -> 51.26033765 | U60: Motif:DNA7-N1_DR | V60: 100 | W60: =V60+W59 -> 19088 | X60: =W60/$W$1*100 -> 60.5968254 | Z60: Motif:ERV38_MD-int | AA60: 224 | AB60: =AA60+AB59 -> 56733 | AC60: =AB60/$AB$1*100 -> 80.32422483 | AE60: Motif:MERMITE18C | AF60: 17 | AG60: =AF60+AG59 -> 3580 | AH60: =AG60/$AG$1*100 -> 68.71401152 | AJ60: Motif:Gypsy-10_PPa-I | AK60: 8 | AL60: =AK60+AL59 -> 2572 | AM60: =AL60/$AL$1*100 -> 76.54761905 | AO60: Motif:Gypsy-95_GM-I | AP60: 8 | AQ60: =AP60+AQ59 -> 882 | AR60: =AQ60/$AQ$1*100 -> 34.48006255 | AT60: Motif:LTR42_MD | AU60: 5 | AV60: =AU60+AV59 -> 687 | AW60: =AV60/$AV$1*100 -> 46.73469388
A61: Motif:Gypsy-47_Mad-I | B61: 44 | C61: =B61+C60 -> 8174 | D61: =C61/$C$1*100 -> 68.35591236 | F61: Motif:hAT-4_PBa | G61: 351 | H61: =G61+H60 -> 51434 | I61: =H61/$H$1*100 -> 60.11735004 | K61: Motif:Gypsy-35_CQ-I | L61: 186 | M61: =L61+M60 -> 65301 | N61: =M61/$M$1*100 -> 78.2150942 | P61: Motif:EnSpm1_HV | Q61: 168 | R61: =Q61+R60 -> 28618 | S61: =R61/$R$1*100 -> 51.5630349 | U61: Motif:Merlin-1_DR | V61: 99 | W61: =V61+W60 -> 19187 | X61: =W61/$W$1*100 -> 60.91111111 | Z61: Motif:TRAS1 | AA61: 212 | AB61: =AA61+AB60 -> 56945 | AC61: =AB61/$AB$1*100 -> 80.62438057 | AE61: Motif:Harbinger2-2_ES | AF61: 17 | AG61: =AF61+AG60 -> 3597 | AH61: =AG61/$AG$1*100 -> 69.0403071 | AJ61: Motif:LSU-rRNA_Mfr | AK61: 7 | AL61: =AK61+AL60 -> 2579 | AM61: =AL61/$AL$1*100 -> 76.75595238 | AO61: Motif:Gypsy-46_DWil-I | AP61: 8 | AQ61: =AP61+AQ60 -> 890 | AR61: =AQ61/$AQ$1*100 -> 34.79280688 | AT61: Motif:Kolobok-3_Aplcal | AU61: 5 | AV61: =AU61+AV60 -> 692 | AW61: =AV61/$AV$1*100 -> 47.07482993
A62: Motif:Gypsy-22_DWil-I | B62: 40 | C62: =B62+C61 -> 8214 | D62: =C62/$C$1*100 -> 68.69041646 | F62: Motif:Helitron-4_DR | G62: 350 | H62: =G62+H61 -> 51784 | I62: =H62/$H$1*100 -> 60.52643882 | K62: Motif:CR1_Ele9 | L62: 185 | M62: =L62+M61 -> 65486 | N62: =M62/$M$1*100 -> 78.43668028 | P62: Motif:CR1-48_HM | Q62: 166 | R62: =Q62+R61 -> 28784 | S62: =R62/$R$1*100 -> 51.86212861 | U62: Motif:Mariner-31_HM | V62: 99 | W62: =V62+W61 -> 19286 | X62: =W62/$W$1*100 -> 61.22539683 | Z62: Motif:hAT-1960_Ami | AA62: 212 | AB62: =AA62+AB61 -> 57157 | AC62: =AB62/$AB$1*100 -> 80.92453632 | AE62: Motif:Gypsy98-LTR_Dr | AF62: 17 | AG62: =AF62+AG61 -> 3614 | AH62: =AG62/$AG$1*100 -> 69.36660269 | AJ62: Motif:L1-4_VC | AK62: 7 | AL62: =AK62+AL61 -> 2586 | AM62: =AL62/$AL$1*100 -> 76.96428571 | AO62: Motif:Gypsy-33_DWil-I | AP62: 8 | AQ62: =AP62+AQ61 -> 898 | AR62: =AQ62/$AQ$1*100 -> 35.10555121 | AT62: Motif:hAT-N144_DR | AU62: 5 | AV62: =AU62+AV61 -> 697 | AW62: =AV62/$AV$1*100 -> 47.41496599
A63: Motif:L1-3_CR | B63: 39 | C63: =B63+C62 -> 8253 | D63: =C63/$C$1*100 -> 69.01655795 | F63: Motif:ERV1-N6-I_DR | G63: 350 | H63: =G63+H62 -> 52134 | I63: =H63/$H$1*100 -> 60.93552761 | K63: Motif:Gypsy-18B_PBa-I | L63: 179 | M63: =L63+M62 -> 65665 | N63: =M63/$M$1*100 -> 78.65107978 | P63: Motif:REP-4_PBa | Q63: 165 | R63: =Q63+R62 -> 28949 | S63: =R63/$R$1*100 -> 52.15942055 | U63: Motif:CR1-80_HM | V63: 97 | W63: =V63+W62 -> 19383 | X63: =W63/$W$1*100 -> 61.53333333 | Z63: Motif:CASAT_HD | AA63: 197 | AB63: =AA63+AB62 -> 57354 | AC63: =AB63/$AB$1*100 -> 81.20345462 | AE63: Motif:ENSPM-6_DR | AF63: 17 | AG63: =AF63+AG62 -> 3631 | AH63: =AG63/$AG$1*100 -> 69.69289827 | AJ63: Motif:hAT-N36B_DR | AK63: 7 | AL63: =AK63+AL62 -> 2593 | AM63: =AL63/$AL$1*100 -> 77.17261905 | AO63: Motif:Gypsy-2_CP-I | AP63: 8 | AQ63: =AP63+AQ62 -> 906 | AR63: =AQ63/$AQ$1*100 -> 35.41829554 | AT63: Motif:Gypsy82-LTR_Dr | AU63: 5 | AV63: =AU63+AV62 -> 702 | AW63: =AV63/$AV$1*100 -> 47.75510204
A64: Motif:Mariner-39_HM | B64: 38 | C64: =B64+C63 -> 8291 | D64: =C64/$C$1*100 -> 69.33433685 | F64: Motif:DIRS-15B_DR | G64: 345 | H64: =G64+H63 -> 52479 | I64: =H64/$H$1*100 -> 61.33877227 | K64: Motif:DNA-8-27_DR | L64: 173 | M64: =L64+M63 -> 65838 | N64: =M64/$M$1*100 -> 78.85829271 | P64: Motif:ENSPM2_VV | Q64: 165 | R64: =Q64+R63 -> 29114 | S64: =R64/$R$1*100 -> 52.45671249 | U64: Motif:Mariner-29_HM | V64: 96 | W64: =V64+W63 -> 19479 | X64: =W64/$W$1*100 -> 61.83809524 | Z64: Motif:Rex1-31_DRe | AA64: 196 | AB64: =AA64+AB63 -> 57550 | AC64: =AB64/$AB$1*100 -> 81.4809571 | AE64: Motif:Jockey-6_DK | AF64: 16 | AG64: =AF64+AG63 -> 3647 | AH64: =AG64/$AG$1*100 -> 70 | AJ64: Motif:hAT6-2N1_SP | AK64: 7 | AL64: =AK64+AL63 -> 2600 | AM64: =AL64/$AL$1*100 -> 77.38095238 | AO64: Motif:Gypsy-23_MLP-I | AP64: 8 | AQ64: =AP64+AQ63 -> 914 | AR64: =AQ64/$AQ$1*100 -> 35.73103987 | AT64: Motif:Gypsy61-I_AG | AU64: 5 | AV64: =AU64+AV63 -> 707 | AW64: =AV64/$AV$1*100 -> 48.0952381
A65: Motif:Mariner-15_SIn | B65: 37 | C65: =B65+C64 -> 8328 | D65: =C65/$C$1*100 -> 69.64375314 | F65: Motif:hAT-N70_DR | G65: 342 | H65: =G65+H64 -> 52821 | I65: =H65/$H$1*100 -> 61.73851045 | K65: Motif:MuDr-4_HM | L65: 164 | M65: =L65+M64 -> 66002 | N65: =M65/$M$1*100 -> 79.05472577 | P65: Motif:HAL1-2a_MD | Q65: 164 | R65: =Q65+R64 -> 29278 | S65: =R65/$R$1*100 -> 52.75220266 | U65: Motif:EnSpm-17_HM | V65: 96 | W65: =V65+W64 -> 19575 | X65: =W65/$W$1*100 -> 62.14285714 | Z65: Motif:RT1 | AA65: 191 | AB65: =AA65+AB64 -> 57741 | AC65: =AB65/$AB$1*100 -> 81.75138043 | AE65: Motif:Helitron-2_DR | AF65: 16 | AG65: =AF65+AG64 -> 3663 | AH65: =AG65/$AG$1*100 -> 70.30710173 | AJ65: Motif:Gypsy-9_CCO-I | AK65: 7 | AL65: =AK65+AL64 -> 2607 | AM65: =AL65/$AL$1*100 -> 77.58928571 | AO65: Motif:Gypsy-17_AMi-I | AP65: 8 | AQ65: =AP65+AQ64 -> 922 | AR65: =AQ65/$AQ$1*100 -> 36.04378421 | AT65: Motif:DNA3-4_CGi | AU65: 5 | AV65: =AU65+AV64 -> 712 | AW65: =AV65/$AV$1*100 -> 48.43537415
A66: Motif:hAT-N131_DR | B66: 35 | C66: =B66+C65 -> 8363 | D66: =C66/$C$1*100 -> 69.93644422 | F66: Motif:P-29_HM | G66: 339 | H66: =G66+H65 -> 53160 | I66: =H66/$H$1*100 -> 62.13474216 | K66: Motif:Gypsy-88_CQ-I | L66: 161 | M66: =L66+M65 -> 66163 | N66: =M66/$M$1*100 -> 79.24756555 | P66: Motif:DNA-6-N2_DR | Q66: 164 | R66: =Q66+R65 -> 29442 | S66: =R66/$R$1*100 -> 53.04769283 | U66: Motif:L1-82_DR | V66: 95 | W66: =V66+W65 -> 19670 | X66: =W66/$W$1*100 -> 62.44444444 | Z66: Motif:Mariner-N22_HSal | AA66: 184 | AB66: =AA66+AB65 -> 57925 | AC66: =AB66/$AB$1*100 -> 82.01189296 | AE66: Motif:ERV1-N3-I_DR | AF66: 16 | AG66: =AF66+AG65 -> 3679 | AH66: =AG66/$AG$1*100 -> 70.61420345 | AJ66: Motif:Gypsy-80-I_ZM | AK66: 7 | AL66: =AK66+AL65 -> 2614 | AM66: =AL66/$AL$1*100 -> 77.79761905 | AO66: Motif:Tx1-1_CGi | AP66: 7 | AQ66: =AP66+AQ65 -> 929 | AR66: =AQ66/$AQ$1*100 -> 36.3174355 | AT66: Motif:TE-X-5_DR | AU66: 4 | AV66: =AU66+AV65 -> 716 | AW66: =AV66/$AV$1*100 -> 48.70748299
A67: Motif:EnSpm1_SB | B67: 35 | C67: =B67+C66 -> 8398 | D67: =C67/$C$1*100 -> 70.22913531 | F67: Motif:L2-8_NVi | G67: 315 | H67: =G67+H66 -> 53475 | I67: =H67/$H$1*100 -> 62.50292206 | K67: Motif:hAT-4_PBa | L67: 158 | M67: =L67+M66 -> 66321 | N67: =M67/$M$1*100 -> 79.43681204 | P67: Motif:ERV1-N3-I_DR | Q67: 163 | R67: =Q67+R66 -> 29605 | S67: =R67/$R$1*100 -> 53.34138124 | U67: Motif:Helitron-N2_DR | V67: 94 | W67: =V67+W66 -> 19764 | X67: =W67/$W$1*100 -> 62.74285714 | Z67: Motif:RLTR20A4 | AA67: 181 | AB67: =AA67+AB66 -> 58106 | AC67: =AB67/$AB$1*100 -> 82.26815801 | AE67: Motif:DNA6-9_CGi | AF67: 16 | AG67: =AF67+AG66 -> 3695 | AH67: =AG67/$AG$1*100 -> 70.92130518 | AJ67: Motif:DIRS-1_CR | AK67: 7 | AL67: =AK67+AL66 -> 2621 | AM67: =AL67/$AL$1*100 -> 78.00595238 | AO67: Motif:RAM9B_I-int | AP67: 7 | AQ67: =AP67+AQ66 -> 936 | AR67: =AQ67/$AQ$1*100 -> 36.59108679 | AT67: Motif:RLTR51A_Mm | AU67: 4 | AV67: =AU67+AV66 -> 720 | AW67: =AV67/$AV$1*100 -> 48.97959184
A68: Motif:TE-X-5_DR | B68: 34 | C68: =B68+C67 -> 8432 | D68: =C68/$C$1*100 -> 70.51346379 | F68: Motif:Transib-3_HM | G68: 313 | H68: =G68+H67 -> 53788 | I68: =H68/$H$1*100 -> 62.86876432 | K68: Motif:DNA3-8_STu | L68: 152 | M68: =L68+M67 -> 66473 | N68: =M68/$M$1*100 -> 79.61887195 | P68: Motif:hAT-N4_ALy | Q68: 159 | R68: =Q68+R67 -> 29764 | S68: =R68/$R$1*100 -> 53.62786256 | U68: Motif:hAT-N70_DR | V68: 94 | W68: =V68+W67 -> 19858 | X68: =W68/$W$1*100 -> 63.04126984 | Z68: Motif:Copia-7_ES-I | AA68: 177 | AB68: =AA68+AB67 -> 58283 | AC68: =AB68/$AB$1*100 -> 82.51875973 | AE68: Motif:Tx1-3_PM | AF68: 15 | AG68: =AF68+AG67 -> 3710 | AH68: =AG68/$AG$1*100 -> 71.20921305 | AJ68: Motif:tRNA-1_DRe | AK68: 6 | AL68: =AK68+AL67 -> 2627 | AM68: =AL68/$AL$1*100 -> 78.18452381 | AO68: Motif:HAT2_CI | AP68: 7 | AQ68: =AP68+AQ67 -> 943 | AR68: =AQ68/$AQ$1*100 -> 36.86473808 | AT68: Motif:RLTR32_Rn | AU68: 4 | AV68: =AU68+AV67 -> 724 | AW68: =AV68/$AV$1*100 -> 49.25170068
A69: Motif:LSU-rRNA_Mfr | B69: 34 | C69: =B69+C68 -> 8466 | D69: =C69/$C$1*100 -> 70.79779227 | F69: Motif:Chapaev-3A_HM | G69: 304 | H69: =G69+H68 -> 54092 | I69: =H69/$H$1*100 -> 63.22408715 | K69: Motif:AC9_ZM | L69: 151 | M69: =L69+M68 -> 66624 | N69: =M69/$M$1*100 -> 79.7997341 | P69: Motif:hATm-27_HM | Q69: 159 | R69: =Q69+R68 -> 29923 | S69: =R69/$R$1*100 -> 53.91434389 | U69: Motif:Dada-U6_DR | V69: 92 | W69: =V69+W68 -> 19950 | X69: =W69/$W$1*100 -> 63.33333333 | Z69: Motif:Tx1-3_PM | AA69: 174 | AB69: =AA69+AB68 -> 58457 | AC69: =AB69/$AB$1*100 -> 82.76511397 | AE69: Motif:tRNA-3_DRe | AF69: 15 | AG69: =AF69+AG68 -> 3725 | AH69: =AG69/$AG$1*100 -> 71.49712092 | AJ69: Motif:Sushi_I-int | AK69: 6 | AL69: =AK69+AL68 -> 2633 | AM69: =AL69/$AL$1*100 -> 78.36309524 | AO69: Motif:Gypsy68-I_AG | AP69: 7 | AQ69: =AP69+AQ68 -> 950 | AR69: =AQ69/$AQ$1*100 -> 37.13838937 | AT69: Motif:RLTR20C1_MM | AU69: 4 | AV69: =AU69+AV68 -> 728 | AW69: =AV69/$AV$1*100 -> 49.52380952
A70: Motif:L1-48_DR | B70: 34 | C70: =B70+C69 -> 8500 | D70: =C70/$C$1*100 -> 71.08212076 | F70: Motif:ISL2EU-3N1_CFl | G70: 303 | H70: =G70+H69 -> 54395 | I70: =H70/$H$1*100 -> 63.57824115 | K70: Motif:Harbinger2N_TP | L70: 146 | M70: =L70+M69 -> 66770 | N70: =M70/$M$1*100 -> 79.97460743 | P70: Motif:DNA8-5_DR | Q70: 159 | R70: =Q70+R69 -> 30082 | S70: =R70/$R$1*100 -> 54.20082521 | U70: Motif:Mariner-30_HM | V70: 91 | W70: =V70+W69 -> 20041 | X70: =W70/$W$1*100 -> 63.62222222 | Z70: Motif:EnSpm-5_HM | AA70: 172 | AB70: =AA70+AB69 -> 58629 | AC70: =AB70/$AB$1*100 -> 83.00863656 | AE70: Motif:EnSpm1_SB | AF70: 15 | AG70: =AF70+AG69 -> 3740 | AH70: =AG70/$AG$1*100 -> 71.78502879 | AJ70: Motif:Polinton-8_NVi | AK70: 6 | AL70: =AK70+AL69 -> 2639 | AM70: =AL70/$AL$1*100 -> 78.54166667 | AO70: Motif:Gypsy-67_PAb-I | AP70: 7 | AQ70: =AP70+AQ69 -> 957 | AR70: =AQ70/$AQ$1*100 -> 37.41204066 | AT70: Motif:Mariner-15_SIn | AU70: 4 | AV70: =AU70+AV69 -> 732 | AW70: =AV70/$AV$1*100 -> 49.79591837
A71: Motif:Gypsy120-LTR_DR | B71: 34 | C71: =B71+C70 -> 8534 | D71: =C71/$C$1*100 -> 71.36644924 | F71: Motif:EnSpm-2_TD | G71: 300 | H71: =G71+H70 -> 54695 | I71: =H71/$H$1*100 -> 63.92888868 | K71: Motif:Gypsy-35_CGi-I | L71: 134 | M71: =L71+M70 -> 66904 | N71: =M71/$M$1*100 -> 80.13510762 | P71: Motif:hAT-2_HM | Q71: 158 | R71: =Q71+R70 -> 30240 | S71: =R71/$R$1*100 -> 54.48550477 | U71: Motif:Mariner-14_LCh | V71: 90 | W71: =V71+W70 -> 20131 | X71: =W71/$W$1*100 -> 63.90793651 | Z71: Motif:hAT-42_Lch | AA71: 171 | AB71: =AA71+AB70 -> 58800 | AC71: =AB71/$AB$1*100 -> 83.25074331 | AE71: Motif:Copia-3_SCH-I | AF71: 15 | AG71: =AF71+AG70 -> 3755 | AH71: =AG71/$AG$1*100 -> 72.07293666 | AJ71: Motif:MuDr-1x_SP | AK71: 6 | AL71: =AK71+AL70 -> 2645 | AM71: =AL71/$AL$1*100 -> 78.7202381 | AO71: Motif:Gypsy3-I_VC | AP71: 7 | AQ71: =AP71+AQ70 -> 964 | AR71: =AQ71/$AQ$1*100 -> 37.68569195 | AT71: Motif:LTR24_Sar | AU71: 4 | AV71: =AU71+AV70 -> 736 | AW71: =AV71/$AV$1*100 -> 50.06802721
A72: Motif:HeT-A3_DVi | B72: 33 | C72: =B72+C71 -> 8567 | D72: =C72/$C$1*100 -> 71.64241512 | F72: Motif:Dada-U6_DR | G72: 288 | H72: =G72+H71 -> 54983 | I72: =H72/$H$1*100 -> 64.26551031 | K72: Motif:TE-X-4_DR | L72: 130 | M72: =L72+M71 -> 67034 | N72: =M72/$M$1*100 -> 80.29081675 | P72: Motif:Tx1-1_CGi | Q72: 155 | R72: =Q72+R71 -> 30395 | S72: =R72/$R$1*100 -> 54.76477901 | U72: Motif:Transib-6_HM | V72: 88 | W72: =V72+W71 -> 20219 | X72: =W72/$W$1*100 -> 64.18730159 | Z72: Motif:Daphne-18_HM | AA72: 166 | AB72: =AA72+AB71 -> 58966 | AC72: =AB72/$AB$1*100 -> 83.48577092 | AE72: Motif:Copia-1_SMo-I | AF72: 15 | AG72: =AF72+AG71 -> 3770 | AH72: =AG72/$AG$1*100 -> 72.36084453 | AJ72: Motif:LTR-2_Mad-I | AK72: 6 | AL72: =AK72+AL71 -> 2651 | AM72: =AL72/$AL$1*100 -> 78.89880952 | AO72: Motif:Gypsy2-ZM_I-int | AP72: 7 | AQ72: =AP72+AQ71 -> 971 | AR72: =AQ72/$AQ$1*100 -> 37.95934324 | AT72: Motif:Kolobok-N1_AEc | AU72: 4 | AV72: =AU72+AV71 -> 740 | AW72: =AV72/$AV$1*100 -> 50.34013605
A73: Motif:hAT-N53_DR | B73: 33 | C73: =B73+C72 -> 8600 | D73: =C73/$C$1*100 -> 71.918381 | F73: Motif:Helitron-N1_PBa | G73: 282 | H73: =G73+H72 -> 55265 | I73: =H73/$H$1*100 -> 64.59511899 | K73: Motif:Gypsy-8_DMoj-I | L73: 130 | M73: =L73+M72 -> 67164 | N73: =M73/$M$1*100 -> 80.44652589 | P73: Motif:Nematis_Cr | Q73: 155 | R73: =Q73+R72 -> 30550 | S73: =R73/$R$1*100 -> 55.04405326 | U73: Motif:Dada-U6_SS | V73: 88 | W73: =V73+W72 -> 20307 | X73: =W73/$W$1*100 -> 64.46666667 | Z73: Motif:Helitron-3N3_PM | AA73: 163 | AB73: =AA73+AB72 -> 59129 | AC73: =AB73/$AB$1*100 -> 83.71655104 | AE73: Motif:LTR44B_MD | AF73: 14 | AG73: =AF73+AG72 -> 3784 | AH73: =AG73/$AG$1*100 -> 72.62955854 | AJ73: Motif:Kolobok-3_Aplcal | AK73: 6 | AL73: =AK73+AL72 -> 2657 | AM73: =AL73/$AL$1*100 -> 79.07738095 | AO73: Motif:Gypsy-171-I_DR | AP73: 7 | AQ73: =AP73+AQ72 -> 978 | AR73: =AQ73/$AQ$1*100 -> 38.23299453 | AT73: Motif:Kolobok-10N1_CGi | AU73: 4 | AV73: =AU73+AV72 -> 744 | AW73: =AV73/$AV$1*100 -> 50.6122449
A74: Motif:CR1-80_HM | B74: 33 | C74: =B74+C73 -> 8633 | D74: =C74/$C$1*100 -> 72.19434688 | F74: Motif:Gypsy-120_SB-I | G74: 282 | H74: =G74+H73 -> 55547 | I74: =H74/$H$1*100 -> 64.92472766 | K74: Motif:RTAg4 | L74: 128 | M74: =L74+M73 -> 67292 | N74: =M74/$M$1*100 -> 80.5998395 | P74: Motif:Ginger1-N1_DR | Q74: 152 | R74: =Q74+R73 -> 30702 | S74: =R74/$R$1*100 -> 55.3179222 | U74: Motif:IMPB_01 | V74: 87 | W74: =V74+W73 -> 20394 | X74: =W74/$W$1*100 -> 64.74285714 | Z74: Motif:Mariner-16_SIn | AA74: 162 | AB74: =AA74+AB73 -> 59291 | AC74: =AB74/$AB$1*100 -> 83.94591533 | AE74: Motif:RT1 | AF74: 13 | AG74: =AF74+AG73 -> 3797 | AH74: =AG74/$AG$1*100 -> 72.87907869 | AJ74: Motif:hAT-4_PBa | AK74: 6 | AL74: =AK74+AL73 -> 2663 | AM74: =AL74/$AL$1*100 -> 79.25595238 | AO74: Motif:Gypsy-16_DRh-I | AP74: 7 | AQ74: =AP74+AQ73 -> 985 | AR74: =AQ74/$AQ$1*100 -> 38.50664582 | AT74: Motif:Jockey-6_DK | AU74: 4 | AV74: =AU74+AV73 -> 748 | AW74: =AV74/$AV$1*100 -> 50.88435374
A75: Motif:DNA6-6_DR | B75: 32 | C75: =B75+C74 -> 8665 | D75: =C75/$C$1*100 -> 72.46195016 | F75: Motif:hAT-51_HM | G75: 281 | H75: =G75+H74 -> 55828 | I75: =H75/$H$1*100 -> 65.25316752 | K75: Motif:hAT-N5_ACar | L75: 128 | M75: =L75+M74 -> 67420 | N75: =M75/$M$1*100 -> 80.75315311 | P75: Motif:DNA-TA-4_DR | Q75: 151 | R75: =Q75+R74 -> 30853 | S75: =R75/$R$1*100 -> 55.58998937 | U75: Motif:EnSpm-2_TD | V75: 85 | W75: =V75+W74 -> 20479 | X75: =W75/$W$1*100 -> 65.01269841 | Z75: Motif:DIRS-8B_DR | AA75: 161 | AB75: =AA75+AB74 -> 59452 | AC75: =AB75/$AB$1*100 -> 84.1738638 | AE75: Motif:DNA3-1_CGi | AF75: 13 | AG75: =AF75+AG74 -> 3810 | AH75: =AG75/$AG$1*100 -> 73.12859885 | AJ75: Motif:Gypsy68-I_AG | AK75: 6 | AL75: =AK75+AL74 -> 2669 | AM75: =AL75/$AL$1*100 -> 79.43452381 | AO75: Motif:Gypsy-113_ZM-I | AP75: 7 | AQ75: =AP75+AQ74 -> 992 | AR75: =AQ75/$AQ$1*100 -> 38.78029711 | AT75: Motif:hAT-N36_DR | AU75: 4 | AV75: =AU75+AV74 -> 752 | AW75: =AV75/$AV$1*100 -> 51.15646259
A76: Motif:Chapaev-1_AA | B76: 32 | C76: =B76+C75 -> 8697 | D76: =C76/$C$1*100 -> 72.72955344 | F76: Motif:DNA6-6_DR | G76: 275 | H76: =G76+H75 -> 56103 | I76: =H76/$H$1*100 -> 65.57459442 | K76: Motif:EnSpm-22_SBi | L76: 126 | M76: =L76+M75 -> 67546 | N76: =M76/$M$1*100 -> 80.9040712 | P76: Motif:L2-8_NVi | Q76: 150 | R76: =Q76+R75 -> 31003 | S76: =R76/$R$1*100 -> 55.86025477 | U76: Motif:Gypsy8-SM_I-int | V76: 81 | W76: =V76+W75 -> 20560 | X76: =W76/$W$1*100 -> 65.26984127 | Z76: Motif:LatiHarb1-2 | AA76: 160 | AB76: =AA76+AB75 -> 59612 | AC76: =AB76/$AB$1*100 -> 84.40039643 | AE76: Motif:DNA2-10_CGi | AF76: 13 | AG76: =AF76+AG75 -> 3823 | AH76: =AG76/$AG$1*100 -> 73.378119 | AJ76: Motif:Gypsy-52_BG-I | AK76: 6 | AL76: =AK76+AL75 -> 2675 | AM76: =AL76/$AL$1*100 -> 79.61309524 | AO76: Motif:Ginger1-1_AC | AP76: 7 | AQ76: =AP76+AQ75 -> 999 | AR76: =AQ76/$AQ$1*100 -> 39.0539484 | AT76: Motif:hAT-2_DR | AU76: 4 | AV76: =AU76+AV75 -> 756 | AW76: =AV76/$AV$1*100 -> 51.42857143
A77: Motif:Sat-1_CPa | B77: 31 | C77: =B77+C76 -> 8728 | D77: =C77/$C$1*100 -> 72.98879411 | F77: Motif:EnSpm-N2_DR | G77: 273 | H77: =G77+H76 -> 56376 | I77: =H77/$H$1*100 -> 65.89368367 | K77: Motif:Gypsy-34_NVi-I | L77: 125 | M77: =L77+M76 -> 67671 | N77: =M77/$M$1*100 -> 81.05379152 | P77: Motif:EnSpm-3_TA | Q77: 150 | R77: =Q77+R76 -> 31153 | S77: =R77/$R$1*100 -> 56.13052017 | U77: Motif:RLTR17B_Mm | V77: 79 | W77: =V77+W76 -> 20639 | X77: =W77/$W$1*100 -> 65.52063492 | Z77: Motif:RLTR20C1_MM | AA77: 156 | AB77: =AA77+AB76 -> 59768 | AC77: =AB77/$AB$1*100 -> 84.62126575 | AE77: Motif:Polinton-2A_NV | AF77: 12 | AG77: =AF77+AG76 -> 3835 | AH77: =AG77/$AG$1*100 -> 73.6084453 | AJ77: Motif:Gypsy37-I_AG | AK77: 6 | AL77: =AK77+AL76 -> 2681 | AM77: =AL77/$AL$1*100 -> 79.79166667 | AO77: Motif:DNA8-5_DR | AP77: 7 | AQ77: =AP77+AQ76 -> 1006 | AR77: =AQ77/$AQ$1*100 -> 39.32759969 | AT77: Motif:HARB-6_ALy | AU77: 4 | AV77: =AU77+AV76 -> 760 | AW77: =AV77/$AV$1*100 -> 51.70068027
A78: Motif:MuDr-3_HM | B78: 31 | C78: =B78+C77 -> 8759 | D78: =C78/$C$1*100 -> 73.24803479 | F78: Motif:EnSpm-N14_DR | G78: 263 | H78: =G78+H77 -> 56639 | I78: =H78/$H$1*100 -> 66.20108467 | K78: Motif:EnSpm-10_HM | L78: 120 | M78: =L78+M77 -> 67791 | N78: =M78/$M$1*100 -> 81.19752303 | P78: Motif:DNA2-5_DR | Q78: 150 | R78: =Q78+R77 -> 31303 | S78: =R78/$R$1*100 -> 56.40078557 | U78: Motif:CR1-1_NV | V78: 79 | W78: =V78+W77 -> 20718 | X78: =W78/$W$1*100 -> 65.77142857 | Z78: Motif:ATCopia24I | AA78: 153 | AB78: =AA78+AB77 -> 59921 | AC78: =AB78/$AB$1*100 -> 84.83788758 | AE78: Motif:LTR42_MD | AF78: 12 | AG78: =AF78+AG77 -> 3847 | AH78: =AG78/$AG$1*100 -> 73.83877159 | AJ78: Motif:Gypsy-12_CCO-I | AK78: 6 | AL78: =AK78+AL77 -> 2687 | AM78: =AL78/$AL$1*100 -> 79.9702381 | AO78: Motif:CLOUD-7 | AP78: 7 | AQ78: =AP78+AQ77 -> 1013 | AR78: =AQ78/$AQ$1*100 -> 39.60125098 | AT78: Motif:HAL1-3A_ME | AU78: 4 | AV78: =AU78+AV77 -> 764 | AW78: =AV78/$AV$1*100 -> 51.97278912
A79: Motif:DNA7-N1_DR | B79: 31 | C79: =B79+C78 -> 8790 | D79: =C79/$C$1*100 -> 73.50727546 | F79: Motif:DNA8-26_DR | G79: 263 | H79: =G79+H78 -> 56902 | I79: =H79/$H$1*100 -> 66.50848567 | K79: Motif:ENSPM-6_DR | L79: 115 | M79: =L79+M78 -> 67906 | N79: =M79/$M$1*100 -> 81.33526572 | P79: Motif:L1_AC_7 | Q79: 149 | R79: =Q79+R78 -> 31452 | S79: =R79/$R$1*100 -> 56.6692492 | U79: Motif:DNA8-26_DR | V79: 77 | W79: =V79+W78 -> 20795 | X79: =W79/$W$1*100 -> 66.01587302 | Z79: Motif:HARB-4_Mad | AA79: 152 | AB79: =AA79+AB78 -> 60073 | AC79: =AB79/$AB$1*100 -> 85.05309359 | AE79: Motif:hAT-N34_DR | AF79: 12 | AG79: =AF79+AG78 -> 3859 | AH79: =AG79/$AG$1*100 -> 74.06909789 | AJ79: Motif:DNA-8-5_DR | AK79: 6 | AL79: =AK79+AL78 -> 2693 | AM79: =AL79/$AL$1*100 -> 80.14880952 | AO79: Motif:CER7-I_CE | AP79: 7 | AQ79: =AP79+AQ78 -> 1020 | AR79: =AQ79/$AQ$1*100 -> 39.87490227 | AT79: Motif:Gypsy-9-I_CR | AU79: 4 | AV79: =AU79+AV78 -> 768 | AW79: =AV79/$AV$1*100 -> 52.24489796
A80: Motif:L1-11_DR | B80: 30 | C80: =B80+C79 -> 8820 | D80: =C80/$C$1*100 -> 73.75815354 | F80: Motif:Dada-U6_SS | G80: 257 | H80: =G80+H79 -> 57159 | I80: =H80/$H$1*100 -> 66.80887372 | K80: Motif:hAT-N144_DR | L80: 114 | M80: =L80+M79 -> 68020 | N80: =M80/$M$1*100 -> 81.47181066 | P80: Motif:DNA-8-3_HM | Q80: 149 | R80: =Q80+R79 -> 31601 | S80: =R80/$R$1*100 -> 56.93771283 | U80: Motif:CryptonV-2_DR | V80: 77 | W80: =V80+W79 -> 20872 | X80: =W80/$W$1*100 -> 66.26031746 | Z80: Motif:DNA9TA1_DR | AA80: 152 | AB80: =AA80+AB79 -> 60225 | AC80: =AB80/$AB$1*100 -> 85.26829959 | AE80: Motif:DNA3-10_CGi | AF80: 12 | AG80: =AF80+AG79 -> 3871 | AH80: =AG80/$AG$1*100 -> 74.29942418 | AJ80: Motif:CEREBA_HV-int | AK80: 6 | AL80: =AK80+AL79 -> 2699 | AM80: =AL80/$AL$1*100 -> 80.32738095 | AO80: Motif:tRNA-Pro-CCA | AP80: 6 | AQ80: =AP80+AQ79 -> 1026 | AR80: =AQ80/$AQ$1*100 -> 40.10946052 | AT80: Motif:Gypsy-50_GA-LTR | AU80: 4 | AV80: =AU80+AV79 -> 772 | AW80: =AV80/$AV$1*100 -> 52.5170068
A81: Motif:DIRS-8B_DR | B81: 30 | C81: =B81+C80 -> 8850 | D81: =C81/$C$1*100 -> 74.00903161 | F81: Motif:hAT-N21_DR | G81: 246 | H81: =G81+H80 -> 57405 | I81: =H81/$H$1*100 -> 67.09640469 | K81: Motif:Chaplin5a_FR | L81: 111 | M81: =L81+M80 -> 68131 | N81: =M81/$M$1*100 -> 81.6047623 | P81: Motif:P-30_HM | Q81: 148 | R81: =Q81+R80 -> 31749 | S81: =R81/$R$1*100 -> 57.2043747 | U81: Motif:Polinton3_SM | V81: 75 | W81: =V81+W80 -> 20947 | X81: =W81/$W$1*100 -> 66.4984127 | Z81: Motif:ERV1-1_SSc-I | AA81: 147 | AB81: =AA81+AB80 -> 60372 | AC81: =AB81/$AB$1*100 -> 85.47642645 | AE81: Motif:Copia-7_CPu-I | AF81: 12 | AG81: =AF81+AG80 -> 3883 | AH81: =AG81/$AG$1*100 -> 74.52975048 | AJ81: Motif:Ves2_ML | AK81: 5 | AL81: =AK81+AL80 -> 2704 | AM81: =AL81/$AL$1*100 -> 80.47619048 | AO81: Motif:tRNA-Phe-TTY | AP81: 6 | AQ81: =AP81+AQ80 -> 1032 | AR81: =AQ81/$AQ$1*100 -> 40.34401876 | AT81: Motif:Gypsy37-I_AG | AU81: 4 | AV81: =AU81+AV80 -> 776 | AW81: =AV81/$AV$1*100 -> 52.78911565
A82: Motif:L2-8_NVi | B82: 29 | C82: =B82+C81 -> 8879 | D82: =C82/$C$1*100 -> 74.25154708 | F82: Motif:CryptonV-3_DR | G82: 246 | H82: =G82+H81 -> 57651 | I82: =H82/$H$1*100 -> 67.38393567 | K82: Motif:CR1-79_HM | L82: 108 | M82: =L82+M81 -> 68239 | N82: =M82/$M$1*100 -> 81.73412066 | P82: Motif:hAT-N70_DR | Q82: 148 | R82: =Q82+R81 -> 31897 | S82: =R82/$R$1*100 -> 57.47103656 | U82: Motif:Penelope-12_HM | V82: 74 | W82: =V82+W81 -> 21021 | X82: =W82/$W$1*100 -> 66.73333333 | Z82: Motif:Mariner-13_SIn | AA82: 145 | AB82: =AA82+AB81 -> 60517 | AC82: =AB82/$AB$1*100 -> 85.68172165 | AE82: Motif:CACTA_LP | AF82: 12 | AG82: =AF82+AG81 -> 3895 | AH82: =AG82/$AG$1*100 -> 74.76007678 | AJ82: Motif:TE-X-4_NVi | AK82: 5 | AL82: =AK82+AL81 -> 2709 | AM82: =AL82/$AL$1*100 -> 80.625 | AO82: Motif:tRNAPheTTC_CB | AP82: 6 | AQ82: =AP82+AQ81 -> 1038 | AR82: =AQ82/$AQ$1*100 -> 40.57857701 | AT82: Motif:Gypsy-22_SB-I | AU82: 4 | AV82: =AU82+AV81 -> 780 | AW82: =AV82/$AV$1*100 -> 53.06122449
A83: Motif:ERV-2B_Crp-LTR | B83: 28 | C83: =B83+C82 -> 8907 | D83: =C83/$C$1*100 -> 74.48569995 | F83: Motif:EnSpm-6N1_DR | G83: 245 | H83: =G83+H82 -> 57896 | I83: =H83/$H$1*100 -> 67.67029782 | K83: Motif:hAT6-2_SP | L83: 106 | M83: =L83+M82 -> 68345 | N83: =M83/$M$1*100 -> 81.8610835 | P83: Motif:DNA-11_CGi | Q83: 143 | R83: =Q83+R82 -> 32040 | S83: =R83/$R$1*100 -> 57.72868957 | U83: Motif:L2-8_NVi | V83: 72 | W83: =V83+W82 -> 21093 | X83: =W83/$W$1*100 -> 66.96190476 | Z83: Motif:hAT-310_Ami | AA83: 142 | AB83: =AA83+AB82 -> 60659 | AC83: =AB83/$AB$1*100 -> 85.88276936 | AE83: Motif:Sola1-2_AC | AF83: 11 | AG83: =AF83+AG82 -> 3906 | AH83: =AG83/$AG$1*100 -> 74.97120921 | AJ83: Motif:Sola3-1_BF | AK83: 5 | AL83: =AK83+AL82 -> 2714 | AM83: =AL83/$AL$1*100 -> 80.77380952 | AO83: Motif:TREP54 | AP83: 6 | AQ83: =AP83+AQ82 -> 1044 | AR83: =AQ83/$AQ$1*100 -> 40.81313526 | AT83: Motif:Gypsy118-LTR_DR | AU83: 4 | AV83: =AU83+AV82 -> 784 | AW83: =AV83/$AV$1*100 -> 53.33333333
A84: Motif:RLTR32_Rn | B84: 26 | C84: =B84+C83 -> 8933 | D84: =C84/$C$1*100 -> 74.70312761 | F84: Motif:Helitron-1_HM | G84: 243 | H84: =G84+H83 -> 58139 | I84: =H84/$H$1*100 -> 67.95432232 | K84: Motif:Ag-Jock-1 | L84: 104 | M84: =L84+M83 -> 68449 | N84: =M84/$M$1*100 -> 81.9856508 | P84: Motif:IS3EU-1_DR | Q84: 142 | R84: =Q84+R83 -> 32182 | S84: =R84/$R$1*100 -> 57.98454082 | U84: Motif:Gypsy-8_HMM-LTR | V84: 72 | W84: =V84+W83 -> 21165 | X84: =W84/$W$1*100 -> 67.19047619 | Z84: Motif:Mariner-18_HSal | AA84: 135 | AB84: =AA84+AB83 -> 60794 | AC84: =AB84/$AB$1*100 -> 86.07390627 | AE84: Motif:Mariner-2_MBr | AF84: 11 | AG84: =AF84+AG83 -> 3917 | AH84: =AG84/$AG$1*100 -> 75.18234165 | AJ84: Motif:Mariner-2_SLL | AK84: 5 | AL84: =AK84+AL83 -> 2719 | AM84: =AL84/$AL$1*100 -> 80.92261905 | AO84: Motif:RTAg4 | AP84: 6 | AQ84: =AP84+AQ83 -> 1050 | AR84: =AQ84/$AQ$1*100 -> 41.04769351 | AT84: Motif:Eri-2B2_EE | AU84: 4 | AV84: =AU84+AV83 -> 788 | AW84: =AV84/$AV$1*100 -> 53.60544218
A85: Motif:Merlin-1_DR | B85: 26 | C85: =B85+C84 -> 8959 | D85: =C85/$C$1*100 -> 74.92055528 | F85: Motif:EnSpm-7_DR | G85: 242 | H85: =G85+H84 -> 58381 | I85: =H85/$H$1*100 -> 68.23717799 | K85: Motif:Gypsy-600_AA-I | L85: 103 | M85: =L85+M84 -> 68552 | N85: =M85/$M$1*100 -> 82.10902035 | P85: Motif:EnSpm-17_HM | Q85: 141 | R85: =Q85+R84 -> 32323 | S85: =R85/$R$1*100 -> 58.2385903 | U85: Motif:Ginger1-1_AC | V85: 72 | W85: =V85+W84 -> 21237 | X85: =W85/$W$1*100 -> 67.41904762 | Z85: Motif:HATN11B_DR | AA85: 134 | AB85: =AA85+AB84 -> 60928 | AC85: =AB85/$AB$1*100 -> 86.26362735 | AE85: Motif:hAT-N36C_DR | AF85: 11 | AG85: =AF85+AG84 -> 3928 | AH85: =AG85/$AG$1*100 -> 75.39347409 | AJ85: Motif:LTR4_Str | AK85: 5 | AL85: =AK85+AL84 -> 2724 | AM85: =AL85/$AL$1*100 -> 81.07142857 | AO85: Motif:L1-11_DR | AP85: 6 | AQ85: =AP85+AQ84 -> 1056 | AR85: =AQ85/$AQ$1*100 -> 41.28225176 | AT85: Motif:EnSpm-N14_DR | AU85: 4 | AV85: =AU85+AV84 -> 792 | AW85: =AV85/$AV$1*100 -> 53.87755102
A86: Motif:Mariner-79B_HSal | B86: 26 | C86: =B86+C85 -> 8985 | D86: =C86/$C$1*100 -> 75.13798294 | F86: Motif:Mariner-N13_HSal | G86: 239 | H86: =G86+H85 -> 58620 | I86: =H86/$H$1*100 -> 68.51652719 | K86: Motif:DNA-TA-4_DR | L86: 101 | M86: =L86+M85 -> 68653 | N86: =M86/$M$1*100 -> 82.22999437 | P86: Motif:Gypsy1-I_Dmoj | Q86: 140 | R86: =Q86+R85 -> 32463 | S86: =R86/$R$1*100 -> 58.490838 | U86: Motif:tRNA-Met-i | V86: 71 | W86: =V86+W85 -> 21308 | X86: =W86/$W$1*100 -> 67.64444444 | Z86: Motif:CACTA_LP | AA86: 128 | AB86: =AA86+AB85 -> 61056 | AC86: =AB86/$AB$1*100 -> 86.44485346 | AE86: Motif:Gypsy-31-LTR_DR | AF86: 11 | AG86: =AF86+AG85 -> 3939 | AH86: =AG86/$AG$1*100 -> 75.60460653 | AJ86: Motif:L1_Ele5 | AK86: 5 | AL86: =AK86+AL85 -> 2729 | AM86: =AL86/$AL$1*100 -> 81.2202381 | AO86: Motif:Helitron-N3_CGi | AP86: 6 | AQ86: =AP86+AQ85 -> 1062 | AR86: =AQ86/$AQ$1*100 -> 41.51681001 | AT86: Motif:EnSpm-N13_DR | AU86: 4 | AV86: =AU86+AV85 -> 796 | AW86: =AV86/$AV$1*100 -> 54.14965986
A87: Motif:SAT-23_DR | B87: 25 | C87: =B87+C86 -> 9010 | D87: =C87/$C$1*100 -> 75.347048 | F87: Motif:Chapaev-3_HM | G87: 238 | H87: =G87+H86 -> 58858 | I87: =H87/$H$1*100 -> 68.79470756 | K87: Motif:Polinton-2_HM | L87: 100 | M87: =L87+M86 -> 68753 | N87: =M87/$M$1*100 -> 82.34977063 | P87: Motif:ERV1-N6-I_DR | Q87: 138 | R87: =Q87+R86 -> 32601 | S87: =R87/$R$1*100 -> 58.73948217 | U87: Motif:Helitron-1_HM | V87: 71 | W87: =V87+W86 -> 21379 | X87: =W87/$W$1*100 -> 67.86984127 | Z87: Motif:Sola1-2_AC | AA87: 127 | AB87: =AA87+AB86 -> 61183 | AC87: =AB87/$AB$1*100 -> 86.62466374 | AE87: Motif:DNA6-6_DR | AF87: 11 | AG87: =AF87+AG86 -> 3950 | AH87: =AG87/$AG$1*100 -> 75.81573896 | AJ87: Motif:L1-8_CR | AK87: 5 | AL87: =AK87+AL86 -> 2734 | AM87: =AL87/$AL$1*100 -> 81.36904762 | AO87: Motif:Gypsy-7_ADe-I | AP87: 6 | AQ87: =AP87+AQ86 -> 1068 | AR87: =AQ87/$AQ$1*100 -> 41.75136826 | AT87: Motif:DNA3-13B_CGi | AU87: 4 | AV87: =AU87+AV86 -> 800 | AW87: =AV87/$AV$1*100 -> 54.42176871
A88: Motif:LTR-12D_Gav | B88: 25 | C88: =B88+C87 -> 9035 | D88: =C88/$C$1*100 -> 75.55611306 | F88: Motif:HAT-10_Mad | G88: 236 | H88: =G88+H87 -> 59094 | I88: =H88/$H$1*100 -> 69.07055028 | K88: Motif:Jockey-3_DGri | L88: 99 | M88: =L88+M87 -> 68852 | N88: =M88/$M$1*100 -> 82.46834912 | P88: Motif:Copia-1-I_HS | Q88: 137 | R88: =Q88+R87 -> 32738 | S88: =R88/$R$1*100 -> 58.98632457 | U88: Motif:Ginger1-N1_DR | V88: 71 | W88: =V88+W87 -> 21450 | X88: =W88/$W$1*100 -> 68.0952381 | Z88: Motif:Mariner-N10_SIn | AA88: 127 | AB88: =AA88+AB87 -> 61310 | AC88: =AB88/$AB$1*100 -> 86.80447402 | AE88: Motif:Mariner-17_AEc | AF88: 10 | AG88: =AF88+AG87 -> 3960 | AH88: =AG88/$AG$1*100 -> 76.00767754 | AJ88: Motif:hAT6-2_SP | AK88: 5 | AL88: =AK88+AL87 -> 2739 | AM88: =AL88/$AL$1*100 -> 81.51785714 | AO88: Motif:Gypsy-3_MLP-I | AP88: 6 | AQ88: =AP88+AQ87 -> 1074 | AR88: =AQ88/$AQ$1*100 -> 41.98592651 | AT88: Motif:Copia-7_ES-I | AU88: 4 | AV88: =AU88+AV87 -> 804 | AW88: =AV88/$AV$1*100 -> 54.69387755
A89: Motif:Kolobok-2_AP | B89: 25 | C89: =B89+C88 -> 9060 | D89: =C89/$C$1*100 -> 75.76517812 | F89: Motif:Gypsy-8_DSe-I | G89: 229 | H89: =G89+H88 -> 59323 | I89: =H89/$H$1*100 -> 69.33821123 | K89: Motif:DIRS-8_DR | L89: 98 | M89: =L89+M88 -> 68950 | N89: =M89/$M$1*100 -> 82.58572986 | P89: Motif:Proto1-2_NG | Q89: 136 | R89: =Q89+R88 -> 32874 | S89: =R89/$R$1*100 -> 59.2313652 | U89: Motif:Transib-2_HM | V89: 69 | W89: =V89+W88 -> 21519 | X89: =W89/$W$1*100 -> 68.31428571 | Z89: Motif:Mariner-14_SIn | AA89: 126 | AB89: =AA89+AB88 -> 61436 | AC89: =AB89/$AB$1*100 -> 86.98286847 | AE89: Motif:L1-11_GM | AF89: 10 | AG89: =AF89+AG88 -> 3970 | AH89: =AG89/$AG$1*100 -> 76.19961612 | AJ89: Motif:Harbinger2-1_NV | AK89: 5 | AL89: =AK89+AL88 -> 2744 | AM89: =AL89/$AL$1*100 -> 81.66666667 | AO89: Motif:Gypsy-3_DEl-I | AP89: 6 | AQ89: =AP89+AQ88 -> 1080 | AR89: =AQ89/$AQ$1*100 -> 42.22048475 | AT89: Motif:TUBE2 | AU89: 3 | AV89: =AU89+AV88 -> 807 | AW89: =AV89/$AV$1*100 -> 54.89795918
A90: Motif:EnSpm-3_TA | B90: 24 | C90: =B90+C89 -> 9084 | D90: =C90/$C$1*100 -> 75.96588058 | F90: Motif:CryptonV-2_DR | G90: 229 | H90: =G90+H89 -> 59552 | I90: =H90/$H$1*100 -> 69.60587218 | K90: Motif:SAT2_CM | L90: 97 | M90: =L90+M89 -> 69047 | N90: =M90/$M$1*100 -> 82.70191283 | P90: Motif:Copia17-NVi_I-int | Q90: 133 | R90: =Q90+R89 -> 33007 | S90: =R90/$R$1*100 -> 59.47100052 | U90: Motif:hAT-N107_DR | V90: 68 | W90: =V90+W89 -> 21587 | X90: =W90/$W$1*100 -> 68.53015873 | Z90: Motif:LOOPERN2_DR | AA90: 126 | AB90: =AA90+AB89 -> 61562 | AC90: =AB90/$AB$1*100 -> 87.16126292 | AE90: Motif:Helitron-N35_CGi | AF90: 10 | AG90: =AF90+AG89 -> 3980 | AH90: =AG90/$AG$1*100 -> 76.3915547 | AJ90: Motif:HARB-6_ALy | AK90: 5 | AL90: =AK90+AL89 -> 2749 | AM90: =AL90/$AL$1*100 -> 81.81547619 | AO90: Motif:Gypsy-12_CCO-I | AP90: 6 | AQ90: =AP90+AQ89 -> 1086 | AR90: =AQ90/$AQ$1*100 -> 42.455043 | AT90: Motif:tRNAGlyGGC_CB | AU90: 3 | AV90: =AU90+AV89 -> 810 | AW90: =AV90/$AV$1*100 -> 55.10204082
A91: Motif:CASAT_HD | B91: 24 | C91: =B91+C90 -> 9108 | D91: =C91/$C$1*100 -> 76.16658304 | F91: Motif:Kolobok-2_XT | G91: 227 | H91: =G91+H90 -> 59779 | I91: =H91/$H$1*100 -> 69.87119547 | K91: Motif:L1-4_VC | L91: 97 | M91: =L91+M90 -> 69144 | N91: =M91/$M$1*100 -> 82.8180958 | P91: Motif:SAT-23_DR | Q91: 132 | R91: =Q91+R90 -> 33139 | S91: =R91/$R$1*100 -> 59.70883408 | U91: Motif:IS3EU-4_DR | V91: 67 | W91: =V91+W90 -> 21654 | X91: =W91/$W$1*100 -> 68.74285714 | Z91: Motif:RNLTR2d | AA91: 115 | AB91: =AA91+AB90 -> 61677 | AC91: =AB91/$AB$1*100 -> 87.32408325 | AE91: Motif:Helitron-N34_CGi | AF91: 10 | AG91: =AF91+AG90 -> 3990 | AH91: =AG91/$AG$1*100 -> 76.58349328 | AJ91: Motif:HAL1-2a_MD | AK91: 5 | AL91: =AK91+AL90 -> 2754 | AM91: =AL91/$AL$1*100 -> 81.96428571 | AO91: Motif:Gypsy-10_DTa-I | AP91: 6 | AQ91: =AP91+AQ90 -> 1092 | AR91: =AQ91/$AQ$1*100 -> 42.68960125 | AT91: Motif:tRNA-Asp-GAY | AU91: 3 | AV91: =AU91+AV90 -> 813 | AW91: =AV91/$AV$1*100 -> 55.30612245
A92: Motif:RLTR20A4 | B92: 23 | C92: =B92+C91 -> 9131 | D92: =C92/$C$1*100 -> 76.3589229 | F92: Motif:L1-48_DR | G92: 224 | H92: =G92+H91 -> 60003 | I92: =H92/$H$1*100 -> 70.1330123 | K92: Motif:DNA9-4_FV | L92: 94 | M92: =L92+M91 -> 69238 | N92: =M92/$M$1*100 -> 82.93068548 | P92: Motif:Helitron-4_DR | Q92: 131 | R92: =Q92+R91 -> 33270 | S92: =R92/$R$1*100 -> 59.94486586 | U92: Motif:Helitron-4_DR | V92: 67 | W92: =V92+W91 -> 21721 | X92: =W92/$W$1*100 -> 68.95555556 | Z92: Motif:Mariner-17_AEc | AA92: 114 | AB92: =AA92+AB91 -> 61791 | AC92: =AB92/$AB$1*100 -> 87.48548775 | AE92: Motif:HATN11_DR | AF92: 10 | AG92: =AF92+AG91 -> 4000 | AH92: =AG92/$AG$1*100 -> 76.77543186 | AJ92: Motif:Gypsy-83_MLP-I | AK92: 5 | AL92: =AK92+AL91 -> 2759 | AM92: =AL92/$AL$1*100 -> 82.11309524 | AO92: Motif:DNA9-3_DR | AP92: 6 | AQ92: =AP92+AQ91 -> 1098 | AR92: =AQ92/$AQ$1*100 -> 42.9241595 | AT92: Motif:tRNA-1_DRe | AU92: 3 | AV92: =AU92+AV91 -> 816 | AW92: =AV92/$AV$1*100 -> 55.51020408
A93: Motif:Poseidon-2B_PM | B93: 23 | C93: =B93+C92 -> 9154 | D93: =C93/$C$1*100 -> 76.55126275 | F93: Motif:Copia2-LTR_VC | G93: 223 | H93: =G93+H92 -> 60226 | I93: =H93/$H$1*100 -> 70.39366029 | K93: Motif:SR2A | L93: 92 | M93: =L93+M92 -> 69330 | N93: =M93/$M$1*100 -> 83.04087964 | P93: Motif:MuDr-3_HM | Q93: 130 | R93: =Q93+R92 -> 33400 | S93: =R93/$R$1*100 -> 60.17909587 | U93: Motif:EnSpm-6N1_DR | V93: 66 | W93: =V93+W92 -> 21787 | X93: =W93/$W$1*100 -> 69.16507937 | Z93: Motif:Daphne-73_HMa | AA93: 114 | AB93: =AA93+AB92 -> 61905 | AC93: =AB93/$AB$1*100 -> 87.64689226 | AE93: Motif:Gypsy-1_AC-I | AF93: 10 | AG93: =AF93+AG92 -> 4010 | AH93: =AG93/$AG$1*100 -> 76.96737044 | AJ93: Motif:Gypsy-62_BG-LTR | AK93: 5 | AL93: =AK93+AL92 -> 2764 | AM93: =AL93/$AL$1*100 -> 82.26190476 | AO93: Motif:DNA3-14_CGi | AP93: 6 | AQ93: =AP93+AQ92 -> 1104 | AR93: =AQ93/$AQ$1*100 -> 43.15871775 | AT93: Motif:Polinton-2_PBa | AU93: 3 | AV93: =AU93+AV92 -> 819 | AW93: =AV93/$AV$1*100 -> 55.71428571
A94: Motif:LSU-rRNA_Hca | B94: 23 | C94: =B94+C93 -> 9177 | D94: =C94/$C$1*100 -> 76.74360261 | F94: Motif:EnSpm-2_HM | G94: 221 | H94: =G94+H93 -> 60447 | I94: =H94/$H$1*100 -> 70.65197064 | K94: Motif:LTR4_Str | L94: 87 | M94: =L94+M93 -> 69417 | N94: =M94/$M$1*100 -> 83.14508498 | P94: Motif:Helitron-2_DR | Q94: 128 | R94: =Q94+R93 -> 33528 | S94: =R94/$R$1*100 -> 60.40972235 | U94: Motif:hAT-2N1_TC | V94: 65 | W94: =V94+W93 -> 21852 | X94: =W94/$W$1*100 -> 69.37142857 | Z94: Motif:Kolobok-N1_AEc | AA94: 113 | AB94: =AA94+AB93 -> 62018 | AC94: =AB94/$AB$1*100 -> 87.80688093 | AE94: Motif:EnSpm-7_DR | AF94: 10 | AG94: =AF94+AG93 -> 4020 | AH94: =AG94/$AG$1*100 -> 77.15930902 | AJ94: Motif:Gypsy-29_DWil-I | AK94: 5 | AL94: =AK94+AL93 -> 2769 | AM94: =AL94/$AL$1*100 -> 82.41071429 | AO94: Motif:DNA-11_CGi | AP94: 6 | AQ94: =AP94+AQ93 -> 1110 | AR94: =AQ94/$AQ$1*100 -> 43.393276 | AT94: Motif:Polinton-1_SP | AU94: 3 | AV94: =AU94+AV93 -> 822 | AW94: =AV94/$AV$1*100 -> 55.91836735
A95: Motif:TART_DV | B95: 22 | C95: =B95+C94 -> 9199 | D95: =C95/$C$1*100 -> 76.92757986 | F95: Motif:Mariner-62_HSal | G95: 213 | H95: =G95+H94 -> 60660 | I95: =H95/$H$1*100 -> 70.90093038 | K95: Motif:Copia-13_FV-I | L95: 86 | M95: =L95+M94 -> 69503 | N95: =M95/$M$1*100 -> 83.24809256 | P95: Motif:CryptonV-2_DR | Q95: 127 | R95: =Q95+R94 -> 33655 | S95: =R95/$R$1*100 -> 60.63854705 | U95: Motif:Gypsy-22_DWil-I | V95: 65 | W95: =V95+W94 -> 21917 | X95: =W95/$W$1*100 -> 69.57777778 | Z95: Motif:Gypsy-50_GA-LTR | AA95: 105 | AB95: =AA95+AB94 -> 62123 | AC95: =AB95/$AB$1*100 -> 87.95554297 | AE95: Motif:DNA-1_FV | AF95: 10 | AG95: =AF95+AG94 -> 4030 | AH95: =AG95/$AG$1*100 -> 77.3512476 | AJ95: Motif:Gypsy-13_TA-I | AK95: 5 | AL95: =AK95+AL94 -> 2774 | AM95: =AL95/$AL$1*100 -> 82.55952381 | AO95: Motif:CLOUD-4 | AP95: 6 | AQ95: =AP95+AQ94 -> 1116 | AR95: =AQ95/$AQ$1*100 -> 43.62783425 | AT95: Motif:MERMITE18C | AU95: 3 | AV95: =AU95+AV94 -> 825 | AW95: =AV95/$AV$1*100 -> 56.12244898
A96: Motif:LTR24_Sar | B96: 22 | C96: =B96+C95 -> 9221 | D96: =C96/$C$1*100 -> 77.11155712 | F96: Motif:hAT-47_HM | G96: 213 | H96: =G96+H95 -> 60873 | I96: =H96/$H$1*100 -> 71.14989013 | K96: Motif:Ambal-3N1_FCy | L96: 86 | M96: =L96+M95 -> 69589 | N96: =M96/$M$1*100 -> 83.35110014 | P96: Motif:Polinton-9_NVi | Q96: 126 | R96: =Q96+R95 -> 33781 | S96: =R96/$R$1*100 -> 60.86556999 | U96: Motif:EnSpm-30_SBi | V96: 65 | W96: =V96+W95 -> 21982 | X96: =W96/$W$1*100 -> 69.78412698 | Z96: Motif:hAT-50_HM | AA96: 104 | AB96: =AA96+AB95 -> 62227 | AC96: =AB96/$AB$1*100 -> 88.10278918 | AE96: Motif:Copia7-PTR_I-int | AF96: 10 | AG96: =AF96+AG95 -> 4040 | AH96: =AG96/$AG$1*100 -> 77.54318618 | AJ96: Motif:EnSpm-9_DR | AK96: 5 | AL96: =AK96+AL95 -> 2779 | AM96: =AL96/$AL$1*100 -> 82.70833333 | AO96: Motif:CACTA_LP | AP96: 6 | AQ96: =AP96+AQ95 -> 1122 | AR96: =AQ96/$AQ$1*100 -> 43.86239249 | AT96: Motif:Mariner-N22_HSal | AU96: 3 | AV96: =AU96+AV95 -> 828 | AW96: =AV96/$AV$1*100 -> 56.32653061
A97: Motif:hAT-42_Lch | B97: 22 | C97: =B97+C96 -> 9243 | D97: =C97/$C$1*100 -> 77.29553437 | F97: Motif:Gypsy-1_DWil-I | G97: 209 | H97: =G97+H96 -> 61082 | I97: =H97/$H$1*100 -> 71.39417458 | K97: Motif:Sola1-1_AC | L97: 84 | M97: =L97+M96 -> 69673 | N97: =M97/$M$1*100 -> 83.4517122 | P97: Motif:hAT-4_PBa | Q97: 126 | R97: =Q97+R96 -> 33907 | S97: =R97/$R$1*100 -> 61.09259293 | U97: Motif:SAT-23_DR | V97: 64 | W97: =V97+W96 -> 22046 | X97: =W97/$W$1*100 -> 69.98730159 | Z97: Motif:Gypsy61-I_AG | AA97: 103 | AB97: =AA97+AB96 -> 62330 | AC97: =AB97/$AB$1*100 -> 88.24861957 | AE97: Motif:Copia-7_ES-I | AF97: 10 | AG97: =AF97+AG96 -> 4050 | AH97: =AG97/$AG$1*100 -> 77.73512476 | AJ97: Motif:EnSpm-17_HM | AK97: 5 | AL97: =AK97+AL96 -> 2784 | AM97: =AL97/$AL$1*100 -> 82.85714286 | AO97: Motif:ALRY-MAJOR_PT | AP97: 6 | AQ97: =AP97+AQ96 -> 1128 | AR97: =AQ97/$AQ$1*100 -> 44.09695074 | AT97: Motif:Mariner-18_HSal | AU97: 3 | AV97: =AU97+AV96 -> 831 | AW97: =AV97/$AV$1*100 -> 56.53061224
A98: Motif:hAT-2_DR | B98: 22 | C98: =B98+C97 -> 9265 | D98: =C98/$C$1*100 -> 77.47951162 | F98: Motif:L1-1_STu | G98: 208 | H98: =G98+H97 -> 61290 | I98: =H98/$H$1*100 -> 71.6372902 | K98: Motif:Polinton-1_DR | L98: 84 | M98: =L98+M97 -> 69757 | N98: =M98/$M$1*100 -> 83.55232426 | P98: Motif:Merlin-1_DR | Q98: 125 | R98: =Q98+R97 -> 34032 | S98: =R98/$R$1*100 -> 61.31781409 | U98: Motif:Chapaev-3_HM | V98: 64 | W98: =V98+W97 -> 22110 | X98: =W98/$W$1*100 -> 70.19047619 | Z98: Motif:DIRS-4_DR | AA98: 103 | AB98: =AA98+AB97 -> 62433 | AC98: =AB98/$AB$1*100 -> 88.39444995 | AE98: Motif:Copia-5_ES-I | AF98: 10 | AG98: =AF98+AG97 -> 4060 | AH98: =AG98/$AG$1*100 -> 77.92706334 | AJ98: Motif:DNA-3_FV | AK98: 5 | AL98: =AK98+AL97 -> 2789 | AM98: =AL98/$AL$1*100 -> 83.00595238 | AO98: Motif:Tx1-4_SK | AP98: 5 | AQ98: =AP98+AQ97 -> 1133 | AR98: =AQ98/$AQ$1*100 -> 44.29241595 | AT98: Motif:LSU-rRNA_Mfr | AU98: 3 | AV98: =AU98+AV97 -> 834 | AW98: =AV98/$AV$1*100 -> 56.73469388
A99: Motif:Crack-2_SP | B99: 21 | C99: =B99+C98 -> 9286 | D99: =C99/$C$1*100 -> 77.65512628 | F99: Motif:MuDR-1_NV | G99: 205 | H99: =G99+H98 -> 61495 | I99: =H99/$H$1*100 -> 71.87689934 | K99: Motif:L1-58_ACar | L99: 84 | M99: =L99+M98 -> 69841 | N99: =M99/$M$1*100 -> 83.65293631 | P99: Motif:LSU-rRNA_Mfr | Q99: 124 | R99: =Q99+R98 -> 34156 | S99: =R99/$R$1*100 -> 61.54123349 | U99: Motif:EnSpm8_SB | V99: 63 | W99: =V99+W98 -> 22173 | X99: =W99/$W$1*100 -> 70.39047619 | Z99: Motif:MINIME_DN | AA99: 102 | AB99: =AA99+AB98 -> 62535 | AC99: =AB99/$AB$1*100 -> 88.53886451 | AE99: Motif:Copia-119_SB-I | AF99: 10 | AG99: =AF99+AG98 -> 4070 | AH99: =AG99/$AG$1*100 -> 78.11900192 | AJ99: Motif:DNA2-10_CGi | AK99: 5 | AL99: =AK99+AL98 -> 2794 | AM99: =AL99/$AL$1*100 -> 83.1547619 | AO99: Motif:tRNASAT-1_ZM | AP99: 5 | AQ99: =AP99+AQ98 -> 1138 | AR99: =AQ99/$AQ$1*100 -> 44.48788116 | AT99: Motif:L2_Plat1i | AU99: 3 | AV99: =AU99+AV98 -> 837 | AW99: =AV99/$AV$1*100 -> 56.93877551
A100: Motif:Mariner-18_HSal | B100: 20 | C100: =B100+C99 -> 9306 | D100: =C100/$C$1*100 -> 77.82237832 | F100: Motif:L1-56_DR | G100: 198 | H100: =G100+H99 -> 61693 | I100: =H100/$H$1*100 -> 72.10832671 | K100: Motif:Ginger1-5_HM | L100: 84 | M100: =L100+M99 -> 69925 | N100: =M100/$M$1*100 -> 83.75354837 | P100: Motif:DNA-2-12_DR | Q100: 123 | R100: =Q100+R99 -> 34279 | S100: =R100/$R$1*100 -> 61.76285112 | U100: Motif:DNA6-6_DR | V100: 63 | W100: =V100+W99 -> 22236 | X100: =W100/$W$1*100 -> 70.59047619 | Z100: Motif:hAT-2_HM | AA100: 101 | AB100: =AA100+AB99 -> 62636 | AC100: =AB100/$AB$1*100 -> 88.68186323 | AE100: Motif:Ves2_ML | AF100: 9 | AG100: =AF100+AG99 -> 4079 | AH100: =AG100/$AG$1*100 -> 78.29174664 | AJ100: Motif:DNA-11_CGi | AK100: 5 | AL100: =AK100+AL99 -> 2799 | AM100: =AL100/$AL$1*100 -> 83.30357143 | AO100: Motif:tRNA-Arg-AGA | AP100: 5 | AQ100: =AP100+AQ99 -> 1143 | AR100: =AQ100/$AQ$1*100 -> 44.68334636 | AT100: Motif:ISL2EU-3N1_CFl | AU100: 3 | AV100: =AU100+AV99 -> 840 | AW100: =AV100/$AV$1*100 -> 57.14285714
A101: Motif:Helitron-N1_PBa | B101: 20 | C101: =B101+C100 -> 9326 | D101: =C101/$C$1*100 -> 77.98963037 | F101: Motif:Harbinger-2_DR | G101: 198 | H101: =G101+H100 -> 61891 | I101: =H101/$H$1*100 -> 72.33975408 | K101: Motif:Sat-2_STu | L101: 82 | M101: =L101+M100 -> 70007 | N101: =M101/$M$1*100 -> 83.8517649 | P101: Motif:Transib-6_HM | Q101: 120 | R101: =Q101+R100 -> 34399 | S101: =R101/$R$1*100 -> 61.97906344 | U101: Motif:EnSpm-21_HMa | V101: 62 | W101: =V101+W100 -> 22298 | X101: =W101/$W$1*100 -> 70.78730159 | Z101: Motif:Gypsy8-I_Dpse | AA101: 101 | AB101: =AA101+AB100 -> 62737 | AC101: =AB101/$AB$1*100 -> 88.82486196 | AE101: Motif:LTR24_Sar | AF101: 9 | AG101: =AF101+AG100 -> 4088 | AH101: =AG101/$AG$1*100 -> 78.46449136 | AJ101: Motif:Dada-1_BF | AK101: 5 | AL101: =AK101+AL100 -> 2804 | AM101: =AL101/$AL$1*100 -> 83.45238095 | AO101: Motif:TIRANT_I-int | AP101: 5 | AQ101: =AP101+AQ100 -> 1148 | AR101: =AQ101/$AQ$1*100 -> 44.87881157 | AT101: Motif:Helitron-N34_CGi | AU101: 3 | AV101: =AU101+AV100 -> 843 | AW101: =AV101/$AV$1*100 -> 57.34693878
A102: Motif:hATa-1_EHux | B102: 20 | C102: =B102+C101 -> 9346 | D102: =C102/$C$1*100 -> 78.15688242 | F102: Motif:Chapaev-1_AA | G102: 194 | H102: =G102+H101 -> 62085 | I102: =H102/$H$1*100 -> 72.56650615 | K102: Motif:Gypsy3-LTR_AP | L102: 82 | M102: =L102+M101 -> 70089 | N102: =M102/$M$1*100 -> 83.94998143 | P102: Motif:Gypsy-47_Mad-I | Q102: 120 | R102: =Q102+R101 -> 34519 | S102: =R102/$R$1*100 -> 62.19527576 | U102: Motif:EnSpm1_SB | V102: 61 | W102: =V102+W101 -> 22359 | X102: =W102/$W$1*100 -> 70.98095238 | Z102: Motif:Jockey-6_DK | AA102: 100 | AB102: =AA102+AB101 -> 62837 | AC102: =AB102/$AB$1*100 -> 88.96644485 | AE102: Motif:ISL2EU-3N1_CFl | AF102: 9 | AG102: =AF102+AG101 -> 4097 | AH102: =AG102/$AG$1*100 -> 78.63723608 | AJ102: Motif:Copia17-NVi_I-int | AK102: 5 | AL102: =AK102+AL101 -> 2809 | AM102: =AL102/$AL$1*100 -> 83.60119048 | AO102: Motif:SAT-1_SK | AP102: 5 | AQ102: =AP102+AQ101 -> 1153 | AR102: =AQ102/$AQ$1*100 -> 45.07427678 | AT102: Motif:hAT-N36B_DR | AU102: 3 | AV102: =AU102+AV101 -> 846 | AW102: =AV102/$AV$1*100 -> 57.55102041
A103: Motif:CryptonV-2_DR | B103: 20 | C103: =B103+C102 -> 9366 | D103: =C103/$C$1*100 -> 78.32413447 | F103: Motif:EnSpm-30_SBi | G103: 187 | H103: =G103+H102 -> 62272 | I103: =H103/$H$1*100 -> 72.78507644 | K103: Motif:DNA6-6_DR | L103: 82 | M103: =L103+M102 -> 70171 | N103: =M103/$M$1*100 -> 84.04819797 | P103: Motif:Gypsy6-I_Dmoj | Q103: 119 | R103: =Q103+R102 -> 34638 | S103: =R103/$R$1*100 -> 62.40968631 | U103: Motif:Ginger1-6_HM | V103: 60 | W103: =V103+W102 -> 22419 | X103: =W103/$W$1*100 -> 71.17142857 | Z103: Motif:Gypsy118-LTR_DR | AA103: 98 | AB103: =AA103+AB102 -> 62935 | AC103: =AB103/$AB$1*100 -> 89.10519609 | AE103: Motif:hAT-21_CPB | AF103: 9 | AG103: =AF103+AG102 -> 4106 | AH103: =AG103/$AG$1*100 -> 78.80998081 | AJ103: Motif:CACTA-1_Ccinerea | AK103: 5 | AL103: =AK103+AL102 -> 2814 | AM103: =AL103/$AL$1*100 -> 83.75 | AO103: Motif:Sat-1_CPa | AP103: 5 | AQ103: =AP103+AQ102 -> 1158 | AR103: =AQ103/$AQ$1*100 -> 45.26974199 | AT103: Motif:hAT-4_PBa | AU103: 3 | AV103: =AU103+AV102 -> 849 | AW103: =AV103/$AV$1*100 -> 57.75510204
A104: Motif:P-30_HM | B104: 19 | C104: =B104+C103 -> 9385 | D104: =C104/$C$1*100 -> 78.48302392 | F104: Motif:hAT-2_DR | G104: 184 | H104: =G104+H103 -> 62456 | I104: =H104/$H$1*100 -> 73.00014026 | K104: Motif:DNA3-1_STu | L104: 81 | M104: =L104+M103 -> 70252 | N104: =M104/$M$1*100 -> 84.14521674 | P104: Motif:EnSpm-30_SBi | Q104: 118 | R104: =Q104+R103 -> 34756 | S104: =R104/$R$1*100 -> 62.62229509 | U104: Motif:DNA-TA-4_DR | V104: 59 | W104: =V104+W103 -> 22478 | X104: =W104/$W$1*100 -> 71.35873016 | Z104: Motif:Polinton-1_SP | AA104: 97 | AB104: =AA104+AB103 -> 63032 | AC104: =AB104/$AB$1*100 -> 89.2425315 | AE104: Motif:Gypsy8-I_Dpse | AF104: 9 | AG104: =AF104+AG103 -> 4115 | AH104: =AG104/$AG$1*100 -> 78.98272553 | AJ104: Motif:tRNA-Leu-CTY | AK104: 4 | AL104: =AK104+AL103 -> 2818 | AM104: =AL104/$AL$1*100 -> 83.86904762 | AO104: Motif:RETROSAT5_I-int | AP104: 5 | AQ104: =AP104+AQ103 -> 1163 | AR104: =AQ104/$AQ$1*100 -> 45.46520719 | AT104: Motif:HAT-4N3_Mad | AU104: 3 | AV104: =AU104+AV103 -> 852 | AW104: =AV104/$AV$1*100 -> 57.95918367
A105: Motif:MuDR-4_GM | B105: 19 | C105: =B105+C104 -> 9404 | D105: =C105/$C$1*100 -> 78.64191336 | F105: Motif:L1-82_DR | G105: 183 | H105: =G105+H104 -> 62639 | I105: =H105/$H$1*100 -> 73.21403525 | K105: Motif:Helitron-9_CGi | L105: 77 | M105: =L105+M104 -> 70329 | N105: =M105/$M$1*100 -> 84.23744445 | P105: Motif:TE-X-5_DR | Q105: 115 | R105: =Q105+R104 -> 34871 | S105: =R105/$R$1*100 -> 62.82949857 | U105: Motif:hAT-2n1_DR | V105: 58 | W105: =V105+W104 -> 22536 | X105: =W105/$W$1*100 -> 71.54285714 | Z105: Motif:Mariner-N39_HSal | AA105: 96 | AB105: =AA105+AB104 -> 63128 | AC105: =AB105/$AB$1*100 -> 89.37845108 | AE105: Motif:Ginger1-2_DR | AF105: 9 | AG105: =AF105+AG104 -> 4124 | AH105: =AG105/$AG$1*100 -> 79.15547025 | AJ105: Motif:tRNA-Ile-ATT | AK105: 4 | AL105: =AK105+AL104 -> 2822 | AM105: =AL105/$AL$1*100 -> 83.98809524 | AO105: Motif:MARY1_TM | AP105: 5 | AQ105: =AP105+AQ104 -> 1168 | AR105: =AQ105/$AQ$1*100 -> 45.6606724 | AT105: Motif:HAT-4N1_Mad | AU105: 3 | AV105: =AU105+AV104 -> 855 | AW105: =AV105/$AV$1*100 -> 58.16326531
A106: Motif:Mariner-59N1_HSal | B106: 19 | C106: =B106+C105 -> 9423 | D106: =C106/$C$1*100 -> 78.80080281 | F106: Motif:EnSpm-21_HMa | G106: 182 | H106: =G106+H105 -> 62821 | I106: =H106/$H$1*100 -> 73.42676142 | K106: Motif:Daphne-18_HM | L106: 77 | M106: =L106+M105 -> 70406 | N106: =M106/$M$1*100 -> 84.32967217 | P106: Motif:Gypsy-18_PBa-I | Q106: 114 | R106: =Q106+R105 -> 34985 | S106: =R106/$R$1*100 -> 63.03490027 | U106: Motif:Ginger1-5_HM | V106: 57 | W106: =V106+W105 -> 22593 | X106: =W106/$W$1*100 -> 71.72380952 | Z106: Motif:LSU-rRNA_Mfr | AA106: 92 | AB106: =AA106+AB105 -> 63220 | AC106: =AB106/$AB$1*100 -> 89.50870735 | AE106: Motif:EnSpm1_HV | AF106: 9 | AG106: =AF106+AG105 -> 4133 | AH106: =AG106/$AG$1*100 -> 79.32821497 | AJ106: Motif:RT2 | AK106: 4 | AL106: =AK106+AL105 -> 2826 | AM106: =AL106/$AL$1*100 -> 84.10714286 | AO106: Motif:Kiri-3_CQ | AP106: 5 | AQ106: =AP106+AQ105 -> 1173 | AR106: =AQ106/$AQ$1*100 -> 45.85613761 | AT106: Motif:Gypsy-62_BG-LTR | AU106: 3 | AV106: =AU106+AV105 -> 858 | AW106: =AV106/$AV$1*100 -> 58.36734694
A107: Motif:Dada-U6_SS | B107: 19 | C107: =B107+C106 -> 9442 | D107: =C107/$C$1*100 -> 78.95969226 | F107: Motif:EnSpm-14_HM | G107: 179 | H107: =G107+H106 -> 63000 | I107: =H107/$H$1*100 -> 73.63598111 | K107: Motif:Gypsy-2_PGr-I | L107: 75 | M107: =L107+M106 -> 70481 | N107: =M107/$M$1*100 -> 84.41950437 | P107: Motif:HATN16_DR | Q107: 111 | R107: =Q107+R106 -> 35096 | S107: =R107/$R$1*100 -> 63.23489667 | U107: Motif:TART_DV | V107: 56 | W107: =V107+W106 -> 22649 | X107: =W107/$W$1*100 -> 71.9015873 | Z107: Motif:ISL2EU-1_LHu | AA107: 89 | AB107: =AA107+AB106 -> 63309 | AC107: =AB107/$AB$1*100 -> 89.63471613 | AE107: Motif:DNA-TA-4_DR | AF107: 9 | AG107: =AF107+AG106 -> 4142 | AH107: =AG107/$AG$1*100 -> 79.50095969 | AJ107: Motif:REP-4_PBa | AK107: 4 | AL107: =AK107+AL106 -> 2830 | AM107: =AL107/$AL$1*100 -> 84.22619048 | AO107: Motif:HAL1-1H_Cpo | AP107: 5 | AQ107: =AP107+AQ106 -> 1178 | AR107: =AQ107/$AQ$1*100 -> 46.05160281 | AT107: Motif:Gypsy-35_CGi-I | AU107: 3 | AV107: =AU107+AV106 -> 861 | AW107: =AV107/$AV$1*100 -> 58.57142857
A108: Motif:Copia2-LTR_VC | B108: 19 | C108: =B108+C107 -> 9461 | D108: =C108/$C$1*100 -> 79.1185817 | F108: Motif:EnSpm-3_TA | G108: 178 | H108: =G108+H107 -> 63178 | I108: =H108/$H$1*100 -> 73.84403198 | K108: Motif:Zator-1_HRo | L108: 74 | M108: =L108+M107 -> 70555 | N108: =M108/$M$1*100 -> 84.5081388 | P108: Motif:DNA8-10_CGi | Q108: 108 | R108: =Q108+R107 -> 35204 | S108: =R108/$R$1*100 -> 63.42948776 | U108: Motif:Gypsy-18B_PBa-I | V108: 56 | W108: =V108+W107 -> 22705 | X108: =W108/$W$1*100 -> 72.07936508 | Z108: Motif:IS3EU-1_DR | AA108: 89 | AB108: =AA108+AB107 -> 63398 | AC108: =AB108/$AB$1*100 -> 89.7607249 | AE108: Motif:DNA5-4_CGi | AF108: 9 | AG108: =AF108+AG107 -> 4151 | AH108: =AG108/$AG$1*100 -> 79.67370441 | AJ108: Motif:R7Ag2 | AK108: 4 | AL108: =AK108+AL107 -> 2834 | AM108: =AL108/$AL$1*100 -> 84.3452381 | AO108: Motif:Gypsy-8_DMoj-I | AP108: 5 | AQ108: =AP108+AQ107 -> 1183 | AR108: =AQ108/$AQ$1*100 -> 46.24706802 | AT108: Motif:Gypsy-23_DEl-I | AU108: 3 | AV108: =AU108+AV107 -> 864 | AW108: =AV108/$AV$1*100 -> 58.7755102
A109: Motif:Mariner-N22_HSal | B109: 18 | C109: =B109+C108 -> 9479 | D109: =C109/$C$1*100 -> 79.26910855 | F109: Motif:EnSpm-15_HM | G109: 178 | H109: =G109+H108 -> 63356 | I109: =H109/$H$1*100 -> 74.05208285 | K109: Motif:HAT-N6_Mad | L109: 71 | M109: =L109+M108 -> 70626 | N109: =M109/$M$1*100 -> 84.59317994 | P109: Motif:Gypsy-31-LTR_DR | Q109: 107 | R109: =Q109+R108 -> 35311 | S109: =R109/$R$1*100 -> 63.62227708 | U109: Motif:DNA-1-7_DR | V109: 56 | W109: =V109+W108 -> 22761 | X109: =W109/$W$1*100 -> 72.25714286 | Z109: Motif:Academ-4_SP | AA109: 86 | AB109: =AA109+AB108 -> 63484 | AC109: =AB109/$AB$1*100 -> 89.8824862 | AE109: Motif:DNA4-6_CGi | AF109: 9 | AG109: =AF109+AG108 -> 4160 | AH109: =AG109/$AG$1*100 -> 79.84644914 | AJ109: Motif:Mariner-62_HSal | AK109: 4 | AL109: =AK109+AL108 -> 2838 | AM109: =AL109/$AL$1*100 -> 84.46428571 | AO109: Motif:Gypsy-6_LH-I | AP109: 5 | AQ109: =AP109+AQ108 -> 1188 | AR109: =AQ109/$AQ$1*100 -> 46.44253323 | AT109: Motif:ERV38_MD-int | AU109: 3 | AV109: =AU109+AV108 -> 867 | AW109: =AV109/$AV$1*100 -> 58.97959184
A110: Motif:LatiHarb1-2 | B110: 18 | C110: =B110+C109 -> 9497 | D110: =C110/$C$1*100 -> 79.41963539 | F110: Motif:SAT-23_DR | G110: 169 | H110: =G110+H109 -> 63525 | I110: =H110/$H$1*100 -> 74.24961429 | K110: Motif:ROO_I-int | L110: 69 | M110: =L110+M109 -> 70695 | N110: =M110/$M$1*100 -> 84.67582556 | P110: Motif:CR1_Ele9 | Q110: 107 | R110: =Q110+R109 -> 35418 | S110: =R110/$R$1*100 -> 63.8150664 | U110: Motif:TRE3D | V110: 55 | W110: =V110+W109 -> 22816 | X110: =W110/$W$1*100 -> 72.43174603 | Z110: Motif:Gypsy-21_PBa-LTR | AA110: 85 | AB110: =AA110+AB109 -> 63569 | AC110: =AB110/$AB$1*100 -> 90.00283166 | AE110: Motif:Copia-47_Mad-LTR | AF110: 9 | AG110: =AF110+AG109 -> 4169 | AH110: =AG110/$AG$1*100 -> 80.01919386 | AJ110: Motif:Kolobok-7_CGi | AK110: 4 | AL110: =AK110+AL109 -> 2842 | AM110: =AL110/$AL$1*100 -> 84.58333333 | AO110: Motif:Gypsy-5_PX-I | AP110: 5 | AQ110: =AP110+AQ109 -> 1193 | AR110: =AQ110/$AQ$1*100 -> 46.63799844 | AT110: Motif:EnSpm-7_DR | AU110: 3 | AV110: =AU110+AV109 -> 870 | AW110: =AV110/$AV$1*100 -> 59.18367347
A111: Motif:Zisupton-1_DR | B111: 17 | C111: =B111+C110 -> 9514 | D111: =C111/$C$1*100 -> 79.56179963 | F111: Motif:Harbinger-1_DR | G111: 169 | H111: =G111+H110 -> 63694 | I111: =H111/$H$1*100 -> 74.44714573 | K111: Motif:Gypsy4-SM_I-int | L111: 67 | M111: =L111+M110 -> 70762 | N111: =M111/$M$1*100 -> 84.75607565 | P111: Motif:MUDRAVI1 | Q111: 106 | R111: =Q111+R110 -> 35524 | S111: =R111/$R$1*100 -> 64.00605394 | U111: Motif:EnSpm-15_HM | V111: 55 | W111: =V111+W110 -> 22871 | X111: =W111/$W$1*100 -> 72.60634921 | Z111: Motif:EnSpm-N10_DR | AA111: 85 | AB111: =AA111+AB110 -> 63654 | AC111: =AB111/$AB$1*100 -> 90.12317712 | AE111: Motif:tRNA-Gly-GGY | AF111: 8 | AG111: =AF111+AG110 -> 4177 | AH111: =AG111/$AG$1*100 -> 80.17274472 | AJ111: Motif:ISL2EU-8_CGi | AK111: 4 | AL111: =AK111+AL110 -> 2846 | AM111: =AL111/$AL$1*100 -> 84.70238095 | AO111: Motif:Gypsy-57_SB-I | AP111: 5 | AQ111: =AP111+AQ110 -> 1198 | AR111: =AQ111/$AQ$1*100 -> 46.83346364 | AT111: Motif:ENSPM-6_ZM | AU111: 3 | AV111: =AU111+AV110 -> 873 | AW111: =AV111/$AV$1*100 -> 59.3877551
A112: Motif:HELITRON7_OS | B112: 17 | C112: =B112+C111 -> 9531 | D112: =C112/$C$1*100 -> 79.70396387 | F112: Motif:TSESSEBEII | G112: 168 | H112: =G112+H111 -> 63862 | I112: =H112/$H$1*100 -> 74.64350835 | K112: Motif:Gypsy1-I_Dmoj | L112: 66 | M112: =L112+M111 -> 70828 | N112: =M112/$M$1*100 -> 84.83512798 | P112: Motif:EnSpm-7_HM | Q112: 106 | R112: =Q112+R111 -> 35630 | S112: =R112/$R$1*100 -> 64.19704149 | U112: Motif:Sat-1_CPa | V112: 53 | W112: =V112+W111 -> 22924 | X112: =W112/$W$1*100 -> 72.77460317 | Z112: Motif:DNA3-11_Mad | AA112: 84 | AB112: =AA112+AB111 -> 63738 | AC112: =AB112/$AB$1*100 -> 90.24210675 | AE112: Motif:Sola3-1_CapOwc | AF112: 8 | AG112: =AF112+AG111 -> 4185 | AH112: =AG112/$AG$1*100 -> 80.32629559 | AJ112: Motif:Gypsy-7_CPB-I | AK112: 4 | AL112: =AK112+AL111 -> 2850 | AM112: =AL112/$AL$1*100 -> 84.82142857 | AO112: Motif:Gypsy-53_PM-LTR | AP112: 5 | AQ112: =AP112+AQ111 -> 1203 | AR112: =AQ112/$AQ$1*100 -> 47.02892885 | AT112: Motif:EnSpm-5_HM | AU112: 3 | AV112: =AU112+AV111 -> 876 | AW112: =AV112/$AV$1*100 -> 59.59183673
A113: Motif:hAT-N70_DR | B113: 17 | C113: =B113+C112 -> 9548 | D113: =C113/$C$1*100 -> 79.84612812 | F113: Motif:hAT-N53_DR | G113: 163 | H113: =G113+H112 -> 64025 | I113: =H113/$H$1*100 -> 74.83402684 | K113: Motif:DNA8-25_DR | L113: 66 | M113: =L113+M112 -> 70894 | N113: =M113/$M$1*100 -> 84.91418031 | P113: Motif:MdoLTR2-int | Q113: 103 | R113: =Q113+R112 -> 35733 | S113: =R113/$R$1*100 -> 64.38262374 | U113: Motif:L1-67_DR | V113: 53 | W113: =V113+W112 -> 22977 | X113: =W113/$W$1*100 -> 72.94285714 | Z113: Motif:Mariner-29_AEc | AA113: 80 | AB113: =AA113+AB112 -> 63818 | AC113: =AB113/$AB$1*100 -> 90.35537307 | AE113: Motif:RMER17D | AF113: 8 | AG113: =AF113+AG112 -> 4193 | AH113: =AG113/$AG$1*100 -> 80.47984645 | AJ113: Motif:Gypsy-64_BG-I | AK113: 4 | AL113: =AK113+AL112 -> 2854 | AM113: =AL113/$AL$1*100 -> 84.94047619 | AO113: Motif:Gypsy53-I_AG | AP113: 5 | AQ113: =AP113+AQ112 -> 1208 | AR113: =AQ113/$AQ$1*100 -> 47.22439406 | AT113: Motif:DNA-3_FV | AU113: 3 | AV113: =AU113+AV112 -> 879 | AW113: =AV113/$AV$1*100 -> 59.79591837
A114: Motif:EnSpm-30_SBi | B114: 17 | C114: =B114+C113 -> 9565 | D114: =C114/$C$1*100 -> 79.98829236 | F114: Motif:Helitron-2_HM | G114: 162 | H114: =G114+H113 -> 64187 | I114: =H114/$H$1*100 -> 75.0233765 | K114: Motif:Mf3_MF | L114: 65 | M114: =L114+M113 -> 70959 | N114: =M114/$M$1*100 -> 84.99203488 | P114: Motif:Kolobok-4_DR | Q114: 102 | R114: =Q114+R113 -> 35835 | S114: =R114/$R$1*100 -> 64.56640421 | U114: Motif:HATN16_DR | V114: 53 | W114: =V114+W113 -> 23030 | X114: =W114/$W$1*100 -> 73.11111111 | Z114: Motif:Crack-2_SP | AA114: 80 | AB114: =AA114+AB113 -> 63898 | AC114: =AB114/$AB$1*100 -> 90.46863939 | AE114: Motif:RLTR51A_Mm | AF114: 8 | AG114: =AF114+AG113 -> 4201 | AH114: =AG114/$AG$1*100 -> 80.63339731 | AJ114: Motif:Gypsy-35_CGi-I | AK114: 4 | AL114: =AK114+AL113 -> 2858 | AM114: =AL114/$AL$1*100 -> 85.05952381 | AO114: Motif:Gypsy-4_GM-I | AP114: 5 | AQ114: =AP114+AQ113 -> 1213 | AR114: =AQ114/$AQ$1*100 -> 47.41985927 | AT114: Motif:DNA3-14_CGi | AU114: 3 | AV114: =AU114+AV113 -> 882 | AW114: =AV114/$AV$1*100 -> 60
A115: Motif:5SrRNA-1_BG | B115: 17 | C115: =B115+C114 -> 9582 | D115: =C115/$C$1*100 -> 80.1304566 | F115: Motif:Transib-10_HM | G115: 160 | H115: =G115+H114 -> 64347 | I115: =H115/$H$1*100 -> 75.21038852 | K115: Motif:CACTA_LP | L115: 65 | M115: =L115+M114 -> 71024 | N115: =M115/$M$1*100 -> 85.06988945 | P115: Motif:EnSpm-10_HM | Q115: 101 | R115: =Q115+R114 -> 35936 | S115: =R115/$R$1*100 -> 64.74838291 | U115: Motif:hAT-N131_DR | V115: 53 | W115: =V115+W114 -> 23083 | X115: =W115/$W$1*100 -> 73.27936508 | Z115: Motif:TRAS3_BM | AA115: 74 | AB115: =AA115+AB114 -> 63972 | AC115: =AB115/$AB$1*100 -> 90.57341073 | AE115: Motif:Mariner-15_SIn | AF115: 8 | AG115: =AF115+AG114 -> 4209 | AH115: =AG115/$AG$1*100 -> 80.78694818 | AJ115: Motif:Gypsy-1_CMe-I | AK115: 4 | AL115: =AK115+AL114 -> 2862 | AM115: =AL115/$AL$1*100 -> 85.17857143 | AO115: Motif:Gypsy-44_CGi-I | AP115: 5 | AQ115: =AP115+AQ114 -> 1218 | AR115: =AQ115/$AQ$1*100 -> 47.61532447 | AT115: Motif:Dada-1_BF | AU115: 3 | AV115: =AU115+AV114 -> 885 | AW115: =AV115/$AV$1*100 -> 60.20408163
A116: Motif:LSU-rRNA_Sce | B116: 16 | C116: =B116+C115 -> 9598 | D116: =C116/$C$1*100 -> 80.26425824 | F116: Motif:Helitron-N2_DR | G116: 160 | H116: =G116+H115 -> 64507 | I116: =H116/$H$1*100 -> 75.39740053 | K116: Motif:Gypsy-71_BG-I | L116: 64 | M116: =L116+M115 -> 71088 | N116: =M116/$M$1*100 -> 85.14654625 | P116: Motif:Gypsy-18B_PBa-I | Q116: 99 | R116: =Q116+R115 -> 36035 | S116: =R116/$R$1*100 -> 64.92675808 | U116: Motif:hAT-51_HM | V116: 53 | W116: =V116+W115 -> 23136 | X116: =W116/$W$1*100 -> 73.44761905 | Z116: Motif:LatiHarb1-1 | AA116: 70 | AB116: =AA116+AB115 -> 64042 | AC116: =AB116/$AB$1*100 -> 90.67251876 | AE116: Motif:IS3EU-N1_CGi | AF116: 8 | AG116: =AF116+AG115 -> 4217 | AH116: =AG116/$AG$1*100 -> 80.94049904 | AJ116: Motif:Gypsy-19_SB-I | AK116: 4 | AL116: =AK116+AL115 -> 2866 | AM116: =AL116/$AL$1*100 -> 85.29761905 | AO116: Motif:Gypsy-40_PT-I | AP116: 5 | AQ116: =AP116+AQ115 -> 1223 | AR116: =AQ116/$AQ$1*100 -> 47.81078968 | AT116: Motif:Copia-75_Mad-LTR | AU116: 3 | AV116: =AU116+AV115 -> 888 | AW116: =AV116/$AV$1*100 -> 60.40816327
A117: Motif:LOOPERN2_DR | B117: 16 | C117: =B117+C116 -> 9614 | D117: =C117/$C$1*100 -> 80.39805988 | F117: Motif:hAT-42_HM | G117: 160 | H117: =G117+H116 -> 64667 | I117: =H117/$H$1*100 -> 75.58441255 | K117: Motif:hATw-1_SP | L117: 62 | M117: =L117+M116 -> 71150 | N117: =M117/$M$1*100 -> 85.22080753 | P117: Motif:EnSpm-4_HM | Q117: 99 | R117: =Q117+R116 -> 36134 | S117: =R117/$R$1*100 -> 65.10513324 | U117: Motif:HAT1_DR | V117: 53 | W117: =V117+W116 -> 23189 | X117: =W117/$W$1*100 -> 73.61587302 | Z117: Motif:Ginger1-N1_DR | AA117: 70 | AB117: =AA117+AB116 -> 64112 | AC117: =AB117/$AB$1*100 -> 90.77162679 | AE117: Motif:HERVIP10FH-int | AF117: 8 | AG117: =AF117+AG116 -> 4225 | AH117: =AG117/$AG$1*100 -> 81.0940499 | AJ117: Motif:GRANDE1_ZD-int | AK117: 4 | AL117: =AK117+AL116 -> 2870 | AM117: =AL117/$AL$1*100 -> 85.41666667 | AO117: Motif:Gypsy-36_NVi-I | AP117: 5 | AQ117: =AP117+AQ116 -> 1228 | AR117: =AQ117/$AQ$1*100 -> 48.00625489 | AT117: Motif:Copia-1_SCH-I | AU117: 3 | AV117: =AU117+AV116 -> 891 | AW117: =AV117/$AV$1*100 -> 60.6122449
A118: Motif:HATN11B_DR | B118: 16 | C118: =B118+C117 -> 9630 | D118: =C118/$C$1*100 -> 80.53186152 | F118: Motif:EnSpm-16_SBi | G118: 157 | H118: =G118+H117 -> 64824 | I118: =H118/$H$1*100 -> 75.76791809 | K118: Motif:Gypsy-29_DWil-I | L118: 62 | M118: =L118+M117 -> 71212 | N118: =M118/$M$1*100 -> 85.29506881 | P118: Motif:Gypsy-22_DWil-I | Q118: 97 | R118: =Q118+R117 -> 36231 | S118: =R118/$R$1*100 -> 65.27990487 | U118: Motif:DNA-2-24_DR | V118: 53 | W118: =V118+W117 -> 23242 | X118: =W118/$W$1*100 -> 73.78412698 | Z118: Motif:HAT1_DR | AA118: 63 | AB118: =AA118+AB117 -> 64175 | AC118: =AB118/$AB$1*100 -> 90.86082401 | AE118: Motif:hAT-N36B_DR | AF118: 8 | AG118: =AF118+AG117 -> 4233 | AH118: =AG118/$AG$1*100 -> 81.24760077 | AJ118: Motif:ERV1-1_SSc-I | AK118: 4 | AL118: =AK118+AL117 -> 2874 | AM118: =AL118/$AL$1*100 -> 85.53571429 | AO118: Motif:Gypsy-27_MLP-I | AP118: 5 | AQ118: =AP118+AQ117 -> 1233 | AR118: =AQ118/$AQ$1*100 -> 48.20172009 | AT118: Motif:Copia-14_BG-I | AU118: 3 | AV118: =AU118+AV117 -> 894 | AW118: =AV118/$AV$1*100 -> 60.81632653
A119: Motif:ERV38_MD-int | B119: 16 | C119: =B119+C118 -> 9646 | D119: =C119/$C$1*100 -> 80.66566315 | F119: Motif:DNA-X-5_DR | G119: 155 | H119: =G119+H118 -> 64979 | I119: =H119/$H$1*100 -> 75.94908598 | K119: Motif:APO2_AP | L119: 62 | M119: =L119+M118 -> 71274 | N119: =M119/$M$1*100 -> 85.36933009 | P119: Motif:Kolobok-2_AP | Q119: 95 | R119: =Q119+R118 -> 36326 | S119: =R119/$R$1*100 -> 65.45107295 | U119: Motif:P-29_HM | V119: 52 | W119: =V119+W118 -> 23294 | X119: =W119/$W$1*100 -> 73.94920635 | Z119: Motif:Copia17-NVi_I-int | AA119: 63 | AB119: =AA119+AB118 -> 64238 | AC119: =AB119/$AB$1*100 -> 90.95002124 | AE119: Motif:Gypsy-50_GA-LTR | AF119: 8 | AG119: =AF119+AG118 -> 4241 | AH119: =AG119/$AG$1*100 -> 81.40115163 | AJ119: Motif:Dada-tL_DR | AK119: 4 | AL119: =AK119+AL118 -> 2878 | AM119: =AL119/$AL$1*100 -> 85.6547619 | AO119: Motif:EnSpm-5_HM | AP119: 5 | AQ119: =AP119+AQ118 -> 1238 | AR119: =AQ119/$AQ$1*100 -> 48.3971853 | AT119: Motif:ATCopia24I | AU119: 3 | AV119: =AU119+AV118 -> 897 | AW119: =AV119/$AV$1*100 -> 61.02040816
A120: Motif:DNA8-26_DR | B120: 16 | C120: =B120+C119 -> 9662 | D120: =C120/$C$1*100 -> 80.79946479 | F120: Motif:DNA-8-5_DR | G120: 155 | H120: =G120+H119 -> 65134 | I120: =H120/$H$1*100 -> 76.13025387 | K120: Motif:Ambal-2_FCy | L120: 61 | M120: =L120+M119 -> 71335 | N120: =M120/$M$1*100 -> 85.44239361 | P120: Motif:hAT-N6_ACar | Q120: 95 | R120: =Q120+R119 -> 36421 | S120: =R120/$R$1*100 -> 65.62224104 | U120: Motif:P-1_DR | V120: 52 | W120: =V120+W119 -> 23346 | X120: =W120/$W$1*100 -> 74.11428571 | Z120: Motif:hAT-12_VVi | AA120: 62 | AB120: =AA120+AB119 -> 64300 | AC120: =AB120/$AB$1*100 -> 91.03780263 | AE120: Motif:Eri-2B2_EE | AF120: 8 | AG120: =AF120+AG119 -> 4249 | AH120: =AG120/$AG$1*100 -> 81.5547025 | AJ120: Motif:CR1-2_CQ | AK120: 4 | AL120: =AK120+AL119 -> 2882 | AM120: =AL120/$AL$1*100 -> 85.77380952 | AO120: Motif:DINOLT1 | AP120: 5 | AQ120: =AP120+AQ119 -> 1243 | AR120: =AQ120/$AQ$1*100 -> 48.59265051 | AT120: Motif:Academ-1_SK | AU120: 3 | AV120: =AU120+AV119 -> 900 | AW120: =AV120/$AV$1*100 -> 61.2244898
A121: Motif:DNA2-5_DR | B121: 16 | C121: =B121+C120 -> 9678 | D121: =C121/$C$1*100 -> 80.93326643 | F121: Motif:Chapaev-20_HM | G121: 152 | H121: =G121+H120 -> 65286 | I121: =H121/$H$1*100 -> 76.30791528 | K121: Motif:Polinton-3_TC | L121: 59 | M121: =L121+M120 -> 71394 | N121: =M121/$M$1*100 -> 85.5130616 | P121: Motif:DNA3-4_CGi | Q121: 94 | R121: =Q121+R120 -> 36515 | S121: =R121/$R$1*100 -> 65.79160736 | U121: Motif:CryptonV-3_DR | V121: 52 | W121: =V121+W120 -> 23398 | X121: =W121/$W$1*100 -> 74.27936508 | Z121: Motif:Gypsy68-I_AG | AA121: 62 | AB121: =AA121+AB120 -> 64362 | AC121: =AB121/$AB$1*100 -> 91.12558403 | AE121: Motif:DNA2-7_CGi | AF121: 8 | AG121: =AF121+AG120 -> 4257 | AH121: =AG121/$AG$1*100 -> 81.70825336 | AJ121: Motif:Copia-1_CMe-I | AK121: 4 | AL121: =AK121+AL120 -> 2886 | AM121: =AL121/$AL$1*100 -> 85.89285714 | AO121: Motif:Copia-21_PX-I | AP121: 5 | AQ121: =AP121+AQ120 -> 1248 | AR121: =AQ121/$AQ$1*100 -> 48.78811572 | AT121: Motif:XILON1_ZM-int | AU121: 2 | AV121: =AU121+AV120 -> 902 | AW121: =AV121/$AV$1*100 -> 61.36054422
A122: Motif:SSU-rRNA_Sme | B122: 15 | C122: =B122+C121 -> 9693 | D122: =C122/$C$1*100 -> 81.05870547 | F122: Motif:Gypsy-22_DWil-I | G122: 150 | H122: =G122+H121 -> 65436 | I122: =H122/$H$1*100 -> 76.48323905 | K122: Motif:hAT-N5_ALy | L122: 59 | M122: =L122+M121 -> 71453 | N122: =M122/$M$1*100 -> 85.58372959 | P122: Motif:Mariner-39_HM | Q122: 93 | R122: =Q122+R121 -> 36608 | S122: =R122/$R$1*100 -> 65.95917191 | U122: Motif:HeT-A3_DVi | V122: 51 | W122: =V122+W121 -> 23449 | X122: =W122/$W$1*100 -> 74.44126984 | Z122: Motif:Gypsy-1_AC-I | AA122: 62 | AB122: =AA122+AB121 -> 64424 | AC122: =AB122/$AB$1*100 -> 91.21336543 | AE122: Motif:tRNA-1_DRe | AF122: 7 | AG122: =AF122+AG121 -> 4264 | AH122: =AG122/$AG$1*100 -> 81.84261036 | AJ122: Motif:Tx1-8_AMi | AK122: 3 | AL122: =AK122+AL121 -> 2889 | AM122: =AL122/$AL$1*100 -> 85.98214286 | AO122: Motif:CIRCE | AP122: 5 | AQ122: =AP122+AQ121 -> 1253 | AR122: =AQ122/$AQ$1*100 -> 48.98358092 | AT122: Motif:TUBE3 | AU122: 2 | AV122: =AU122+AV121 -> 904 | AW122: =AV122/$AV$1*100 -> 61.49659864
A123: Motif:SSU-rRNA_Sce | B123: 15 | C123: =B123+C122 -> 9708 | D123: =C123/$C$1*100 -> 81.18414451 | F123: Motif:HARB-4_Mad | G123: 147 | H123: =G123+H122 -> 65583 | I123: =H123/$H$1*100 -> 76.65505634 | K123: Motif:DIRS-8B_DR | L123: 59 | M123: =L123+M122 -> 71512 | N123: =M123/$M$1*100 -> 85.65439759 | P123: Motif:ATCopia24I | Q123: 93 | R123: =Q123+R122 -> 36701 | S123: =R123/$R$1*100 -> 66.12673646 | U123: Motif:hATm-19_HM | V123: 51 | W123: =V123+W122 -> 23500 | X123: =W123/$W$1*100 -> 74.6031746 | Z123: Motif:DNA8-5_DR | AA123: 61 | AB123: =AA123+AB122 -> 64485 | AC123: =AB123/$AB$1*100 -> 91.29973099 | AE123: Motif:RNLTR15A2 | AF123: 7 | AG123: =AF123+AG122 -> 4271 | AH123: =AG123/$AG$1*100 -> 81.97696737 | AJ123: Motif:tRNA-Pro-CCY | AK123: 3 | AL123: =AK123+AL122 -> 2892 | AM123: =AL123/$AL$1*100 -> 86.07142857 | AO123: Motif:Ambal-2_FCy | AP123: 5 | AQ123: =AP123+AQ122 -> 1258 | AR123: =AQ123/$AQ$1*100 -> 49.17904613 | AT123: Motif:TUB2B | AU123: 2 | AV123: =AU123+AV122 -> 906 | AW123: =AV123/$AV$1*100 -> 61.63265306
A124: Motif:Rex1-31_DRe | B124: 15 | C124: =B124+C123 -> 9723 | D124: =C124/$C$1*100 -> 81.30958354 | F124: Motif:P-1_DR | G124: 144 | H124: =G124+H123 -> 65727 | I124: =H124/$H$1*100 -> 76.82336715 | K124: Motif:SHAMUDRAV_MT | L124: 58 | M124: =L124+M123 -> 71570 | N124: =M124/$M$1*100 -> 85.72386781 | P124: Motif:Polinton-8_NVi | Q124: 92 | R124: =Q124+R123 -> 36793 | S124: =R124/$R$1*100 -> 66.29249923 | U124: Motif:hAT-N21_DR | V124: 50 | W124: =V124+W123 -> 23550 | X124: =W124/$W$1*100 -> 74.76190476 | Z124: Motif:Neptune_Hyd | AA124: 60 | AB124: =AA124+AB123 -> 64545 | AC124: =AB124/$AB$1*100 -> 91.38468073 | AE124: Motif:Mariner-N5_HSal | AF124: 7 | AG124: =AF124+AG123 -> 4278 | AH124: =AG124/$AG$1*100 -> 82.11132438 | AJ124: Motif:TguSINE1 | AK124: 3 | AL124: =AK124+AL123 -> 2895 | AM124: =AL124/$AL$1*100 -> 86.16071429 | AO124: Motif:Ag-Jock-1 | AP124: 5 | AQ124: =AP124+AQ123 -> 1263 | AR124: =AQ124/$AQ$1*100 -> 49.37451134 | AT124: Motif:TUB1 | AU124: 2 | AV124: =AU124+AV123 -> 908 | AW124: =AV124/$AV$1*100 -> 61.76870748
A125: Motif:Penelope-12_HM | B125: 15 | C125: =B125+C124 -> 9738 | D125: =C125/$C$1*100 -> 81.43502258 | F125: Motif:Mariner-39_HM | G125: 143 | H125: =G125+H124 -> 65870 | I125: =H125/$H$1*100 -> 76.99050914 | K125: Motif:DNA7-N1_DR | L125: 58 | M125: =L125+M124 -> 71628 | N125: =M125/$M$1*100 -> 85.79333804 | P125: Motif:Harbinger-8_DR | Q125: 91 | R125: =Q125+R124 -> 36884 | S125: =R125/$R$1*100 -> 66.45646024 | U125: Motif:EnSpm-16_SBi | V125: 50 | W125: =V125+W124 -> 23600 | X125: =W125/$W$1*100 -> 74.92063492 | Z125: Motif:CR1-79_HM | AA125: 60 | AB125: =AA125+AB124 -> 64605 | AC125: =AB125/$AB$1*100 -> 91.46963047 | AE125: Motif:LatiHarb1-2 | AF125: 7 | AG125: =AF125+AG124 -> 4285 | AH125: =AG125/$AG$1*100 -> 82.24568138 | AJ125: Motif:TE-5_CGi | AK125: 3 | AL125: =AK125+AL124 -> 2898 | AM125: =AL125/$AL$1*100 -> 86.25 | AO125: Motif:TUBE2 | AP125: 4 | AQ125: =AP125+AQ124 -> 1267 | AR125: =AQ125/$AQ$1*100 -> 49.5308835 | AT125: Motif:tRNA-Val-GTA | AU125: 2 | AV125: =AU125+AV124 -> 910 | AW125: =AV125/$AV$1*100 -> 61.9047619
A126: Motif:Kolobok-4_DR | B126: 15 | C126: =B126+C125 -> 9753 | D126: =C126/$C$1*100 -> 81.56046162 | F126: Motif:EnSpm-16_HM | G126: 142 | H126: =G126+H125 -> 66012 | I126: =H126/$H$1*100 -> 77.1564823 | K126: Motif:Polinton-1N1_DR | L126: 57 | M126: =L126+M125 -> 71685 | N126: =M126/$M$1*100 -> 85.86161051 | P126: Motif:hAT-2_DR | Q126: 90 | R126: =Q126+R125 -> 36974 | S126: =R126/$R$1*100 -> 66.61861948 | U126: Motif:DNA-6-N2_DR | V126: 50 | W126: =V126+W125 -> 23650 | X126: =W126/$W$1*100 -> 75.07936508 | Z126: Motif:Copia-1-I_HS | AA126: 60 | AB126: =AA126+AB125 -> 64665 | AC126: =AB126/$AB$1*100 -> 91.55458021 | AE126: Motif:ISL2EU-8_CGi | AF126: 7 | AG126: =AF126+AG125 -> 4292 | AH126: =AG126/$AG$1*100 -> 82.38003839 | AJ126: Motif:SSU-rRNA_Sme | AK126: 3 | AL126: =AK126+AL125 -> 2901 | AM126: =AL126/$AL$1*100 -> 86.33928571 | AO126: Motif:tRNA-Ser-TCA_ | AP126: 4 | AQ126: =AP126+AQ125 -> 1271 | AR126: =AQ126/$AQ$1*100 -> 49.68725567 | AT126: Motif:tRNA-Ile-ATT | AU126: 2 | AV126: =AU126+AV125 -> 912 | AW126: =AV126/$AV$1*100 -> 62.04081633
A127: Motif:hAT-42_HM | B127: 15 | C127: =B127+C126 -> 9768 | D127: =C127/$C$1*100 -> 81.68590065 | F127: Motif:hAT-42_Lch | G127: 140 | H127: =G127+H126 -> 66152 | I127: =H127/$H$1*100 -> 77.32011782 | K127: Motif:Gypsy98-LTR_Dr | L127: 57 | M127: =L127+M126 -> 71742 | N127: =M127/$M$1*100 -> 85.92988298 | P127: Motif:DIRS-21_ACar | Q127: 89 | R127: =Q127+R126 -> 37063 | S127: =R127/$R$1*100 -> 66.77897696 | U127: Motif:L1_AC_7 | V127: 49 | W127: =V127+W126 -> 23699 | X127: =W127/$W$1*100 -> 75.23492063 | Z127: Motif:Merlin-1_DR | AA127: 58 | AB127: =AA127+AB126 -> 64723 | AC127: =AB127/$AB$1*100 -> 91.63669829 | AE127: Motif:hAT-2n1_DR | AF127: 7 | AG127: =AF127+AG126 -> 4299 | AH127: =AG127/$AG$1*100 -> 82.51439539 | AJ127: Motif:Sola3-1_EmiHux | AK127: 3 | AL127: =AK127+AL126 -> 2904 | AM127: =AL127/$AL$1*100 -> 86.42857143 | AO127: Motif:tRNA-Lys-AAA | AP127: 4 | AQ127: =AP127+AQ126 -> 1275 | AR127: =AQ127/$AQ$1*100 -> 49.84362783 | AT127: Motif:tRNAGlu_CB | AU127: 2 | AV127: =AU127+AV126 -> 914 | AW127: =AV127/$AV$1*100 -> 62.17687075
A128: Motif:EnSpm-22_HMa | B128: 15 | C128: =B128+C127 -> 9783 | D128: =C128/$C$1*100 -> 81.81133969 | F128: Motif:Mariner-N3_DR | G128: 139 | H128: =G128+H127 -> 66291 | I128: =H128/$H$1*100 -> 77.48258451 | K128: Motif:EnSpm-43_SBi | L128: 57 | M128: =L128+M127 -> 71799 | N128: =M128/$M$1*100 -> 85.99815545 | P128: Motif:Ginger2-1_LS | Q128: 88 | R128: =Q128+R127 -> 37151 | S128: =R128/$R$1*100 -> 66.93753266 | U128: Motif:hAT-13_DR | V128: 49 | W128: =V128+W127 -> 23748 | X128: =W128/$W$1*100 -> 75.39047619 | Z128: Motif:hAT-N131_DR | AA128: 58 | AB128: =AA128+AB127 -> 64781 | AC128: =AB128/$AB$1*100 -> 91.71881637 | AE128: Motif:Harbinger2-1_MBr | AF128: 7 | AG128: =AF128+AG127 -> 4306 | AH128: =AG128/$AG$1*100 -> 82.6487524 | AJ128: Motif:Sola1-1_AC | AK128: 3 | AL128: =AK128+AL127 -> 2907 | AM128: =AL128/$AL$1*100 -> 86.51785714 | AO128: Motif:Nematis_Cr | AP128: 4 | AQ128: =AP128+AQ127 -> 1279 | AR128: =AQ128/$AQ$1*100 -> 50 | AT128: Motif:tRNA-Asn-AAC | AU128: 2 | AV128: =AU128+AV127 -> 916 | AW128: =AV128/$AV$1*100 -> 62.31292517
A129: Motif:RNLTR2d | B129: 14 | C129: =B129+C128 -> 9797 | D129: =C129/$C$1*100 -> 81.92841612 | F129: Motif:Kolobok-3_DR | G129: 139 | H129: =G129+H128 -> 66430 | I129: =H129/$H$1*100 -> 77.64505119 | K129: Motif:ATHATN10 | L129: 56 | M129: =L129+M128 -> 71855 | N129: =M129/$M$1*100 -> 86.06523015 | P129: Motif:ENSPM-6_ZM | Q129: 87 | R129: =Q129+R128 -> 37238 | S129: =R129/$R$1*100 -> 67.09428659 | U129: Motif:ERV1-7_DR-I | V129: 49 | W129: =V129+W128 -> 23797 | X129: =W129/$W$1*100 -> 75.54603175 | Z129: Motif:Polinton-2_PBa | AA129: 56 | AB129: =AA129+AB128 -> 64837 | AC129: =AB129/$AB$1*100 -> 91.79810279 | AE129: Motif:HAL1-3A_ME | AF129: 7 | AG129: =AF129+AG128 -> 4313 | AH129: =AG129/$AG$1*100 -> 82.7831094 | AJ129: Motif:RTAg3 | AK129: 3 | AL129: =AK129+AL128 -> 2910 | AM129: =AL129/$AL$1*100 -> 86.60714286 | AO129: Motif:MOSAT-2_DR | AP129: 4 | AQ129: =AP129+AQ128 -> 1283 | AR129: =AQ129/$AQ$1*100 -> 50.15637217 | AT129: Motif:tRNA-Arg-AGA | AU129: 2 | AV129: =AU129+AV128 -> 918 | AW129: =AV129/$AV$1*100 -> 62.44897959
A130: Motif:LatiHarb1-1 | B130: 14 | C130: =B130+C129 -> 9811 | D130: =C130/$C$1*100 -> 82.04549256 | F130: Motif:EnSpm-17_HM | G130: 136 | H130: =G130+H129 -> 66566 | I130: =H130/$H$1*100 -> 77.80401141 | K130: Motif:RT1 | L130: 54 | M130: =L130+M129 -> 71909 | N130: =M130/$M$1*100 -> 86.12990933 | P130: Motif:PIVE | Q130: 86 | R130: =Q130+R129 -> 37324 | S130: =R130/$R$1*100 -> 67.24923875 | U130: Motif:EnSpm-N2_DR | V130: 49 | W130: =V130+W129 -> 23846 | X130: =W130/$W$1*100 -> 75.7015873 | Z130: Motif:Mariner-52N1_HSal | AA130: 56 | AB130: =AA130+AB129 -> 64893 | AC130: =AB130/$AB$1*100 -> 91.87738921 | AE130: Motif:Gypsy20-LTR_SP | AF130: 7 | AG130: =AF130+AG129 -> 4320 | AH130: =AG130/$AG$1*100 -> 82.91746641 | AJ130: Motif:RLG_scDEL_1_5-I | AK130: 3 | AL130: =AK130+AL129 -> 2913 | AM130: =AL130/$AL$1*100 -> 86.69642857 | AO130: Motif:LTR160B_MD | AP130: 4 | AQ130: =AP130+AQ129 -> 1287 | AR130: =AQ130/$AQ$1*100 -> 50.31274433 | AT130: Motif:tRNA-3_DRe | AU130: 2 | AV130: =AU130+AV129 -> 920 | AW130: =AV130/$AV$1*100 -> 62.58503401
A131: Motif:Helitron-3_PM | B131: 14 | C131: =B131+C130 -> 9825 | D131: =C131/$C$1*100 -> 82.16256899 | F131: Motif:hAT-54_HM | G131: 135 | H131: =G131+H130 -> 66701 | I131: =H131/$H$1*100 -> 77.9618028 | K131: Motif:Gypsy-43_DWil-I | L131: 54 | M131: =L131+M130 -> 71963 | N131: =M131/$M$1*100 -> 86.19458851 | P131: Motif:SR2A | Q131: 85 | R131: =Q131+R130 -> 37409 | S131: =R131/$R$1*100 -> 67.40238915 | U131: Motif:EnSpm-2_HM | V131: 49 | W131: =V131+W130 -> 23895 | X131: =W131/$W$1*100 -> 75.85714286 | Z131: Motif:IS3EU-4_DR | AA131: 56 | AB131: =AA131+AB130 -> 64949 | AC131: =AB131/$AB$1*100 -> 91.95667563 | AE131: Motif:EnSpm-5_HM | AF131: 7 | AG131: =AF131+AG130 -> 4327 | AH131: =AG131/$AG$1*100 -> 83.05182342 | AJ131: Motif:R1_DPs | AK131: 3 | AL131: =AK131+AL130 -> 2916 | AM131: =AL131/$AL$1*100 -> 86.78571429 | AO131: Motif:LSU-rRNA_Mfr | AP131: 4 | AQ131: =AP131+AQ130 -> 1291 | AR131: =AQ131/$AQ$1*100 -> 50.4691165 | AT131: Motif:TE-8_CGi | AU131: 2 | AV131: =AU131+AV130 -> 922 | AW131: =AV131/$AV$1*100 -> 62.72108844
A132: Motif:hAT-N21_DR | B132: 14 | C132: =B132+C131 -> 9839 | D132: =C132/$C$1*100 -> 82.27964543 | F132: Motif:Gypsy-17_RO-I | G132: 134 | H132: =G132+H131 -> 66835 | I132: =H132/$H$1*100 -> 78.11842536 | K132: Motif:Gypsy-119_AA-LTR | L132: 54 | M132: =L132+M131 -> 72017 | N132: =M132/$M$1*100 -> 86.25926769 | P132: Motif:Homo6 | Q132: 85 | R132: =Q132+R131 -> 37494 | S132: =R132/$R$1*100 -> 67.55553954 | U132: Motif:Novosib-6_CR | V132: 48 | W132: =V132+W131 -> 23943 | X132: =W132/$W$1*100 -> 76.00952381 | Z132: Motif:DNA-N4_DR | AA132: 56 | AB132: =AA132+AB131 -> 65005 | AC132: =AB132/$AB$1*100 -> 92.03596206 | AE132: Motif:DNA3-14_CGi | AF132: 7 | AG132: =AF132+AG131 -> 4334 | AH132: =AG132/$AG$1*100 -> 83.18618042 | AJ132: Motif:Polinton-4_NV | AK132: 3 | AL132: =AK132+AL131 -> 2919 | AM132: =AL132/$AL$1*100 -> 86.875 | AO132: Motif:L1_AC_13 | AP132: 4 | AQ132: =AP132+AQ131 -> 1295 | AR132: =AQ132/$AQ$1*100 -> 50.62548866 | AT132: Motif:Sola1-2_AC | AU132: 2 | AV132: =AU132+AV131 -> 924 | AW132: =AV132/$AV$1*100 -> 62.85714286
A133: Motif:SFV1-15_AMi-I | B133: 13 | C133: =B133+C132 -> 9852 | D133: =C133/$C$1*100 -> 82.38835926 | F133: Motif:ERV1-7_DR-I | G133: 133 | H133: =G133+H132 -> 66968 | I133: =H133/$H$1*100 -> 78.2738791 | K133: Motif:DNA9-3_DR | L133: 54 | M133: =L133+M132 -> 72071 | N133: =M133/$M$1*100 -> 86.32394687 | P133: Motif:HMSBEAGLE_I-int | Q133: 85 | R133: =Q133+R132 -> 37579 | S133: =R133/$R$1*100 -> 67.70868993 | U133: Motif:hAT-47_HM | V133: 48 | W133: =V133+W132 -> 23991 | X133: =W133/$W$1*100 -> 76.16190476 | Z133: Motif:hAT-21N2_LMi | AA133: 55 | AB133: =AA133+AB132 -> 65060 | AC133: =AB133/$AB$1*100 -> 92.11383265 | AE133: Motif:DNA3-11_Mad | AF133: 7 | AG133: =AF133+AG132 -> 4341 | AH133: =AG133/$AG$1*100 -> 83.32053743 | AJ133: Motif:Polinton-3_TC | AK133: 3 | AL133: =AK133+AL132 -> 2922 | AM133: =AL133/$AL$1*100 -> 86.96428571 | AO133: Motif:L1-7_CQ | AP133: 4 | AQ133: =AP133+AQ132 -> 1299 | AR133: =AQ133/$AQ$1*100 -> 50.78186083 | AT133: Motif:SINE2-3_PM | AU133: 2 | AV133: =AU133+AV132 -> 926 | AW133: =AV133/$AV$1*100 -> 62.99319728
A134: Motif:OK | B134: 13 | C134: =B134+C133 -> 9865 | D134: =C134/$C$1*100 -> 82.49707309 | F134: Motif:hAT-25_DR | G134: 129 | H134: =G134+H133 -> 67097 | I134: =H134/$H$1*100 -> 78.42465753 | K134: Motif:CACTA-1_CapOwc | L134: 53 | M134: =L134+M133 -> 72124 | N134: =M134/$M$1*100 -> 86.38742828 | P134: Motif:DNA3-8_STu | Q134: 85 | R134: =Q134+R133 -> 37664 | S134: =R134/$R$1*100 -> 67.86184033 | U134: Motif:EnSpm-3_TA | V134: 48 | W134: =V134+W133 -> 24039 | X134: =W134/$W$1*100 -> 76.31428571 | Z134: Motif:Zisupton-1_DR | AA134: 54 | AB134: =AA134+AB133 -> 65114 | AC134: =AB134/$AB$1*100 -> 92.19028741 | AE134: Motif:DIRS-8B_DR | AF134: 7 | AG134: =AF134+AG133 -> 4348 | AH134: =AG134/$AG$1*100 -> 83.45489443 | AJ134: Motif:Polinton-2_HM | AK134: 3 | AL134: =AK134+AL133 -> 2925 | AM134: =AL134/$AL$1*100 -> 87.05357143 | AO134: Motif:Kolobok-7_CGi | AP134: 4 | AQ134: =AP134+AQ133 -> 1303 | AR134: =AQ134/$AQ$1*100 -> 50.93823299 | AT134: Motif:RTEX-1_CR | AU134: 2 | AV134: =AU134+AV133 -> 928 | AW134: =AV134/$AV$1*100 -> 63.1292517
A135: Motif:L1_AC_7 | B135: 13 | C135: =B135+C134 -> 9878 | D135: =C135/$C$1*100 -> 82.60578692 | F135: Motif:Mariner-33_HM | G135: 126 | H135: =G135+H134 -> 67223 | I135: =H135/$H$1*100 -> 78.5719295 | K135: Motif:LTR-2_Mad-I | L135: 52 | M135: =L135+M134 -> 72176 | N135: =M135/$M$1*100 -> 86.44971194 | P135: Motif:Polinton-3_PBa | Q135: 84 | R135: =Q135+R134 -> 37748 | S135: =R135/$R$1*100 -> 68.01318895 | U135: Motif:hAT-1N1_AC | V135: 46 | W135: =V135+W134 -> 24085 | X135: =W135/$W$1*100 -> 76.46031746 | Z135: Motif:EnSpm2_PTr | AA135: 53 | AB135: =AA135+AB134 -> 65167 | AC135: =AB135/$AB$1*100 -> 92.26532635 | AE135: Motif:Dada-1_MB | AF135: 7 | AG135: =AF135+AG134 -> 4355 | AH135: =AG135/$AG$1*100 -> 83.58925144 | AJ135: Motif:Polinton-1_PBa | AK135: 3 | AL135: =AK135+AL134 -> 2928 | AM135: =AL135/$AL$1*100 -> 87.14285714 | AO135: Motif:Kolobok-3_Lch | AP135: 4 | AQ135: =AP135+AQ134 -> 1307 | AR135: =AQ135/$AQ$1*100 -> 51.09460516 | AT135: Motif:RNLTR15A2 | AU135: 2 | AV135: =AU135+AV134 -> 930 | AW135: =AV135/$AV$1*100 -> 63.26530612
A136: Motif:L1-1_STu | B136: 13 | C136: =B136+C135 -> 9891 | D136: =C136/$C$1*100 -> 82.71450075 | F136: Motif:L1_AC_7 | G136: 126 | H136: =G136+H135 -> 67349 | I136: =H136/$H$1*100 -> 78.71920146 | K136: Motif:ATREP18 | L136: 52 | M136: =L136+M135 -> 72228 | N136: =M136/$M$1*100 -> 86.51199559 | P136: Motif:Mariner-N13_HSal | Q136: 83 | R136: =Q136+R135 -> 37831 | S136: =R136/$R$1*100 -> 68.16273581 | U136: Motif:MOSAT_DR | V136: 45 | W136: =V136+W135 -> 24130 | X136: =W136/$W$1*100 -> 76.6031746 | Z136: Motif:Mariner-39_HM | AA136: 50 | AB136: =AA136+AB135 -> 65217 | AC136: =AB136/$AB$1*100 -> 92.3361178 | AE136: Motif:Copia-92_BRa-I | AF136: 7 | AG136: =AF136+AG135 -> 4362 | AH136: =AG136/$AG$1*100 -> 83.72360845 | AJ136: Motif:MERMITE18D | AK136: 3 | AL136: =AK136+AL135 -> 2931 | AM136: =AL136/$AL$1*100 -> 87.23214286 | AO136: Motif:IDEFIX_I-int | AP136: 4 | AQ136: =AP136+AQ135 -> 1311 | AR136: =AQ136/$AQ$1*100 -> 51.25097733 | AT136: Motif:Rex1-31_DRe | AU136: 2 | AV136: =AU136+AV135 -> 932 | AW136: =AV136/$AV$1*100 -> 63.40136054
A137: Motif:hAT-N4_ALy | B137: 13 | C137: =B137+C136 -> 9904 | D137: =C137/$C$1*100 -> 82.82321458 | F137: Motif:Transib-1_HM | G137: 125 | H137: =G137+H136 -> 67474 | I137: =H137/$H$1*100 -> 78.8653046 | K137: Motif:SART-1_LHu | L137: 51 | M137: =L137+M136 -> 72279 | N137: =M137/$M$1*100 -> 86.57308148 | P137: Motif:hAT-N53_DR | Q137: 83 | R137: =Q137+R136 -> 37914 | S137: =R137/$R$1*100 -> 68.31228266 | U137: Motif:IS3EU-1_DR | V137: 44 | W137: =V137+W136 -> 24174 | X137: =W137/$W$1*100 -> 76.74285714 | Z137: Motif:Gypsy-53_PM-LTR | AA137: 50 | AB137: =AA137+AB136 -> 65267 | AC137: =AB137/$AB$1*100 -> 92.40690925 | AE137: Motif:TUBE2 | AF137: 6 | AG137: =AF137+AG136 -> 4368 | AH137: =AG137/$AG$1*100 -> 83.83877159 | AJ137: Motif:Mariner-N13_HSal | AK137: 3 | AL137: =AK137+AL136 -> 2934 | AM137: =AL137/$AL$1*100 -> 87.32142857 | AO137: Motif:HSATII | AP137: 4 | AQ137: =AP137+AQ136 -> 1315 | AR137: =AQ137/$AQ$1*100 -> 51.40734949 | AT137: Motif:PRIMA4-int | AU137: 2 | AV137: =AU137+AV136 -> 934 | AW137: =AV137/$AV$1*100 -> 63.53741497
A138: Motif:hAT-310_Ami | B138: 13 | C138: =B138+C137 -> 9917 | D138: =C138/$C$1*100 -> 82.93192842 | F138: Motif:Mariner-N5_HSal | G138: 125 | H138: =G138+H137 -> 67599 | I138: =H138/$H$1*100 -> 79.01140773 | K138: Motif:hAT-7N2_PM | L138: 50 | M138: =L138+M137 -> 72329 | N138: =M138/$M$1*100 -> 86.63296961 | P138: Motif:hAT-N131_DR | Q138: 83 | R138: =Q138+R137 -> 37997 | S138: =R138/$R$1*100 -> 68.46182952 | U138: Motif:Helitron-2_DR | V138: 44 | W138: =V138+W137 -> 24218 | X138: =W138/$W$1*100 -> 76.88253968 | Z138: Motif:ERV1-N6-I_DR | AA138: 50 | AB138: =AA138+AB137 -> 65317 | AC138: =AB138/$AB$1*100 -> 92.47770069 | AE138: Motif:tRNA-Asp-GAY | AF138: 6 | AG138: =AF138+AG137 -> 4374 | AH138: =AG138/$AG$1*100 -> 83.95393474 | AJ138: Motif:Mariner-7_DYa | AK138: 3 | AL138: =AK138+AL137 -> 2937 | AM138: =AL138/$AL$1*100 -> 87.41071429 | AO138: Motif:Helitron-2_DR | AP138: 4 | AQ138: =AP138+AQ137 -> 1319 | AR138: =AQ138/$AQ$1*100 -> 51.56372166 | AT138: Motif:Polinton-5_NVi | AU138: 2 | AV138: =AU138+AV137 -> 936 | AW138: =AV138/$AV$1*100 -> 63.67346939
A139: Motif:hAT-1960_Ami | B139: 13 | C139: =B139+C138 -> 9930 | D139: =C139/$C$1*100 -> 83.04064225 | F139: Motif:DNA-1-2_DR | G139: 121 | H139: =G139+H138 -> 67720 | I139: =H139/$H$1*100 -> 79.15283557 | K139: Motif:ERV1-N3-I_DR | L139: 50 | M139: =L139+M138 -> 72379 | N139: =M139/$M$1*100 -> 86.69285774 | P139: Motif:Dada-U6_SS | Q139: 83 | R139: =Q139+R138 -> 38080 | S139: =R139/$R$1*100 -> 68.61137637 | U139: Motif:Harbinger-2_DR | V139: 44 | W139: =V139+W138 -> 24262 | X139: =W139/$W$1*100 -> 77.02222222 | Z139: Motif:DNA9-5_DR | AA139: 50 | AB139: =AA139+AB138 -> 65367 | AC139: =AB139/$AB$1*100 -> 92.54849214 | AE139: Motif:TE7-1_FV | AF139: 6 | AG139: =AF139+AG138 -> 4380 | AH139: =AG139/$AG$1*100 -> 84.06909789 | AJ139: Motif:LTR18F_ML | AK139: 3 | AL139: =AK139+AL138 -> 2940 | AM139: =AL139/$AL$1*100 -> 87.5 | AO139: Motif:Helitron-1_DR | AP139: 4 | AQ139: =AP139+AQ138 -> 1323 | AR139: =AQ139/$AQ$1*100 -> 51.72009382 | AT139: Motif:Polinton-4_SP | AU139: 2 | AV139: =AU139+AV138 -> 938 | AW139: =AV139/$AV$1*100 -> 63.80952381
A140: Motif:tRNA-Asp-GAY | B140: 12 | C140: =B140+C139 -> 9942 | D140: =C140/$C$1*100 -> 83.14099348 | F140: Motif:hATm-19_HM | G140: 120 | H140: =G140+H139 -> 67840 | I140: =H140/$H$1*100 -> 79.29309458 | K140: Motif:DongAG | L140: 49 | M140: =L140+M139 -> 72428 | N140: =M140/$M$1*100 -> 86.75154811 | P140: Motif:Poseidon-2B_PM | Q140: 82 | R140: =Q140+R139 -> 38162 | S140: =R140/$R$1*100 -> 68.75912146 | U140: Motif:Gypsy-120_SB-I | V140: 43 | W140: =V140+W139 -> 24305 | X140: =W140/$W$1*100 -> 77.15873016 | Z140: Motif:Polinton-9_NVi | AA140: 49 | AB140: =AA140+AB139 -> 65416 | AC140: =AB140/$AB$1*100 -> 92.61786776 | AE140: Motif:RLTR32_Rn | AF140: 6 | AG140: =AF140+AG139 -> 4386 | AH140: =AG140/$AG$1*100 -> 84.18426104 | AJ140: Motif:LTR160B_MD | AK140: 3 | AL140: =AK140+AL139 -> 2943 | AM140: =AL140/$AL$1*100 -> 87.58928571 | AO140: Motif:hAT-N5_ACar | AP140: 4 | AQ140: =AP140+AQ139 -> 1327 | AR140: =AQ140/$AQ$1*100 -> 51.87646599 | AT140: Motif:Novosib-3_CR | AU140: 2 | AV140: =AU140+AV139 -> 940 | AW140: =AV140/$AV$1*100 -> 63.94557823
A141: Motif:TRAS3_BM | B141: 12 | C141: =B141+C140 -> 9954 | D141: =C141/$C$1*100 -> 83.24134471 | F141: Motif:RLTR17B_Mm | G141: 117 | H141: =G141+H140 -> 67957 | I141: =H141/$H$1*100 -> 79.42984712 | K141: Motif:Perere-9 | L141: 48 | M141: =L141+M140 -> 72476 | N141: =M141/$M$1*100 -> 86.80904071 | P141: Motif:hAT-2N1_TC | Q141: 82 | R141: =Q141+R140 -> 38244 | S141: =R141/$R$1*100 -> 68.90686654 | U141: Motif:EnSpm2_SB | V141: 43 | W141: =V141+W140 -> 24348 | X141: =W141/$W$1*100 -> 77.2952381 | Z141: Motif:HAT-4N1_Mad | AA141: 49 | AB141: =AA141+AB140 -> 65465 | AC141: =AB141/$AB$1*100 -> 92.68724338 | AE141: Motif:polypurine | AF141: 6 | AG141: =AF141+AG140 -> 4392 | AH141: =AG141/$AG$1*100 -> 84.29942418 | AJ141: Motif:LSU-rRNA_Sce | AK141: 3 | AL141: =AK141+AL140 -> 2946 | AM141: =AL141/$AL$1*100 -> 87.67857143 | AO141: Motif:Harbinger-5_PSt | AP141: 4 | AQ141: =AP141+AQ140 -> 1331 | AR141: =AQ141/$AQ$1*100 -> 52.03283815 | AT141: Motif:Nimb-4_DR | AU141: 2 | AV141: =AU141+AV140 -> 942 | AW141: =AV141/$AV$1*100 -> 64.08163265
A142: Motif:L1-67_DR | B142: 12 | C142: =B142+C141 -> 9966 | D142: =C142/$C$1*100 -> 83.34169594 | F142: Motif:IMPB_01 | G142: 116 | H142: =G142+H141 -> 68073 | I142: =H142/$H$1*100 -> 79.56543083 | K142: Motif:Gypsy-63_CQ-I | L142: 48 | M142: =L142+M141 -> 72524 | N142: =M142/$M$1*100 -> 86.86653332 | P142: Motif:DNA6-6_DR | Q142: 81 | R142: =Q142+R141 -> 38325 | S142: =R142/$R$1*100 -> 69.05280986 | U142: Motif:MuDR-4_GM | V142: 42 | W142: =V142+W141 -> 24390 | X142: =W142/$W$1*100 -> 77.42857143 | Z142: Motif:Polinton-1N1_DR | AA142: 48 | AB142: =AA142+AB141 -> 65513 | AC142: =AB142/$AB$1*100 -> 92.75520317 | AE142: Motif:Polinton-4_SP | AF142: 6 | AG142: =AF142+AG141 -> 4398 | AH142: =AG142/$AG$1*100 -> 84.41458733 | AJ142: Motif:Jockey_Ele2 | AK142: 3 | AL142: =AK142+AL141 -> 2949 | AM142: =AL142/$AL$1*100 -> 87.76785714 | AO142: Motif:Gypsy-8_DRh-I | AP142: 4 | AQ142: =AP142+AQ141 -> 1335 | AR142: =AQ142/$AQ$1*100 -> 52.18921032 | AT142: Motif:MuDR-7_VV | AU142: 2 | AV142: =AU142+AV141 -> 944 | AW142: =AV142/$AV$1*100 -> 64.21768707
A143: Motif:hAT-50_HM | B143: 12 | C143: =B143+C142 -> 9978 | D143: =C143/$C$1*100 -> 83.44204717 | F143: Motif:Chapaev-6_HM | G143: 116 | H143: =G143+H142 -> 68189 | I143: =H143/$H$1*100 -> 79.70101454 | K143: Motif:IS3EU-4_DR | L143: 47 | M143: =L143+M142 -> 72571 | N143: =M143/$M$1*100 -> 86.92282816 | P143: Motif:TE-X-4_DR | Q143: 80 | R143: =Q143+R142 -> 38405 | S143: =R143/$R$1*100 -> 69.19695141 | U143: Motif:Helitron-N1_PBa | V143: 42 | W143: =V143+W142 -> 24432 | X143: =W143/$W$1*100 -> 77.56190476 | Z143: Motif:MinoAg1 | AA143: 48 | AB143: =AA143+AB142 -> 65561 | AC143: =AB143/$AB$1*100 -> 92.82316296 | AE143: Motif:Merlin-1_DR | AF143: 6 | AG143: =AF143+AG142 -> 4404 | AH143: =AG143/$AG$1*100 -> 84.52975048 | AJ143: Motif:Jockey-5_CQ | AK143: 3 | AL143: =AK143+AL142 -> 2952 | AM143: =AL143/$AL$1*100 -> 87.85714286 | AO143: Motif:Gypsy-80_PAb-I | AP143: 4 | AQ143: =AP143+AQ142 -> 1339 | AR143: =AQ143/$AQ$1*100 -> 52.34558249 | AT143: Motif:MuDR1_ZM | AU143: 2 | AV143: =AU143+AV142 -> 946 | AW143: =AV143/$AV$1*100 -> 64.3537415
A144: Motif:HAT-4N1_Mad | B144: 12 | C144: =B144+C143 -> 9990 | D144: =C144/$C$1*100 -> 83.54239839 | F144: Motif:TE-2_XT | G144: 114 | H144: =G144+H143 -> 68303 | I144: =H144/$H$1*100 -> 79.8342606 | K144: Motif:L1-2_STu | L144: 45 | M144: =L144+M143 -> 72616 | N144: =M144/$M$1*100 -> 86.97672747 | P144: Motif:Gypsy-34_NVi-I | Q144: 79 | R144: =Q144+R143 -> 38484 | S144: =R144/$R$1*100 -> 69.33929118 | U144: Motif:Gypsy1-I_Dmoj | V144: 42 | W144: =V144+W143 -> 24474 | X144: =W144/$W$1*100 -> 77.6952381 | Z144: Motif:HAL1-2a_MD | AA144: 48 | AB144: =AA144+AB143 -> 65609 | AC144: =AB144/$AB$1*100 -> 92.89112275 | AE144: Motif:Mariner-N22_HSal | AF144: 6 | AG144: =AF144+AG143 -> 4410 | AH144: =AG144/$AG$1*100 -> 84.64491363 | AJ144: Motif:ISL2EU-N4_CGi | AK144: 3 | AL144: =AK144+AL143 -> 2955 | AM144: =AL144/$AL$1*100 -> 87.94642857 | AO144: Motif:Gypsy-6_FV-I | AP144: 4 | AQ144: =AP144+AQ143 -> 1343 | AR144: =AQ144/$AQ$1*100 -> 52.50195465 | AT144: Motif:MERMITE18F | AU144: 2 | AV144: =AU144+AV143 -> 948 | AW144: =AV144/$AV$1*100 -> 64.48979592
A145: Motif:hAT-2N1_TC | B145: 12 | C145: =B145+C144 -> 10002 | D145: =C145/$C$1*100 -> 83.64274962 | F145: Motif:Helitron-3_PM | G145: 114 | H145: =G145+H144 -> 68417 | I145: =H145/$H$1*100 -> 79.96750666 | K145: Motif:Gypsy-20_PGr-I | L145: 45 | M145: =L145+M144 -> 72661 | N145: =M145/$M$1*100 -> 87.03062679 | P145: Motif:hAT6-2_NV | Q145: 78 | R145: =Q145+R144 -> 38562 | S145: =R145/$R$1*100 -> 69.47982919 | U145: Motif:DNA-1-2_DR | V145: 42 | W145: =V145+W144 -> 24516 | X145: =W145/$W$1*100 -> 77.82857143 | Z145: Motif:L1-53_DR | AA145: 47 | AB145: =AA145+AB144 -> 65656 | AC145: =AB145/$AB$1*100 -> 92.95766671 | AE145: Motif:LTR1A2_ML | AF145: 6 | AG145: =AF145+AG144 -> 4416 | AH145: =AG145/$AG$1*100 -> 84.76007678 | AJ145: Motif:Homo10 | AK145: 3 | AL145: =AK145+AL144 -> 2958 | AM145: =AL145/$AL$1*100 -> 88.03571429 | AO145: Motif:Gypsy-58_BG-I | AP145: 4 | AQ145: =AP145+AQ144 -> 1347 | AR145: =AQ145/$AQ$1*100 -> 52.65832682 | AT145: Motif:Mariner-N13_HSal | AU145: 2 | AV145: =AU145+AV144 -> 950 | AW145: =AV145/$AV$1*100 -> 64.62585034
A146: Motif:HARB-4N1_Mad | B146: 12 | C146: =B146+C145 -> 10014 | D146: =C146/$C$1*100 -> 83.74310085 | F146: Motif:Gypsy-15_DAn-I | G146: 112 | H146: =G146+H145 -> 68529 | I146: =H146/$H$1*100 -> 80.09841507 | K146: Motif:Dada-tL_DR | L146: 45 | M146: =L146+M145 -> 72706 | N146: =M146/$M$1*100 -> 87.08452611 | P146: Motif:ERV1-1_SSc-I | Q146: 78 | R146: =Q146+R145 -> 38640 | S146: =R146/$R$1*100 -> 69.6203672 | U146: Motif:Gypsy6-I_Dmoj | V146: 41 | W146: =V146+W145 -> 24557 | X146: =W146/$W$1*100 -> 77.95873016 | Z146: Motif:NAVIRTE1 | AA146: 46 | AB146: =AA146+AB145 -> 65702 | AC146: =AB146/$AB$1*100 -> 93.02279485 | AE146: Motif:hAT-4_PBa | AF146: 6 | AG146: =AF146+AG145 -> 4422 | AH146: =AG146/$AG$1*100 -> 84.87523992 | AJ146: Motif:Helitron-N3_DR | AK146: 3 | AL146: =AK146+AL145 -> 2961 | AM146: =AL146/$AL$1*100 -> 88.125 | AO146: Motif:Gypsy43-I_AG | AP146: 4 | AQ146: =AP146+AQ145 -> 1351 | AR146: =AQ146/$AQ$1*100 -> 52.81469898 | AT146: Motif:MarinerL-1_CR | AU146: 2 | AV146: =AU146+AV145 -> 952 | AW146: =AV146/$AV$1*100 -> 64.76190476
A147: Motif:ERV1-1_SSc-I | B147: 12 | C147: =B147+C146 -> 10026 | D147: =C147/$C$1*100 -> 83.84345208 | F147: Motif:TRAS1 | G147: 111 | H147: =G147+H146 -> 68640 | I147: =H147/$H$1*100 -> 80.22815466 | K147: Motif:L2-27_ACar | L147: 44 | M147: =L147+M146 -> 72750 | N147: =M147/$M$1*100 -> 87.13722766 | P147: Motif:EnSpm-2_TD | Q147: 77 | R147: =Q147+R146 -> 38717 | S147: =R147/$R$1*100 -> 69.75910344 | U147: Motif:EnSpm-14_HM | V147: 41 | W147: =V147+W146 -> 24598 | X147: =W147/$W$1*100 -> 78.08888889 | Z147: Motif:Mariner-101_HSal | AA147: 46 | AB147: =AA147+AB146 -> 65748 | AC147: =AB147/$AB$1*100 -> 93.08792298 | AE147: Motif:EnSpm-1_HV | AF147: 6 | AG147: =AF147+AG146 -> 4428 | AH147: =AG147/$AG$1*100 -> 84.99040307 | AJ147: Motif:hAT-N71_DR | AK147: 3 | AL147: =AK147+AL146 -> 2964 | AM147: =AL147/$AL$1*100 -> 88.21428571 | AO147: Motif:Gypsy-3_PX-I | AP147: 4 | AQ147: =AP147+AQ146 -> 1355 | AR147: =AQ147/$AQ$1*100 -> 52.97107115 | AT147: Motif:Mariner-13_SIn | AU147: 2 | AV147: =AU147+AV146 -> 954 | AW147: =AV147/$AV$1*100 -> 64.89795918
A148: Motif:DNA9TA1_DR | B148: 12 | C148: =B148+C147 -> 10038 | D148: =C148/$C$1*100 -> 83.94380331 | F148: Motif:HeT-A3_DVi | G148: 110 | H148: =G148+H147 -> 68750 | I148: =H148/$H$1*100 -> 80.35672542 | K148: Motif:ARS_EH | L148: 44 | M148: =L148+M147 -> 72794 | N148: =M148/$M$1*100 -> 87.18992921 | P148: Motif:hATN-4_ACar | Q148: 75 | R148: =Q148+R147 -> 38792 | S148: =R148/$R$1*100 -> 69.89423614 | U148: Motif:Transib-3_HM | V148: 40 | W148: =V148+W147 -> 24638 | X148: =W148/$W$1*100 -> 78.21587302 | Z148: Motif:Helitron-3_PM | AA148: 45 | AB148: =AA148+AB147 -> 65793 | AC148: =AB148/$AB$1*100 -> 93.15163528 | AE148: Motif:DNA-8-3_HM | AF148: 6 | AG148: =AF148+AG147 -> 4434 | AH148: =AG148/$AG$1*100 -> 85.10556622 | AJ148: Motif:hAT-N53_DR | AK148: 3 | AL148: =AK148+AL147 -> 2967 | AM148: =AL148/$AL$1*100 -> 88.30357143 | AO148: Motif:Gypsy-36_ST-I | AP148: 4 | AQ148: =AP148+AQ147 -> 1359 | AR148: =AQ148/$AQ$1*100 -> 53.12744332 | AT148: Motif:LOOPERN3_DR | AU148: 2 | AV148: =AU148+AV147 -> 956 | AW148: =AV148/$AV$1*100 -> 65.03401361
A149: Motif:CR1-1_NV | B149: 12 | C149: =B149+C148 -> 10050 | D149: =C149/$C$1*100 -> 84.04415454 | F149: Motif:CR1-80_HM | G149: 110 | H149: =G149+H148 -> 68860 | I149: =H149/$H$1*100 -> 80.48529618 | K149: Motif:hAT-2n1_DR | L149: 43 | M149: =L149+M148 -> 72837 | N149: =M149/$M$1*100 -> 87.241433 | P149: Motif:Chapaev-8_HM | Q149: 75 | R149: =Q149+R148 -> 38867 | S149: =R149/$R$1*100 -> 70.02936884 | U149: Motif:Kolobok-3_Aplcal | V149: 40 | W149: =V149+W148 -> 24678 | X149: =W149/$W$1*100 -> 78.34285714 | Z149: Motif:HARB-4N1_Mad | AA149: 43 | AB149: =AA149+AB148 -> 65836 | AC149: =AB149/$AB$1*100 -> 93.21251593 | AE149: Motif:DNA-2-18_DR | AF149: 6 | AG149: =AF149+AG148 -> 4440 | AH149: =AG149/$AG$1*100 -> 85.22072937 | AJ149: Motif:hAT-21N2_LMi | AK149: 3 | AL149: =AK149+AL148 -> 2970 | AM149: =AL149/$AL$1*100 -> 88.39285714 | AO149: Motif:Gypsy35-I_DR | AP149: 4 | AQ149: =AP149+AQ148 -> 1363 | AR149: =AQ149/$AQ$1*100 -> 53.28381548 | AT149: Motif:LOOPERN2_DR | AU149: 2 | AV149: =AU149+AV148 -> 958 | AW149: =AV149/$AV$1*100 -> 65.17006803
A150: Motif:Chapaev-8_HM | B150: 12 | C150: =B150+C149 -> 10062 | D150: =C150/$C$1*100 -> 84.14450577 | F150: Motif:Mariner-36_HM | G150: 109 | H150: =G150+H149 -> 68969 | I150: =H150/$H$1*100 -> 80.61269812 | K150: Motif:hAT-12_VVi | L150: 43 | M150: =L150+M149 -> 72880 | N150: =M150/$M$1*100 -> 87.29293679 | P150: Motif:Gypsy-71_BG-I | Q150: 73 | R150: =Q150+R149 -> 38940 | S150: =R150/$R$1*100 -> 70.160898 | U150: Motif:Mariner-N3_DR | V150: 38 | W150: =V150+W149 -> 24716 | X150: =W150/$W$1*100 -> 78.46349206 | Z150: Motif:DNA-8-3_HM | AA150: 43 | AB150: =AA150+AB149 -> 65879 | AC150: =AB150/$AB$1*100 -> 93.27339657 | AE150: Motif:ATCopia24I | AF150: 6 | AG150: =AF150+AG149 -> 4446 | AH150: =AG150/$AG$1*100 -> 85.33589251 | AJ150: Motif:Harbinger2N_TP | AK150: 3 | AL150: =AK150+AL149 -> 2973 | AM150: =AL150/$AL$1*100 -> 88.48214286 | AO150: Motif:Gypsy-2_DSe-I | AP150: 4 | AQ150: =AP150+AQ149 -> 1367 | AR150: =AQ150/$AQ$1*100 -> 53.44018765 | AT150: Motif:LatiHarb1-2 | AU150: 2 | AV150: =AU150+AV149 -> 960 | AW150: =AV150/$AV$1*100 -> 65.30612245
A151: Motif:RMER12 | B151: 11 | C151: =B151+C150 -> 10073 | D151: =C151/$C$1*100 -> 84.2364944 | F151: Motif:Gypsy82-LTR_Dr | G151: 108 | H151: =G151+H150 -> 69077 | I151: =H151/$H$1*100 -> 80.73893123 | K151: Motif:CR1-78_AAe | L151: 43 | M151: =L151+M150 -> 72923 | N151: =M151/$M$1*100 -> 87.34444058 | P151: Motif:Ginger1-10_HM | Q151: 73 | R151: =Q151+R150 -> 39013 | S151: =R151/$R$1*100 -> 70.29242716 | U151: Motif:Sola1-1_AC | V151: 37 | W151: =V151+W150 -> 24753 | X151: =W151/$W$1*100 -> 78.58095238 | Z151: Motif:Copia2-LTR_VC | AA151: 43 | AB151: =AA151+AB150 -> 65922 | AC151: =AB151/$AB$1*100 -> 93.33427722 | AE151: Motif:tRNA-Ser-TCG | AF151: 5 | AG151: =AF151+AG150 -> 4451 | AH151: =AG151/$AG$1*100 -> 85.4318618 | AJ151: Motif:Gypsy82-LTR_Dr | AK151: 3 | AL151: =AK151+AL150 -> 2976 | AM151: =AL151/$AL$1*100 -> 88.57142857 | AO151: Motif:Gypsy-2_Crp-I | AP151: 4 | AQ151: =AP151+AQ150 -> 1371 | AR151: =AQ151/$AQ$1*100 -> 53.59655981 | AT151: Motif:L1-8_CR | AU151: 2 | AV151: =AU151+AV150 -> 962 | AW151: =AV151/$AV$1*100 -> 65.44217687
A152: Motif:RLTR20C1_MM | B152: 11 | C152: =B152+C151 -> 10084 | D152: =C152/$C$1*100 -> 84.32848302 | F152: Motif:hAT-N68_DR | G152: 104 | H152: =G152+H151 -> 69181 | I152: =H152/$H$1*100 -> 80.86048904 | K152: Motif:TELREP1_PC | L152: 42 | M152: =L152+M151 -> 72965 | N152: =M152/$M$1*100 -> 87.39474661 | P152: Motif:ERV46_MD_I-int | Q152: 73 | R152: =Q152+R151 -> 39086 | S152: =R152/$R$1*100 -> 70.42395633 | U152: Motif:Mariner-33_HM | V152: 37 | W152: =V152+W151 -> 24790 | X152: =W152/$W$1*100 -> 78.6984127 | Z152: Motif:Tx1-5_PM | AA152: 42 | AB152: =AA152+AB151 -> 65964 | AC152: =AB152/$AB$1*100 -> 93.39374204 | AE152: Motif:tRNA-Gln-CAA | AF152: 5 | AG152: =AF152+AG151 -> 4456 | AH152: =AG152/$AG$1*100 -> 85.52783109 | AJ152: Motif:Gypsy-6_DEu-I | AK152: 3 | AL152: =AK152+AL151 -> 2979 | AM152: =AL152/$AL$1*100 -> 88.66071429 | AO152: Motif:Gypsy-28-I_DR | AP152: 4 | AQ152: =AP152+AQ151 -> 1375 | AR152: =AQ152/$AQ$1*100 -> 53.75293198 | AT152: Motif:L1-87_ACar | AU152: 2 | AV152: =AU152+AV151 -> 964 | AW152: =AV152/$AV$1*100 -> 65.57823129
A153: Motif:Polinton-1_PBa | B153: 11 | C153: =B153+C152 -> 10095 | D153: =C153/$C$1*100 -> 84.42047165 | F153: Motif:hAT-13_DR | G153: 104 | H153: =G153+H152 -> 69285 | I153: =H153/$H$1*100 -> 80.98204685 | K153: Motif:RTEX-4_CGi | L153: 42 | M153: =L153+M152 -> 73007 | N153: =M153/$M$1*100 -> 87.44505264 | P153: Motif:EnSpm-1_HM | Q153: 73 | R153: =Q153+R152 -> 39159 | S153: =R153/$R$1*100 -> 70.55548549 | U153: Motif:Gypsy1-SM_LTR | V153: 37 | W153: =V153+W152 -> 24827 | X153: =W153/$W$1*100 -> 78.81587302 | Z153: Motif:Mariner-21_SIn | AA153: 42 | AB153: =AA153+AB152 -> 66006 | AC153: =AB153/$AB$1*100 -> 93.45320685 | AE153: Motif:RMER17C2 | AF153: 5 | AG153: =AF153+AG152 -> 4461 | AH153: =AG153/$AG$1*100 -> 85.62380038 | AJ153: Motif:Gypsy-5_PX-I | AK153: 3 | AL153: =AK153+AL152 -> 2982 | AM153: =AL153/$AL$1*100 -> 88.75 | AO153: Motif:Gypsy-24-I_SP | AP153: 4 | AQ153: =AP153+AQ152 -> 1379 | AR153: =AQ153/$AQ$1*100 -> 53.90930414 | AT153: Motif:L1-1_VC | AU153: 2 | AV153: =AU153+AV152 -> 966 | AW153: =AV153/$AV$1*100 -> 65.71428571
A154: Motif:MINIME_DN | B154: 11 | C154: =B154+C153 -> 10106 | D154: =C154/$C$1*100 -> 84.51246028 | F154: Motif:Penelope-12_HM | G154: 102 | H154: =G154+H153 -> 69387 | I154: =H154/$H$1*100 -> 81.10126701 | K154: Motif:Polinton-2_NV | L154: 42 | M154: =L154+M153 -> 73049 | N154: =M154/$M$1*100 -> 87.49535867 | P154: Motif:DNA-8-27_DR | Q154: 73 | R154: =Q154+R153 -> 39232 | S154: =R154/$R$1*100 -> 70.68701465 | U154: Motif:EnSpm-10_HM | V154: 37 | W154: =V154+W153 -> 24864 | X154: =W154/$W$1*100 -> 78.93333333 | Z154: Motif:TE-X-4_NVi | AA154: 41 | AB154: =AA154+AB153 -> 66047 | AC154: =AB154/$AB$1*100 -> 93.51125584 | AE154: Motif:Rex1-31_DRe | AF154: 5 | AG154: =AF154+AG153 -> 4466 | AH154: =AG154/$AG$1*100 -> 85.71976967 | AJ154: Motif:Gypsy58-I_AG | AK154: 3 | AL154: =AK154+AL153 -> 2985 | AM154: =AL154/$AL$1*100 -> 88.83928571 | AO154: Motif:Gypsy-23_Crp-I | AP154: 4 | AQ154: =AP154+AQ153 -> 1383 | AR154: =AQ154/$AQ$1*100 -> 54.06567631 | AT154: Motif:Kiri-35_AAe | AU154: 2 | AV154: =AU154+AV153 -> 968 | AW154: =AV154/$AV$1*100 -> 65.85034014
A155: Motif:L1-56_DR | B155: 11 | C155: =B155+C154 -> 10117 | D155: =C155/$C$1*100 -> 84.6044489 | F155: Motif:TART_DV | G155: 98 | H155: =G155+H154 -> 69485 | I155: =H155/$H$1*100 -> 81.21581187 | K155: Motif:Penelope-1_DR | L155: 42 | M155: =L155+M154 -> 73091 | N155: =M155/$M$1*100 -> 87.5456647 | P155: Motif:L1-4_VC | Q155: 72 | R155: =Q155+R154 -> 39304 | S155: =R155/$R$1*100 -> 70.81674204 | U155: Motif:Homo6 | V155: 36 | W155: =V155+W154 -> 24900 | X155: =W155/$W$1*100 -> 79.04761905 | Z155: Motif:ISL2EU-3_CFl | AA155: 41 | AB155: =AA155+AB154 -> 66088 | AC155: =AB155/$AB$1*100 -> 93.56930483 | AE155: Motif:Polinton-5_NVi | AF155: 5 | AG155: =AF155+AG154 -> 4471 | AH155: =AG155/$AG$1*100 -> 85.81573896 | AJ155: Motif:Gypsy55-I_AG | AK155: 3 | AL155: =AK155+AL154 -> 2988 | AM155: =AL155/$AL$1*100 -> 88.92857143 | AO155: Motif:Gypsy-23_CQ-I | AP155: 4 | AQ155: =AP155+AQ154 -> 1387 | AR155: =AQ155/$AQ$1*100 -> 54.22204848 | AT155: Motif:Jockey-2_DGri | AU155: 2 | AV155: =AU155+AV154 -> 970 | AW155: =AV155/$AV$1*100 -> 65.98639456
A156: Motif:Kolobok-2_DR | B156: 11 | C156: =B156+C155 -> 10128 | D156: =C156/$C$1*100 -> 84.69643753 | F156: Motif:P-34_HM | G156: 97 | H156: =G156+H155 -> 69582 | I156: =H156/$H$1*100 -> 81.3291879 | K156: Motif:P4_AG | L156: 42 | M156: =L156+M155 -> 73133 | N156: =M156/$M$1*100 -> 87.59597073 | P156: Motif:HELITRON7_OS | Q156: 72 | R156: =Q156+R155 -> 39376 | S156: =R156/$R$1*100 -> 70.94646943 | U156: Motif:Helitron-2_HM | V156: 36 | W156: =V156+W155 -> 24936 | X156: =W156/$W$1*100 -> 79.16190476 | Z156: Motif:Dada-tL_DR | AA156: 41 | AB156: =AA156+AB155 -> 66129 | AC156: =AB156/$AB$1*100 -> 93.62735382 | AE156: Motif:Polinton-1_DR | AF156: 5 | AG156: =AF156+AG155 -> 4476 | AH156: =AG156/$AG$1*100 -> 85.91170825 | AJ156: Motif:Gypsy-32_ADe-I | AK156: 3 | AL156: =AK156+AL155 -> 2991 | AM156: =AL156/$AL$1*100 -> 89.01785714 | AO156: Motif:Gypsy-22_FV-I | AP156: 4 | AQ156: =AP156+AQ155 -> 1391 | AR156: =AQ156/$AQ$1*100 -> 54.37842064 | AT156: Motif:IS3EU-N1_CGi | AU156: 2 | AV156: =AU156+AV155 -> 972 | AW156: =AV156/$AV$1*100 -> 66.12244898
A157: Motif:Harbinger-2_DR | B157: 11 | C157: =B157+C156 -> 10139 | D157: =C157/$C$1*100 -> 84.78842616 | F157: Motif:hAT-N107_DR | G157: 97 | H157: =G157+H156 -> 69679 | I157: =H157/$H$1*100 -> 81.44256393 | K157: Motif:CR1-15_HM | L157: 42 | M157: =L157+M156 -> 73175 | N157: =M157/$M$1*100 -> 87.64627676 | P157: Motif:ERV1-7_DR-I | Q157: 70 | R157: =Q157+R156 -> 39446 | S157: =R157/$R$1*100 -> 71.07259329 | U157: Motif:SR2A | V157: 35 | W157: =V157+W156 -> 24971 | X157: =W157/$W$1*100 -> 79.27301587 | Z157: Motif:Copia3-I_CR | AA157: 41 | AB157: =AA157+AB156 -> 66170 | AC157: =AB157/$AB$1*100 -> 93.6854028 | AE157: Motif:NUSIF1_TM | AF157: 5 | AG157: =AF157+AG156 -> 4481 | AH157: =AG157/$AG$1*100 -> 86.00767754 | AJ157: Motif:Gypsy-1_FV-I | AK157: 3 | AL157: =AK157+AL156 -> 2994 | AM157: =AL157/$AL$1*100 -> 89.10714286 | AO157: Motif:Gypsy-204_ZM-I | AP157: 4 | AQ157: =AP157+AQ156 -> 1395 | AR157: =AQ157/$AQ$1*100 -> 54.53479281 | AT157: Motif:HERVIP10FH-int | AU157: 2 | AV157: =AU157+AV156 -> 974 | AW157: =AV157/$AV$1*100 -> 66.2585034
A158: Motif:Gypsy-6_LCh-I | B158: 11 | C158: =B158+C157 -> 10150 | D158: =C158/$C$1*100 -> 84.88041479 | F158: Motif:Gypsy-6_LCh-I | G158: 97 | H158: =G158+H157 -> 69776 | I158: =H158/$H$1*100 -> 81.55593997 | K158: Motif:Gypsy6-I_Dmoj | L158: 41 | M158: =L158+M157 -> 73216 | N158: =M158/$M$1*100 -> 87.69538502 | P158: Motif:EnSpm-6N1_DR | Q158: 70 | R158: =Q158+R157 -> 39516 | S158: =R158/$R$1*100 -> 71.19871714 | U158: Motif:P-1_PBa | V158: 35 | W158: =V158+W157 -> 25006 | X158: =W158/$W$1*100 -> 79.38412698 | Z158: Motif:Sat-1_TSy | AA158: 39 | AB158: =AA158+AB157 -> 66209 | AC158: =AB158/$AB$1*100 -> 93.74062013 | AE158: Motif:Mariner-52_HSal | AF158: 5 | AG158: =AF158+AG157 -> 4486 | AH158: =AG158/$AG$1*100 -> 86.10364683 | AJ158: Motif:Ginger1-1_AC | AK158: 3 | AL158: =AK158+AL157 -> 2997 | AM158: =AL158/$AL$1*100 -> 89.19642857 | AO158: Motif:Gypsy1-PP_I-int | AP158: 4 | AQ158: =AP158+AQ157 -> 1399 | AR158: =AQ158/$AQ$1*100 -> 54.69116497 | AT158: Motif:HERVFH21-int | AU158: 2 | AV158: =AU158+AV157 -> 976 | AW158: =AV158/$AV$1*100 -> 66.39455782
A159: Motif:Gypsy-21_PBa-LTR | B159: 11 | C159: =B159+C158 -> 10161 | D159: =C159/$C$1*100 -> 84.97240341 | F159: Motif:Gypsy-4_Trm-I | G159: 96 | H159: =G159+H158 -> 69872 | I159: =H159/$H$1*100 -> 81.66814718 | K159: Motif:Kolobok-N1_AEc | L159: 40 | M159: =L159+M158 -> 73256 | N159: =M159/$M$1*100 -> 87.74329552 | P159: Motif:DNA-1-8_DR | Q159: 70 | R159: =Q159+R158 -> 39586 | S159: =R159/$R$1*100 -> 71.32484099 | U159: Motif:L1-11_DR | V159: 35 | W159: =V159+W158 -> 25041 | X159: =W159/$W$1*100 -> 79.4952381 | Z159: Motif:LOOPERN3_DR | AA159: 39 | AB159: =AA159+AB158 -> 66248 | AC159: =AB159/$AB$1*100 -> 93.79583746 | AE159: Motif:Mariner-16_SIn | AF159: 5 | AG159: =AF159+AG158 -> 4491 | AH159: =AG159/$AG$1*100 -> 86.19961612 | AJ159: Motif:EnSpm-N14_DR | AK159: 3 | AL159: =AK159+AL158 -> 3000 | AM159: =AL159/$AL$1*100 -> 89.28571429 | AO159: Motif:Gypsy-17_BD-I | AP159: 4 | AQ159: =AP159+AQ158 -> 1403 | AR159: =AQ159/$AQ$1*100 -> 54.84753714 | AT159: Motif:Helitron-N35_CGi | AU159: 2 | AV159: =AU159+AV158 -> 978 | AW159: =AV159/$AV$1*100 -> 66.53061224
A160: Motif:Z-REP | B160: 10 | C160: =B160+C159 -> 10171 | D160: =C160/$C$1*100 -> 85.05602944 | F160: Motif:EnSpm-9_DR | G160: 95 | H160: =G160+H159 -> 69967 | I160: =H160/$H$1*100 -> 81.77918556 | K160: Motif:Helitron-2_DR | L160: 40 | M160: =L160+M159 -> 73296 | N160: =M160/$M$1*100 -> 87.79120603 | P160: Motif:EnSpm-21_HMa | Q160: 69 | R160: =Q160+R159 -> 39655 | S160: =R160/$R$1*100 -> 71.44916308 | U160: Motif:Kolobok-2_AP | V160: 35 | W160: =V160+W159 -> 25076 | X160: =W160/$W$1*100 -> 79.60634921 | Z160: Motif:L1-4_VC | AA160: 39 | AB160: =AA160+AB159 -> 66287 | AC160: =AB160/$AB$1*100 -> 93.85105479 | AE160: Motif:Mariner-13_SIn | AF160: 5 | AG160: =AF160+AG159 -> 4496 | AH160: =AG160/$AG$1*100 -> 86.29558541 | AJ160: Motif:EnSpm-7_DR | AK160: 3 | AL160: =AK160+AL159 -> 3003 | AM160: =AL160/$AL$1*100 -> 89.375 | AO160: Motif:Gypsy-17_ADe-I | AP160: 4 | AQ160: =AP160+AQ159 -> 1407 | AR160: =AQ160/$AQ$1*100 -> 55.0039093 | AT160: Motif:Helitron-N1_HSal | AU160: 2 | AV160: =AU160+AV159 -> 980 | AW160: =AV160/$AV$1*100 -> 66.66666667
A161: Motif:SINE_VV | B161: 10 | C161: =B161+C160 -> 10181 | D161: =C161/$C$1*100 -> 85.13965546 | F161: Motif:DNA-2-32_DR | G161: 95 | H161: =G161+H160 -> 70062 | I161: =H161/$H$1*100 -> 81.89022395 | K161: Motif:Gypsy-4_PPP-I | L161: 40 | M161: =L161+M160 -> 73336 | N161: =M161/$M$1*100 -> 87.83911653 | P161: Motif:ZFERV-2-I_DR | Q161: 68 | R161: =Q161+R160 -> 39723 | S161: =R161/$R$1*100 -> 71.57168339 | U161: Motif:Gypsy-31-LTR_DR | V161: 35 | W161: =V161+W160 -> 25111 | X161: =W161/$W$1*100 -> 79.71746032 | Z161: Motif:RLTR20C2_MM | AA161: 38 | AB161: =AA161+AB160 -> 66325 | AC161: =AB161/$AB$1*100 -> 93.90485629 | AE161: Motif:L1-11_DR | AF161: 5 | AG161: =AF161+AG160 -> 4501 | AH161: =AG161/$AG$1*100 -> 86.3915547 | AJ161: Motif:EnSpm-1_HV | AK161: 3 | AL161: =AK161+AL160 -> 3006 | AM161: =AL161/$AL$1*100 -> 89.46428571 | AO161: Motif:Gypsy-15_FV-I | AP161: 4 | AQ161: =AP161+AQ160 -> 1411 | AR161: =AQ161/$AQ$1*100 -> 55.16028147 | AT161: Motif:Helitron-3_ZM | AU161: 2 | AV161: =AU161+AV160 -> 982 | AW161: =AV161/$AV$1*100 -> 66.80272109
A162: Motif:Mariner-N39_HSal | B162: 10 | C162: =B162+C161 -> 10191 | D162: =C162/$C$1*100 -> 85.22328149 | F162: Motif:Academ-1_HM | G162: 95 | H162: =G162+H161 -> 70157 | I162: =H162/$H$1*100 -> 82.00126233 | K162: Motif:EnSpm2_PTr | L162: 40 | M162: =L162+M161 -> 73376 | N162: =M162/$M$1*100 -> 87.88702703 | P162: Motif:Helitron-3N3_PM | Q162: 67 | R162: =Q162+R161 -> 39790 | S162: =R162/$R$1*100 -> 71.69240194 | U162: Motif:DNA-X-5_DR | V162: 35 | W162: =V162+W161 -> 25146 | X162: =W162/$W$1*100 -> 79.82857143 | Z162: Motif:Poseidon-2B_PM | AA162: 38 | AB162: =AA162+AB161 -> 66363 | AC162: =AB162/$AB$1*100 -> 93.95865779 | AE162: Motif:ISL2EU-N5B_CGi | AF162: 5 | AG162: =AF162+AG161 -> 4506 | AH162: =AG162/$AG$1*100 -> 86.48752399 | AJ162: Motif:DNA-TTAA0-4_DR | AK162: 3 | AL162: =AK162+AL161 -> 3009 | AM162: =AL162/$AL$1*100 -> 89.55357143 | AO162: Motif:Gypsy-11_PPa-I | AP162: 4 | AQ162: =AP162+AQ161 -> 1415 | AR162: =AQ162/$AQ$1*100 -> 55.31665364 | AT162: Motif:hAT-N35B_DR | AU162: 2 | AV162: =AU162+AV161 -> 984 | AW162: =AV162/$AV$1*100 -> 66.93877551
A163: Motif:Mariner-16_SIn | B163: 10 | C163: =B163+C162 -> 10201 | D163: =C163/$C$1*100 -> 85.30690751 | F163: Motif:Dada-1_BF | G163: 93 | H163: =G163+H162 -> 70250 | I163: =H163/$H$1*100 -> 82.10996307 | K163: Motif:MuDR-10_GM | L163: 39 | M163: =L163+M162 -> 73415 | N163: =M163/$M$1*100 -> 87.93373977 | P163: Motif:Daphne-73_HMa | Q163: 67 | R163: =Q163+R162 -> 39857 | S163: =R163/$R$1*100 -> 71.81312048 | U163: Motif:Chapaev-6_HM | V163: 35 | W163: =V163+W162 -> 25181 | X163: =W163/$W$1*100 -> 79.93968254 | Z163: Motif:HAT-4_Mad | AA163: 38 | AB163: =AA163+AB162 -> 66401 | AC163: =AB163/$AB$1*100 -> 94.01245929 | AE163: Motif:hAT-310_Ami | AF163: 5 | AG163: =AF163+AG162 -> 4511 | AH163: =AG163/$AG$1*100 -> 86.58349328 | AJ163: Motif:DNA8-5_DR | AK163: 3 | AL163: =AK163+AL162 -> 3012 | AM163: =AL163/$AL$1*100 -> 89.64285714 | AO163: Motif:Gypsy119-I_DR | AP163: 4 | AQ163: =AP163+AQ162 -> 1419 | AR163: =AQ163/$AQ$1*100 -> 55.4730258 | AT163: Motif:hAT-N34_DR | AU163: 2 | AV163: =AU163+AV162 -> 986 | AW163: =AV163/$AV$1*100 -> 67.07482993
A164: Motif:Mariner-14_SIn | B164: 10 | C164: =B164+C163 -> 10211 | D164: =C164/$C$1*100 -> 85.39053353 | F164: Motif:Sola2-1_HM | G164: 92 | H164: =G164+H163 -> 70342 | I164: =H164/$H$1*100 -> 82.21749497 | K164: Motif:EnSpm1_HV | L164: 39 | M164: =L164+M163 -> 73454 | N164: =M164/$M$1*100 -> 87.98045251 | P164: Motif:Helitron-N1_PBa | Q164: 66 | R164: =Q164+R163 -> 39923 | S164: =R164/$R$1*100 -> 71.93203726 | U164: Motif:Chapaev-20_HM | V164: 35 | W164: =V164+W163 -> 25216 | X164: =W164/$W$1*100 -> 80.05079365 | Z164: Motif:hAT-21_CPB | AA164: 38 | AB164: =AA164+AB163 -> 66439 | AC164: =AB164/$AB$1*100 -> 94.0662608 | AE164: Motif:hAT-2_HM | AF164: 5 | AG164: =AF164+AG163 -> 4516 | AH164: =AG164/$AG$1*100 -> 86.67946257 | AJ164: Motif:DNA6-1_SP | AK164: 3 | AL164: =AK164+AL163 -> 3015 | AM164: =AL164/$AL$1*100 -> 89.73214286 | AO164: Motif:GYPSHAN3_I_MT-int | AP164: 4 | AQ164: =AP164+AQ163 -> 1423 | AR164: =AQ164/$AQ$1*100 -> 55.62939797 | AT164: Motif:hAT-N2_CPB | AU164: 2 | AV164: =AU164+AV163 -> 988 | AW164: =AV164/$AV$1*100 -> 67.21088435
A165: Motif:Mariner-13_SIn | B165: 10 | C165: =B165+C164 -> 10221 | D165: =C165/$C$1*100 -> 85.47415956 | F165: Motif:LTR-12D_Gav | G165: 92 | H165: =G165+H164 -> 70434 | I165: =H165/$H$1*100 -> 82.32502688 | K165: Motif:CryptonS-1_PR | L165: 38 | M165: =L165+M164 -> 73492 | N165: =M165/$M$1*100 -> 88.02596749 | P165: Motif:Gypsy-88_CQ-I | Q165: 65 | R165: =Q165+R164 -> 39988 | S165: =R165/$R$1*100 -> 72.04915227 | U165: Motif:OposCharlie1 | V165: 34 | W165: =V165+W164 -> 25250 | X165: =W165/$W$1*100 -> 80.15873016 | Z165: Motif:Copia-96_SB-I | AA165: 38 | AB165: =AA165+AB164 -> 66477 | AC165: =AB165/$AB$1*100 -> 94.1200623 | AE165: Motif:Gypsy82-LTR_Dr | AF165: 5 | AG165: =AF165+AG164 -> 4521 | AH165: =AG165/$AG$1*100 -> 86.77543186 | AJ165: Motif:DNA3-10_CGi | AK165: 3 | AL165: =AK165+AL164 -> 3018 | AM165: =AL165/$AL$1*100 -> 89.82142857 | AO165: Motif:GYLES1_I-int | AP165: 4 | AQ165: =AP165+AQ164 -> 1427 | AR165: =AQ165/$AQ$1*100 -> 55.78577013 | AT165: Motif:HATN11B_DR | AU165: 2 | AV165: =AU165+AV164 -> 990 | AW165: =AV165/$AV$1*100 -> 67.34693878
A166: Motif:Gypsy-8_HMM-LTR | B166: 10 | C166: =B166+C165 -> 10231 | D166: =C166/$C$1*100 -> 85.55778558 | F166: Motif:DNA-8-1_HM | G166: 92 | H166: =G166+H165 -> 70526 | I166: =H166/$H$1*100 -> 82.43255879 | K166: Motif:Sola3-1_BF | L166: 36 | M166: =L166+M165 -> 73528 | N166: =M166/$M$1*100 -> 88.06908695 | P166: Motif:Mariner-29_HM | Q166: 64 | R166: =Q166+R165 -> 40052 | S166: =R166/$R$1*100 -> 72.16446551 | U166: Motif:Mariner-39_HM | V166: 34 | W166: =V166+W165 -> 25284 | X166: =W166/$W$1*100 -> 80.26666667 | Z166: Motif:MuDR1_ZM | AA166: 37 | AB166: =AA166+AB165 -> 66514 | AC166: =AB166/$AB$1*100 -> 94.17244797 | AE166: Motif:Gypsy61-I_AG | AF166: 5 | AG166: =AF166+AG165 -> 4526 | AH166: =AG166/$AG$1*100 -> 86.87140115 | AJ166: Motif:Dada-U6_GA | AK166: 3 | AL166: =AK166+AL165 -> 3021 | AM166: =AL166/$AL$1*100 -> 89.91071429 | AO166: Motif:EnSpm-N1_AT | AP166: 4 | AQ166: =AP166+AQ165 -> 1431 | AR166: =AQ166/$AQ$1*100 -> 55.9421423 | AT166: Motif:hAT6-2_SP | AU166: 2 | AV166: =AU166+AV165 -> 992 | AW166: =AV166/$AV$1*100 -> 67.4829932
A167: Motif:Galileo_DM | B167: 10 | C167: =B167+C166 -> 10241 | D167: =C167/$C$1*100 -> 85.64141161 | F167: Motif:SAT-13_DR | G167: 91 | H167: =G167+H166 -> 70617 | I167: =H167/$H$1*100 -> 82.53892188 | K167: Motif:REP-4_PBa | L167: 36 | M167: =L167+M166 -> 73564 | N167: =M167/$M$1*100 -> 88.1122064 | P167: Motif:Kolobok-2_DR | Q167: 64 | R167: =Q167+R166 -> 40116 | S167: =R167/$R$1*100 -> 72.27977874 | U167: Motif:hAT-2_DR | V167: 34 | W167: =V167+W166 -> 25318 | X167: =W167/$W$1*100 -> 80.37460317 | Z167: Motif:Helitron-N1_HSal | AA167: 37 | AB167: =AA167+AB166 -> 66551 | AC167: =AB167/$AB$1*100 -> 94.22483364 | AE167: Motif:Gypsy-22-LTR_DR | AF167: 5 | AG167: =AF167+AG166 -> 4531 | AH167: =AG167/$AG$1*100 -> 86.96737044 | AJ167: Motif:Copia-58_BG-I | AK167: 3 | AL167: =AK167+AL166 -> 3024 | AM167: =AL167/$AL$1*100 -> 90 | AO167: Motif:EnSpm2_TM | AP167: 4 | AQ167: =AP167+AQ166 -> 1435 | AR167: =AQ167/$AQ$1*100 -> 56.09851446 | AT167: Motif:hAT-2n1_DR | AU167: 2 | AV167: =AU167+AV166 -> 994 | AW167: =AV167/$AV$1*100 -> 67.61904762
A168: Motif:ERV1-7_DR-I | B168: 10 | C168: =B168+C167 -> 10251 | D168: =C168/$C$1*100 -> 85.72503763 | F168: Motif:CR1-1_NV | G168: 90 | H168: =G168+H167 -> 70707 | I168: =H168/$H$1*100 -> 82.64411613 | K168: Motif:L1_AC_7 | L168: 36 | M168: =L168+M167 -> 73600 | N168: =M168/$M$1*100 -> 88.15532585 | P168: Motif:DNA-1-2_DR | Q168: 64 | R168: =Q168+R167 -> 40180 | S168: =R168/$R$1*100 -> 72.39509198 | U168: Motif:DIRS-2_MLP-I | V168: 34 | W168: =V168+W167 -> 25352 | X168: =W168/$W$1*100 -> 80.48253968 | Z168: Motif:hAT-N13_AMi | AA168: 37 | AB168: =AA168+AB167 -> 66588 | AC168: =AB168/$AB$1*100 -> 94.27721931 | AE168: Motif:EnSpm-N14_DR | AF168: 5 | AG168: =AF168+AG167 -> 4536 | AH168: =AG168/$AG$1*100 -> 87.06333973 | AJ168: Motif:Copia-14_BG-I | AK168: 3 | AL168: =AK168+AL167 -> 3027 | AM168: =AL168/$AL$1*100 -> 90.08928571 | AO168: Motif:DNA-2-32_DR | AP168: 4 | AQ168: =AP168+AQ167 -> 1439 | AR168: =AQ168/$AQ$1*100 -> 56.25488663 | AT168: Motif:HAT1_DR | AU168: 2 | AV168: =AU168+AV167 -> 996 | AW168: =AV168/$AV$1*100 -> 67.75510204
A169: Motif:EnSpm-2_HM | B169: 10 | C169: =B169+C168 -> 10261 | D169: =C169/$C$1*100 -> 85.80866366 | F169: Motif:Gypsy6-NVi_LTR | G169: 88 | H169: =G169+H168 -> 70795 | I169: =H169/$H$1*100 -> 82.74697274 | K169: Motif:Gypsy61-I_AG | L169: 36 | M169: =L169+M168 -> 73636 | N169: =M169/$M$1*100 -> 88.1984453 | P169: Motif:DIRS-8_DR | Q169: 64 | R169: =Q169+R168 -> 40244 | S169: =R169/$R$1*100 -> 72.51040522 | U169: Motif:Harbinger-1_XT | V169: 33 | W169: =V169+W168 -> 25385 | X169: =W169/$W$1*100 -> 80.58730159 | Z169: Motif:Mariner-N41_HSal | AA169: 36 | AB169: =AA169+AB168 -> 66624 | AC169: =AB169/$AB$1*100 -> 94.32818915 | AE169: Motif:DNA3-13B_CGi | AF169: 5 | AG169: =AF169+AG168 -> 4541 | AH169: =AG169/$AG$1*100 -> 87.15930902 | AJ169: Motif:CLOUD-7 | AK169: 3 | AL169: =AK169+AL168 -> 3030 | AM169: =AL169/$AL$1*100 -> 90.17857143 | AO169: Motif:DIRS-4_DR | AP169: 4 | AQ169: =AP169+AQ168 -> 1443 | AR169: =AQ169/$AQ$1*100 -> 56.4112588 | AT169: Motif:hAT-16N2_LMi | AU169: 2 | AV169: =AU169+AV168 -> 998 | AW169: =AV169/$AV$1*100 -> 67.89115646
A170: Motif:EnSpm-21_HMa | B170: 10 | C170: =B170+C169 -> 10271 | D170: =C170/$C$1*100 -> 85.89228968 | F170: Motif:hAT-80_HM | G170: 87 | H170: =G170+H169 -> 70882 | I170: =H170/$H$1*100 -> 82.84866053 | K170: Motif:Gypsy68-I_AG | L170: 35 | M170: =L170+M169 -> 73671 | N170: =M170/$M$1*100 -> 88.24036699 | P170: Motif:CACTA_LP | Q170: 63 | R170: =Q170+R169 -> 40307 | S170: =R170/$R$1*100 -> 72.62391669 | U170: Motif:Mariner-36_HM | V170: 32 | W170: =V170+W169 -> 25417 | X170: =W170/$W$1*100 -> 80.68888889 | Z170: Motif:Gypsy-9-I_CR | AA170: 36 | AB170: =AA170+AB169 -> 66660 | AC170: =AB170/$AB$1*100 -> 94.379159 | AE170: Motif:Copia3-I_XT | AF170: 5 | AG170: =AF170+AG169 -> 4546 | AH170: =AG170/$AG$1*100 -> 87.25527831 | AJ170: Motif:Ves2B_ML | AK170: 2 | AL170: =AK170+AL169 -> 3032 | AM170: =AL170/$AL$1*100 -> 90.23809524 | AO170: Motif:Crack-11_AAe | AP170: 4 | AQ170: =AP170+AQ169 -> 1447 | AR170: =AQ170/$AQ$1*100 -> 56.56763096 | AT170: Motif:Gypsy-9_DPu-I | AU170: 2 | AV170: =AU170+AV169 -> 1000 | AW170: =AV170/$AV$1*100 -> 68.02721088
A171: Motif:DNA-2-12_DR | B171: 10 | C171: =B171+C170 -> 10281 | D171: =C171/$C$1*100 -> 85.9759157 | F171: Motif:Gypsy-41_AA-I | G171: 86 | H171: =G171+H170 -> 70968 | I171: =H171/$H$1*100 -> 82.94917948 | K171: Motif:Jockey-3_DPer | L171: 34 | M171: =L171+M170 -> 73705 | N171: =M171/$M$1*100 -> 88.28109092 | P171: Motif:hAT-N5_ACar | Q171: 61 | R171: =Q171+R170 -> 40368 | S171: =R171/$R$1*100 -> 72.73382462 | U171: Motif:hAT-54_HM | V171: 32 | W171: =V171+W170 -> 25449 | X171: =W171/$W$1*100 -> 80.79047619 | Z171: Motif:Gypsy-22_SB-I | AA171: 36 | AB171: =AA171+AB170 -> 66696 | AC171: =AB171/$AB$1*100 -> 94.43012884 | AE171: Motif:Copia-27_PAb-I | AF171: 5 | AG171: =AF171+AG170 -> 4551 | AH171: =AG171/$AG$1*100 -> 87.3512476 | AJ171: Motif:Tx1-10_SK | AK171: 2 | AL171: =AK171+AL170 -> 3034 | AM171: =AL171/$AL$1*100 -> 90.29761905 | AO171: Motif:Copia15-VV_I-int | AP171: 4 | AQ171: =AP171+AQ170 -> 1451 | AR171: =AQ171/$AQ$1*100 -> 56.72400313 | AT171: Motif:Gypsy-74-I_ZM | AU171: 2 | AV171: =AU171+AV170 -> 1002 | AW171: =AV171/$AV$1*100 -> 68.16326531
A172: Motif:tRNA-1_DRe | B172: 9 | C172: =B172+C171 -> 10290 | D172: =C172/$C$1*100 -> 86.05117913 | F172: Motif:Transib-6_HM | G172: 85 | H172: =G172+H171 -> 71053 | I172: =H172/$H$1*100 -> 83.04852962 | K172: Motif:Helitron-4_DR | L172: 34 | M172: =L172+M171 -> 73739 | N172: =M172/$M$1*100 -> 88.32181485 | P172: Motif:RTAg4 | Q172: 60 | R172: =Q172+R171 -> 40428 | S172: =R172/$R$1*100 -> 72.84193078 | U172: Motif:EnSpm-16_HM | V172: 32 | W172: =V172+W171 -> 25481 | X172: =W172/$W$1*100 -> 80.89206349 | Z172: Motif:Gypsy-22_DWil-I | AA172: 36 | AB172: =AA172+AB171 -> 66732 | AC172: =AB172/$AB$1*100 -> 94.48109868 | AE172: Motif:Copia-17_SB-I | AF172: 5 | AG172: =AF172+AG171 -> 4556 | AH172: =AG172/$AG$1*100 -> 87.44721689 | AJ172: Motif:TUBE2 | AK172: 2 | AL172: =AK172+AL171 -> 3036 | AM172: =AL172/$AL$1*100 -> 90.35714286 | AO172: Motif:Caulimovirus-1_PD | AP172: 4 | AQ172: =AP172+AQ171 -> 1455 | AR172: =AQ172/$AQ$1*100 -> 56.88037529 | AT172: Motif:Gypsy-6_AEc-LTR | AU172: 2 | AV172: =AU172+AV171 -> 1004 | AW172: =AV172/$AV$1*100 -> 68.29931973
A173: Motif:TE-2_XT | B173: 9 | C173: =B173+C172 -> 10299 | D173: =C173/$C$1*100 -> 86.12644255 | F173: Motif:DIRS-8B_DR | G173: 85 | H173: =G173+H172 -> 71138 | I173: =H173/$H$1*100 -> 83.14787975 | K173: Motif:Gypsy-31-LTR_DR | L173: 34 | M173: =L173+M172 -> 73773 | N173: =M173/$M$1*100 -> 88.36253878 | P173: Motif:L1-55_XT | Q173: 60 | R173: =Q173+R172 -> 40488 | S173: =R173/$R$1*100 -> 72.95003694 | U173: Motif:DIRS-15B_DR | V173: 32 | W173: =V173+W172 -> 25513 | X173: =W173/$W$1*100 -> 80.99365079 | Z173: Motif:Polinton-5_NVi | AA173: 35 | AB173: =AA173+AB172 -> 66767 | AC173: =AB173/$AB$1*100 -> 94.5306527 | AE173: Motif:U6 | AF173: 4 | AG173: =AF173+AG172 -> 4560 | AH173: =AG173/$AG$1*100 -> 87.52399232 | AJ173: Motif:TE-X-5_DR | AK173: 2 | AL173: =AK173+AL172 -> 3038 | AM173: =AL173/$AL$1*100 -> 90.41666667 | AO173: Motif:ATHATN10 | AP173: 4 | AQ173: =AP173+AQ172 -> 1459 | AR173: =AQ173/$AQ$1*100 -> 57.03674746 | AT173: Motif:Gypsy-53_PM-LTR | AU173: 2 | AV173: =AU173+AV172 -> 1006 | AW173: =AV173/$AV$1*100 -> 68.43537415
A174: Motif:Polinton-1N1_DR | B174: 9 | C174: =B174+C173 -> 10308 | D174: =C174/$C$1*100 -> 86.20170597 | F174: Motif:Gypsy-18_RP-I | G174: 84 | H174: =G174+H173 -> 71222 | I174: =H174/$H$1*100 -> 83.24606106 | K174: Motif:DINOLT1 | L174: 34 | M174: =L174+M173 -> 73807 | N174: =M174/$M$1*100 -> 88.40326271 | P174: Motif:HARB-6_ALy | Q174: 60 | R174: =Q174+R173 -> 40548 | S174: =R174/$R$1*100 -> 73.0581431 | U174: Motif:Transib-1_HM | V174: 31 | W174: =V174+W173 -> 25544 | X174: =W174/$W$1*100 -> 81.09206349 | Z174: Motif:MonoRep558 | AA174: 35 | AB174: =AA174+AB173 -> 66802 | AC174: =AB174/$AB$1*100 -> 94.58020671 | AE174: Motif:tRNA-Phe-TTY | AF174: 4 | AG174: =AF174+AG173 -> 4564 | AH174: =AG174/$AG$1*100 -> 87.60076775 | AJ174: Motif:Sola2-1_EmiHux | AK174: 2 | AL174: =AK174+AL173 -> 3040 | AM174: =AL174/$AL$1*100 -> 90.47619048 | AO174: Motif:5S-Sauria | AP174: 4 | AQ174: =AP174+AQ173 -> 1463 | AR174: =AQ174/$AQ$1*100 -> 57.19311962 | AT174: Motif:Gypsy-51_GA-LTR | AU174: 2 | AV174: =AU174+AV173 -> 1008 | AW174: =AV174/$AV$1*100 -> 68.57142857
A175: Motif:Mariner-N10_SIn | B175: 9 | C175: =B175+C174 -> 10317 | D175: =C175/$C$1*100 -> 86.27696939 | F175: Motif:EnSpm-5_HM | G175: 83 | H175: =G175+H174 -> 71305 | I175: =H175/$H$1*100 -> 83.34307354 | K175: Motif:P-30_HM | L175: 33 | M175: =L175+M174 -> 73840 | N175: =M175/$M$1*100 -> 88.44278887 | P175: Motif:Zisupton-1_DR | Q175: 59 | R175: =Q175+R174 -> 40607 | S175: =R175/$R$1*100 -> 73.16444749 | U175: Motif:Transib-10_HM | V175: 31 | W175: =V175+W174 -> 25575 | X175: =W175/$W$1*100 -> 81.19047619 | Z175: Motif:Harbinger-2_LCh | AA175: 35 | AB175: =AA175+AB174 -> 66837 | AC175: =AB175/$AB$1*100 -> 94.62976072 | AE175: Motif:tRNA-Leu-CTY | AF175: 4 | AG175: =AF175+AG174 -> 4568 | AH175: =AG175/$AG$1*100 -> 87.67754319 | AJ175: Motif:RTEX-1_CR | AK175: 2 | AL175: =AK175+AL174 -> 3042 | AM175: =AL175/$AL$1*100 -> 90.53571429 | AO175: Motif:VIHAT3 | AP175: 3 | AQ175: =AP175+AQ174 -> 1466 | AR175: =AQ175/$AQ$1*100 -> 57.31039875 | AT175: Motif:Gypsy-23-LTR_NVi | AU175: 2 | AV175: =AU175+AV174 -> 1010 | AW175: =AV175/$AV$1*100 -> 68.70748299
A176: Motif:LatiHarb1-N3A | B176: 9 | C176: =B176+C175 -> 10326 | D176: =C176/$C$1*100 -> 86.35223281 | F176: Motif:Mariner-79B_HSal | G176: 81 | H176: =G176+H175 -> 71386 | I176: =H176/$H$1*100 -> 83.43774838 | K176: Motif:L2_AC_2 | L176: 33 | M176: =L176+M175 -> 73873 | N176: =M176/$M$1*100 -> 88.48231504 | P176: Motif:Polinton-2_HM | Q176: 59 | R176: =Q176+R175 -> 40666 | S176: =R176/$R$1*100 -> 73.27075188 | U176: Motif:Gypsy-6_LCh-I | V176: 31 | W176: =V176+W175 -> 25606 | X176: =W176/$W$1*100 -> 81.28888889 | Z176: Motif:Copia-3_PSH-I | AA176: 35 | AB176: =AA176+AB175 -> 66872 | AC176: =AB176/$AB$1*100 -> 94.67931474 | AE176: Motif:ROO_I-int | AF176: 4 | AG176: =AF176+AG175 -> 4572 | AH176: =AG176/$AG$1*100 -> 87.75431862 | AJ176: Motif:RTE-1_Crp | AK176: 2 | AL176: =AK176+AL175 -> 3044 | AM176: =AL176/$AL$1*100 -> 90.5952381 | AO176: Motif:Ves2_ML | AP176: 3 | AQ176: =AP176+AQ175 -> 1469 | AR176: =AQ176/$AQ$1*100 -> 57.42767787 | AT176: Motif:Gypsy-21_PBa-LTR | AU176: 2 | AV176: =AU176+AV175 -> 1012 | AW176: =AV176/$AV$1*100 -> 68.84353741
A177: Motif:Harbinger-1_XT | B177: 9 | C177: =B177+C176 -> 10335 | D177: =C177/$C$1*100 -> 86.42749624 | F177: Motif:L1-3_CR | G177: 81 | H177: =G177+H176 -> 71467 | I177: =H177/$H$1*100 -> 83.53242321 | K177: Motif:EnSpm6_SB | L177: 33 | M177: =L177+M176 -> 73906 | N177: =M177/$M$1*100 -> 88.5218412 | P177: Motif:L1-48_DR | Q177: 58 | R177: =Q177+R176 -> 40724 | S177: =R177/$R$1*100 -> 73.3752545 | U177: Motif:TE-X-4_DR | V177: 30 | W177: =V177+W176 -> 25636 | X177: =W177/$W$1*100 -> 81.38412698 | Z177: Motif:MuDR-10_GM | AA177: 34 | AB177: =AA177+AB176 -> 66906 | AC177: =AB177/$AB$1*100 -> 94.72745292 | AE177: Motif:RLTR20A4 | AF177: 4 | AG177: =AF177+AG176 -> 4576 | AH177: =AG177/$AG$1*100 -> 87.83109405 | AJ177: Motif:RNLTR15A2 | AK177: 2 | AL177: =AK177+AL176 -> 3046 | AM177: =AL177/$AL$1*100 -> 90.6547619 | AO177: Motif:tRNASerTCT_CB | AP177: 3 | AQ177: =AP177+AQ176 -> 1472 | AR177: =AQ177/$AQ$1*100 -> 57.544957 | AT177: Motif:Gypsy-1_CMe-I | AU177: 2 | AV177: =AU177+AV176 -> 1014 | AW177: =AV177/$AV$1*100 -> 68.97959184
A178: Motif:EnSpm-N10_DR | B178: 9 | C178: =B178+C177 -> 10344 | D178: =C178/$C$1*100 -> 86.50275966 | F178: Motif:Gypsy-25_SB-I | G178: 80 | H178: =G178+H177 -> 71547 | I178: =H178/$H$1*100 -> 83.62592922 | K178: Motif:L1-53_DR | L178: 32 | M178: =L178+M177 -> 73938 | N178: =M178/$M$1*100 -> 88.5601696 | P178: Motif:DIRS-8B_DR | Q178: 58 | R178: =Q178+R177 -> 40782 | S178: =R178/$R$1*100 -> 73.47975712 | U178: Motif:PIVE | V178: 30 | W178: =V178+W177 -> 25666 | X178: =W178/$W$1*100 -> 81.47936508 | Z178: Motif:Mariner-52_HSal | AA178: 34 | AB178: =AA178+AB177 -> 66940 | AC178: =AB178/$AB$1*100 -> 94.77559111 | AE178: Motif:polypyrimidine | AF178: 4 | AG178: =AF178+AG177 -> 4580 | AH178: =AG178/$AG$1*100 -> 87.90786948 | AJ178: Motif:RLTR20A4 | AK178: 2 | AL178: =AK178+AL177 -> 3048 | AM178: =AL178/$AL$1*100 -> 90.71428571 | AO178: Motif:TE-X-4_NVi | AP178: 3 | AQ178: =AP178+AQ177 -> 1475 | AR178: =AQ178/$AQ$1*100 -> 57.66223612 | AT178: Motif:Ginger2-1_LS | AU178: 2 | AV178: =AU178+AV177 -> 1016 | AW178: =AV178/$AV$1*100 -> 69.11564626
A179: Motif:EnSpm8_SB | B179: 9 | C179: =B179+C178 -> 10353 | D179: =C179/$C$1*100 -> 86.57802308 | F179: Motif:P-1_LHu | G179: 79 | H179: =G179+H178 -> 71626 | I179: =H179/$H$1*100 -> 83.7182664 | K179: Motif:hAT-N47B_DR | L179: 32 | M179: =L179+M178 -> 73970 | N179: =M179/$M$1*100 -> 88.59849801 | P179: Motif:MuDR-5_VV | Q179: 57 | R179: =Q179+R178 -> 40839 | S179: =R179/$R$1*100 -> 73.58245797 | U179: Motif:P-35_HM | V179: 30 | W179: =V179+W178 -> 25696 | X179: =W179/$W$1*100 -> 81.57460317 | Z179: Motif:Helitron-N1_PBa | AA179: 34 | AB179: =AA179+AB178 -> 66974 | AC179: =AB179/$AB$1*100 -> 94.82372929 | AE179: Motif:Polinton-2_PBa | AF179: 4 | AG179: =AF179+AG178 -> 4584 | AH179: =AG179/$AG$1*100 -> 87.98464491 | AJ179: Motif:RLG_scMaximus_1_8-I | AK179: 2 | AL179: =AK179+AL178 -> 3050 | AM179: =AL179/$AL$1*100 -> 90.77380952 | AO179: Motif:TE-5_CGi | AP179: 3 | AQ179: =AP179+AQ178 -> 1478 | AR179: =AQ179/$AQ$1*100 -> 57.77951525 | AT179: Motif:Ginger1-2_DR | AU179: 2 | AV179: =AU179+AV178 -> 1018 | AW179: =AV179/$AV$1*100 -> 69.25170068
A180: Motif:DNA9-5_DR | B180: 9 | C180: =B180+C179 -> 10362 | D180: =C180/$C$1*100 -> 86.6532865 | F180: Motif:hATm-54_HM | G180: 78 | H180: =G180+H179 -> 71704 | I180: =H180/$H$1*100 -> 83.80943476 | K180: Motif:HAT1_DR | L180: 32 | M180: =L180+M179 -> 74002 | N180: =M180/$M$1*100 -> 88.63682641 | P180: Motif:MuDR-4_GM | Q180: 57 | R180: =Q180+R179 -> 40896 | S180: =R180/$R$1*100 -> 73.68515883 | U180: Motif:CR1-48_HM | V180: 29 | W180: =V180+W179 -> 25725 | X180: =W180/$W$1*100 -> 81.66666667 | Z180: Motif:Mariner-4_LHu | AA180: 33 | AB180: =AA180+AB179 -> 67007 | AC180: =AB180/$AB$1*100 -> 94.87045165 | AE180: Motif:Novosib-3_CR | AF180: 4 | AG180: =AF180+AG179 -> 4588 | AH180: =AG180/$AG$1*100 -> 88.06142035 | AJ180: Motif:RLG_scDEL_1_3-I | AK180: 2 | AL180: =AK180+AL179 -> 3052 | AM180: =AL180/$AL$1*100 -> 90.83333333 | AO180: Motif:Sushi_I-int | AP180: 3 | AQ180: =AP180+AQ179 -> 1481 | AR180: =AQ180/$AQ$1*100 -> 57.89679437 | AT180: Motif:ERV-5_AMi-I | AU180: 2 | AV180: =AU180+AV179 -> 1020 | AW180: =AV180/$AV$1*100 -> 69.3877551
A181: Motif:Ag-Jock-1 | B181: 9 | C181: =B181+C180 -> 10371 | D181: =C181/$C$1*100 -> 86.72854992 | F181: Motif:hAT-50_HM | G181: 77 | H181: =G181+H180 -> 71781 | I181: =H181/$H$1*100 -> 83.89943429 | K181: Motif:DNA4-3_CQ | L181: 32 | M181: =L181+M180 -> 74034 | N181: =M181/$M$1*100 -> 88.67515481 | P181: Motif:LSU-rRNA_Sce | Q181: 57 | R181: =Q181+R180 -> 40953 | S181: =R181/$R$1*100 -> 73.78785968 | U181: Motif:P-34_HM | V181: 28 | W181: =V181+W180 -> 25753 | X181: =W181/$W$1*100 -> 81.75555556 | Z181: Motif:Helitron-1_DT | AA181: 33 | AB181: =AA181+AB180 -> 67040 | AC181: =AB181/$AB$1*100 -> 94.91717401 | AE181: Motif:Neptune3_Ren | AF181: 4 | AG181: =AF181+AG180 -> 4592 | AH181: =AG181/$AG$1*100 -> 88.13819578 | AJ181: Motif:R1_DMo | AK181: 2 | AL181: =AK181+AL180 -> 3054 | AM181: =AL181/$AL$1*100 -> 90.89285714 | AO181: Motif:SINE2-1_Pca | AP181: 3 | AQ181: =AP181+AQ180 -> 1484 | AR181: =AQ181/$AQ$1*100 -> 58.01407349 | AT181: Motif:ERV1-N3-I_DR | AU181: 2 | AV181: =AU181+AV180 -> 1022 | AW181: =AV181/$AV$1*100 -> 69.52380952
A182: Motif:tRNAGlu_CB | B182: 8 | C182: =B182+C181 -> 10379 | D182: =C182/$C$1*100 -> 86.79545074 | F182: Motif:Kolobok-2_DR | G182: 76 | H182: =G182+H181 -> 71857 | I182: =H182/$H$1*100 -> 83.988265 | K182: Motif:L2-8_NVi | L182: 31 | M182: =L182+M181 -> 74065 | N182: =M182/$M$1*100 -> 88.71228545 | P182: Motif:Jockey-3_DGri | Q182: 57 | R182: =Q182+R181 -> 41010 | S182: =R182/$R$1*100 -> 73.89056053 | U182: Motif:MUDRAVI1 | V182: 28 | W182: =V182+W181 -> 25781 | X182: =W182/$W$1*100 -> 81.84444444 | Z182: Motif:Ginger2-1_LS | AA182: 33 | AB182: =AA182+AB181 -> 67073 | AC182: =AB182/$AB$1*100 -> 94.96389636 | AE182: Motif:MinoAg1 | AF182: 4 | AG182: =AF182+AG181 -> 4596 | AH182: =AG182/$AG$1*100 -> 88.21497121 | AJ182: Motif:Poseidon-2B_PM | AK182: 2 | AL182: =AK182+AL181 -> 3056 | AM182: =AL182/$AL$1*100 -> 90.95238095 | AO182: Motif:RTE-5_LCh | AP182: 3 | AQ182: =AP182+AQ181 -> 1487 | AR182: =AQ182/$AQ$1*100 -> 58.13135262 | AT182: Motif:EnSpm-N10_DR | AU182: 2 | AV182: =AU182+AV181 -> 1024 | AW182: =AV182/$AV$1*100 -> 69.65986395
A183: Motif:tRNACysGCA_CB | B183: 8 | C183: =B183+C182 -> 10387 | D183: =C183/$C$1*100 -> 86.86235156 | F183: Motif:MuDR1_HV | G183: 75 | H183: =G183+H182 -> 71932 | I183: =H183/$H$1*100 -> 84.07592688 | K183: Motif:L1-2_VC | L183: 31 | M183: =L183+M182 -> 74096 | N183: =M183/$M$1*100 -> 88.74941609 | P183: Motif:Copia-58_BG-I | Q183: 57 | R183: =Q183+R182 -> 41067 | S183: =R183/$R$1*100 -> 73.99326138 | U183: Motif:tRNA-3_DRe | V183: 27 | W183: =V183+W182 -> 25808 | X183: =W183/$W$1*100 -> 81.93015873 | Z183: Motif:ERV1-7_DR-I | AA183: 33 | AB183: =AA183+AB182 -> 67106 | AC183: =AB183/$AB$1*100 -> 95.01061872 | AE183: Motif:MERMITE18B | AF183: 4 | AG183: =AF183+AG182 -> 4600 | AH183: =AG183/$AG$1*100 -> 88.29174664 | AJ183: Motif:Novosib-3_CR | AK183: 2 | AL183: =AK183+AL182 -> 3058 | AM183: =AL183/$AL$1*100 -> 91.01190476 | AO183: Motif:RIRE8A_I-int | AP183: 3 | AQ183: =AP183+AQ182 -> 1490 | AR183: =AQ183/$AQ$1*100 -> 58.24863174 | AT183: Motif:EnSpm1n_AT | AU183: 2 | AV183: =AU183+AV182 -> 1026 | AW183: =AV183/$AV$1*100 -> 69.79591837
A184: Motif:SSU-rRNA_Lvi | B184: 8 | C184: =B184+C183 -> 10395 | D184: =C184/$C$1*100 -> 86.92925238 | F184: Motif:Gypsy-16_RO-I | G184: 75 | H184: =G184+H183 -> 72007 | I184: =H184/$H$1*100 -> 84.16358876 | K184: Motif:ATCopia28_I-int | L184: 31 | M184: =L184+M183 -> 74127 | N184: =M184/$M$1*100 -> 88.78654673 | P184: Motif:DNA-3_FV | Q184: 56 | R184: =Q184+R183 -> 41123 | S184: =R184/$R$1*100 -> 74.09416047 | U184: Motif:P-2_HM | V184: 27 | W184: =V184+W183 -> 25835 | X184: =W184/$W$1*100 -> 82.01587302 | Z184: Motif:ROO_I-int | AA184: 32 | AB184: =AA184+AB183 -> 67138 | AC184: =AB184/$AB$1*100 -> 95.05592524 | AE184: Motif:Mariner-N13_HSal | AF184: 4 | AG184: =AF184+AG183 -> 4604 | AH184: =AG184/$AG$1*100 -> 88.36852207 | AJ184: Motif:Neptune3_Ren | AK184: 2 | AL184: =AK184+AL183 -> 3060 | AM184: =AL184/$AL$1*100 -> 91.07142857 | AO184: Motif:R5-1_SM | AP184: 3 | AQ184: =AP184+AQ183 -> 1493 | AR184: =AQ184/$AQ$1*100 -> 58.36591087 | AT184: Motif:EnSpm1_HV | AU184: 2 | AV184: =AU184+AV183 -> 1028 | AW184: =AV184/$AV$1*100 -> 69.93197279
A185: Motif:RTAg4 | B185: 8 | C185: =B185+C184 -> 10403 | D185: =C185/$C$1*100 -> 86.9961532 | F185: Motif:Chapaev-7_HM | G185: 75 | H185: =G185+H184 -> 72082 | I185: =H185/$H$1*100 -> 84.25125064 | K185: Motif:RLG_scMaximus_2_1-I | L185: 30 | M185: =L185+M184 -> 74157 | N185: =M185/$M$1*100 -> 88.82247961 | P185: Motif:Gypsy-53_PM-LTR | Q185: 55 | R185: =Q185+R184 -> 41178 | S185: =R185/$R$1*100 -> 74.19325778 | U185: Motif:hAT-N6_ACar | V185: 27 | W185: =V185+W184 -> 25862 | X185: =W185/$W$1*100 -> 82.1015873 | Z185: Motif:Harbinger2N_TP | AA185: 32 | AB185: =AA185+AB184 -> 67170 | AC185: =AB185/$AB$1*100 -> 95.10123177 | AE185: Motif:LTR-12D_Gav | AF185: 4 | AG185: =AF185+AG184 -> 4608 | AH185: =AG185/$AG$1*100 -> 88.4452975 | AJ185: Motif:MuDR-N1_ZM | AK185: 2 | AL185: =AK185+AL184 -> 3062 | AM185: =AL185/$AL$1*100 -> 91.13095238 | AO185: Motif:R1_Ele4 | AP185: 3 | AQ185: =AP185+AQ184 -> 1496 | AR185: =AQ185/$AQ$1*100 -> 58.48318999 | AT185: Motif:DNA8-12_CGi | AU185: 2 | AV185: =AU185+AV184 -> 1030 | AW185: =AV185/$AV$1*100 -> 70.06802721
A186: Motif:Rhin-1 | B186: 8 | C186: =B186+C185 -> 10411 | D186: =C186/$C$1*100 -> 87.06305402 | F186: Motif:P-2_HM | G186: 74 | H186: =G186+H185 -> 72156 | I186: =H186/$H$1*100 -> 84.3377437 | K186: Motif:hAT-N70_DR | L186: 30 | M186: =L186+M185 -> 74187 | N186: =M186/$M$1*100 -> 88.85841249 | P186: Motif:Ves2_ML | Q186: 54 | R186: =Q186+R185 -> 41232 | S186: =R186/$R$1*100 -> 74.29055332 | U186: Motif:Harbinger-1_DR | V186: 27 | W186: =V186+W185 -> 25889 | X186: =W186/$W$1*100 -> 82.18730159 | Z186: Motif:TE-X-5_DR | AA186: 31 | AB186: =AA186+AB185 -> 67201 | AC186: =AB186/$AB$1*100 -> 95.14512247 | AE186: Motif:LSU-rRNA_Hca | AF186: 4 | AG186: =AF186+AG185 -> 4612 | AH186: =AG186/$AG$1*100 -> 88.52207294 | AJ186: Motif:LTR42_MD | AK186: 2 | AL186: =AK186+AL185 -> 3064 | AM186: =AL186/$AL$1*100 -> 91.19047619 | AO186: Motif:Polinton-9_NVi | AP186: 3 | AQ186: =AP186+AQ185 -> 1499 | AR186: =AQ186/$AQ$1*100 -> 58.60046912 | AT186: Motif:DNA4-24_CGi | AU186: 2 | AV186: =AU186+AV185 -> 1032 | AW186: =AV186/$AV$1*100 -> 70.20408163
A187: Motif:MER4-int | B187: 8 | C187: =B187+C186 -> 10419 | D187: =C187/$C$1*100 -> 87.12995484 | F187: Motif:DNA9-6_DR | G187: 74 | H187: =G187+H186 -> 72230 | I187: =H187/$H$1*100 -> 84.42423676 | K187: Motif:Harbinger-5_CGi | L187: 30 | M187: =L187+M186 -> 74217 | N187: =M187/$M$1*100 -> 88.89434536 | P187: Motif:TE-X-4_NVi | Q187: 54 | R187: =Q187+R186 -> 41286 | S187: =R187/$R$1*100 -> 74.38784887 | U187: Motif:Gypsy-10_PBa-LTR | V187: 27 | W187: =V187+W186 -> 25916 | X187: =W187/$W$1*100 -> 82.27301587 | Z187: Motif:Gypsy-35_CGi-I | AA187: 31 | AB187: =AA187+AB186 -> 67232 | AC187: =AB187/$AB$1*100 -> 95.18901317 | AE187: Motif:LIMPET1 | AF187: 4 | AG187: =AF187+AG186 -> 4616 | AH187: =AG187/$AG$1*100 -> 88.59884837 | AJ187: Motif:LTR24_Sar | AK187: 2 | AL187: =AK187+AL186 -> 3066 | AM187: =AL187/$AL$1*100 -> 91.25 | AO187: Motif:Polinton-8_NVi | AP187: 3 | AQ187: =AP187+AQ186 -> 1502 | AR187: =AQ187/$AQ$1*100 -> 58.71774824 | AT187: Motif:DNA3-1_CGi | AU187: 2 | AV187: =AU187+AV186 -> 1034 | AW187: =AV187/$AV$1*100 -> 70.34013605
A188: Motif:Mariner-14_LCh | B188: 8 | C188: =B188+C187 -> 10427 | D188: =C188/$C$1*100 -> 87.19685566 | F188: Motif:Kolobok-2_AP | G188: 73 | H188: =G188+H187 -> 72303 | I188: =H188/$H$1*100 -> 84.50956099 | K188: Motif:Merlin-1_DR | L188: 29 | M188: =L188+M187 -> 74246 | N188: =M188/$M$1*100 -> 88.92908048 | P188: Motif:L1-56_DR | Q188: 54 | R188: =Q188+R187 -> 41340 | S188: =R188/$R$1*100 -> 74.48514441 | U188: Motif:SPMLIKE | V188: 26 | W188: =V188+W187 -> 25942 | X188: =W188/$W$1*100 -> 82.35555556 | Z188: Motif:PRIMA4-int | AA188: 30 | AB188: =AA188+AB187 -> 67262 | AC188: =AB188/$AB$1*100 -> 95.23148804 | AE188: Motif:IS3EU-4_DR | AF188: 4 | AG188: =AF188+AG187 -> 4620 | AH188: =AG188/$AG$1*100 -> 88.6756238 | AJ188: Motif:L2B-4B_AAe | AK188: 2 | AL188: =AK188+AL187 -> 3068 | AM188: =AL188/$AL$1*100 -> 91.30952381 | AO188: Motif:Polinton-5_SP | AP188: 3 | AQ188: =AP188+AQ187 -> 1505 | AR188: =AQ188/$AQ$1*100 -> 58.83502737 | AT188: Motif:DNA2-7_CGi | AU188: 2 | AV188: =AU188+AV187 -> 1036 | AW188: =AV188/$AV$1*100 -> 70.47619048
A189: Motif:LSU-rRNA_Ath | B189: 8 | C189: =B189+C188 -> 10435 | D189: =C189/$C$1*100 -> 87.26375648 | F189: Motif:EnSpm-12_OS | G189: 73 | H189: =G189+H188 -> 72376 | I189: =H189/$H$1*100 -> 84.59488522 | K189: Motif:L2_AC_15 | L189: 29 | M189: =L189+M188 -> 74275 | N189: =M189/$M$1*100 -> 88.96381559 | P189: Motif:Helitron-9_CGi | Q189: 54 | R189: =Q189+R188 -> 41394 | S189: =R189/$R$1*100 -> 74.58243996 | U189: Motif:piggyBac-N5_DR | V189: 26 | W189: =V189+W188 -> 25968 | X189: =W189/$W$1*100 -> 82.43809524 | Z189: Motif:Nematis_Cr | AA189: 30 | AB189: =AA189+AB188 -> 67292 | AC189: =AB189/$AB$1*100 -> 95.27396291 | AE189: Motif:HATN11B_DR | AF189: 4 | AG189: =AF189+AG188 -> 4624 | AH189: =AG189/$AG$1*100 -> 88.75239923 | AJ189: Motif:L1-N3_FV | AK189: 2 | AL189: =AK189+AL188 -> 3070 | AM189: =AL189/$AL$1*100 -> 91.36904762 | AO189: Motif:Polinton-3_PBa | AP189: 3 | AQ189: =AP189+AQ188 -> 1508 | AR189: =AQ189/$AQ$1*100 -> 58.95230649 | AT189: Motif:DNA2-6_CGi | AU189: 2 | AV189: =AU189+AV188 -> 1038 | AW189: =AV189/$AV$1*100 -> 70.6122449
A190: Motif:EnSpm-17_HM | B190: 8 | C190: =B190+C189 -> 10443 | D190: =C190/$C$1*100 -> 87.3306573 | F190: Motif:Chapaev-3B_HM | G190: 70 | H190: =G190+H189 -> 72446 | I190: =H190/$H$1*100 -> 84.67670298 | K190: Motif:L2-17_NV | L190: 29 | M190: =L190+M189 -> 74304 | N190: =M190/$M$1*100 -> 88.99855071 | P190: Motif:Gypsy3-LTR_AP | Q190: 54 | R190: =Q190+R189 -> 41448 | S190: =R190/$R$1*100 -> 74.6797355 | U190: Motif:LSU-rRNA_Mfr | V190: 26 | W190: =V190+W189 -> 25994 | X190: =W190/$W$1*100 -> 82.52063492 | Z190: Motif:Copia-1_ES-I | AA190: 30 | AB190: =AA190+AB189 -> 67322 | AC190: =AB190/$AB$1*100 -> 95.31643777 | AE190: Motif:hAT-42_Lch | AF190: 4 | AG190: =AF190+AG189 -> 4628 | AH190: =AG190/$AG$1*100 -> 88.82917466 | AJ190: Motif:L1-6_CR | AK190: 2 | AL190: =AK190+AL189 -> 3072 | AM190: =AL190/$AL$1*100 -> 91.42857143 | AO190: Motif:Mariner-3_PGr | AP190: 3 | AQ190: =AP190+AQ189 -> 1511 | AR190: =AQ190/$AQ$1*100 -> 59.06958561 | AT190: Motif:DIRS-15B_DR | AU190: 2 | AV190: =AU190+AV189 -> 1040 | AW190: =AV190/$AV$1*100 -> 70.74829932
A191: Motif:CryptonV-3_DR | B191: 8 | C191: =B191+C190 -> 10451 | D191: =C191/$C$1*100 -> 87.39755812 | F191: Motif:ACROBAT1 | G191: 69 | H191: =G191+H190 -> 72515 | I191: =H191/$H$1*100 -> 84.75735191 | K191: Motif:IS3EU-1_DR | L191: 29 | M191: =L191+M190 -> 74333 | N191: =M191/$M$1*100 -> 89.03328582 | P191: Motif:CR1-78_AAe | Q191: 54 | R191: =Q191+R190 -> 41502 | S191: =R191/$R$1*100 -> 74.77703104 | U191: Motif:Gypsy-18_PBa-I | V191: 26 | W191: =V191+W190 -> 26020 | X191: =W191/$W$1*100 -> 82.6031746 | Z191: Motif:Gypsy98-LTR_Dr | AA191: 29 | AB191: =AA191+AB190 -> 67351 | AC191: =AB191/$AB$1*100 -> 95.35749681 | AE191: Motif:HAT-10_Mad | AF191: 4 | AG191: =AF191+AG190 -> 4632 | AH191: =AG191/$AG$1*100 -> 88.9059501 | AJ191: Motif:L1-45_AAe | AK191: 2 | AL191: =AK191+AL190 -> 3074 | AM191: =AL191/$AL$1*100 -> 91.48809524 | AO191: Motif:MamSINE1 | AP191: 3 | AQ191: =AP191+AQ190 -> 1514 | AR191: =AQ191/$AQ$1*100 -> 59.18686474 | AT191: Motif:Copia-47_Mad-LTR | AU191: 2 | AV191: =AU191+AV190 -> 1042 | AW191: =AV191/$AV$1*100 -> 70.88435374
A192: Motif:ZFERV-2-I_DR | B192: 7 | C192: =B192+C191 -> 10458 | D192: =C192/$C$1*100 -> 87.45609634 | F192: Motif:LSU-rRNA_Mfr | G192: 68 | H192: =G192+H191 -> 72583 | I192: =H192/$H$1*100 -> 84.83683202 | K192: Motif:Gypsy-8_SCH-I | L192: 29 | M192: =L192+M191 -> 74362 | N192: =M192/$M$1*100 -> 89.06802094 | P192: Motif:TE-5_CGi | Q192: 52 | R192: =Q192+R191 -> 41554 | S192: =R192/$R$1*100 -> 74.87072305 | U192: Motif:EnSpm-1_TA | V192: 26 | W192: =V192+W191 -> 26046 | X192: =W192/$W$1*100 -> 82.68571429 | Z192: Motif:Gypsy37-I_AG | AA192: 29 | AB192: =AA192+AB191 -> 67380 | AC192: =AB192/$AB$1*100 -> 95.39855585 | AE192: Motif:Gypsy-6_AEc-LTR | AF192: 4 | AG192: =AF192+AG191 -> 4636 | AH192: =AG192/$AG$1*100 -> 88.98272553 | AJ192: Motif:L1-2_VC | AK192: 2 | AL192: =AK192+AL191 -> 3076 | AM192: =AL192/$AL$1*100 -> 91.54761905 | AO192: Motif:LTR1A2_ML | AP192: 3 | AQ192: =AP192+AQ191 -> 1517 | AR192: =AQ192/$AQ$1*100 -> 59.30414386 | AT192: Motif:Copia-42_SB-I | AU192: 2 | AV192: =AU192+AV191 -> 1044 | AW192: =AV192/$AV$1*100 -> 71.02040816
A193: Motif:tRNA-Val-GTA | B193: 7 | C193: =B193+C192 -> 10465 | D193: =C193/$C$1*100 -> 87.51463455 | F193: Motif:DNA8-10_DR | G193: 68 | H193: =G193+H192 -> 72651 | I193: =H193/$H$1*100 -> 84.91631212 | K193: Motif:ERV1-N7-I_DR | L193: 29 | M193: =L193+M192 -> 74391 | N193: =M193/$M$1*100 -> 89.10275605 | P193: Motif:LTR42_MD | Q193: 52 | R193: =Q193+R192 -> 41606 | S193: =R193/$R$1*100 -> 74.96441506 | U193: Motif:DNA-8-5_DR | V193: 26 | W193: =V193+W192 -> 26072 | X193: =W193/$W$1*100 -> 82.76825397 | Z193: Motif:Gypsy-1_CMe-LTR | AA193: 29 | AB193: =AA193+AB192 -> 67409 | AC193: =AB193/$AB$1*100 -> 95.43961489 | AE193: Motif:Gypsy37-I_AG | AF193: 4 | AG193: =AF193+AG192 -> 4640 | AH193: =AG193/$AG$1*100 -> 89.05950096 | AJ193: Motif:L1-20b_Lch | AK193: 2 | AL193: =AK193+AL192 -> 3078 | AM193: =AL193/$AL$1*100 -> 91.60714286 | AO193: Motif:L2_AC_2 | AP193: 3 | AQ193: =AP193+AQ192 -> 1520 | AR193: =AQ193/$AQ$1*100 -> 59.42142299 | AT193: Motif:CLOUD-7 | AU193: 2 | AV193: =AU193+AV192 -> 1046 | AW193: =AV193/$AV$1*100 -> 71.15646259
A194: Motif:tRNA-Ser-TCG | B194: 7 | C194: =B194+C193 -> 10472 | D194: =C194/$C$1*100 -> 87.57317277 | F194: Motif:Helitron-1_DR | G194: 67 | H194: =G194+H193 -> 72718 | I194: =H194/$H$1*100 -> 84.9946234 | K194: Motif:EnSpm-N14_DR | L194: 29 | M194: =L194+M193 -> 74420 | N194: =M194/$M$1*100 -> 89.13749117 | P194: Motif:LSU-rRNA_Hca | Q194: 52 | R194: =Q194+R193 -> 41658 | S194: =R194/$R$1*100 -> 75.05810706 | U194: Motif:L1A-2_MD | V194: 25 | W194: =V194+W193 -> 26097 | X194: =W194/$W$1*100 -> 82.84761905 | Z194: Motif:DNA-11_CGi | AA194: 29 | AB194: =AA194+AB193 -> 67438 | AC194: =AB194/$AB$1*100 -> 95.48067393 | AE194: Motif:Gypsy-32_ADe-I | AF194: 4 | AG194: =AF194+AG193 -> 4644 | AH194: =AG194/$AG$1*100 -> 89.13627639 | AJ194: Motif:Kolobok-N1_AEc | AK194: 2 | AL194: =AK194+AL193 -> 3080 | AM194: =AL194/$AL$1*100 -> 91.66666667 | AO194: Motif:L1Hylob | AP194: 3 | AQ194: =AP194+AQ193 -> 1523 | AR194: =AQ194/$AQ$1*100 -> 59.53870211 | AT194: Motif:BHIKHARI-5-I_DR | AU194: 2 | AV194: =AU194+AV193 -> 1048 | AW194: =AV194/$AV$1*100 -> 71.29251701
A195: Motif:TDR13 | B195: 7 | C195: =B195+C194 -> 10479 | D195: =C195/$C$1*100 -> 87.63171099 | F195: Motif:EnSpm-1_TA | G195: 67 | H195: =G195+H194 -> 72785 | I195: =H195/$H$1*100 -> 85.07293469 | K195: Motif:Mariner-N13_HSal | L195: 28 | M195: =L195+M194 -> 74448 | N195: =M195/$M$1*100 -> 89.17102852 | P195: Motif:Mariner-79B_HSal | Q195: 51 | R195: =Q195+R194 -> 41709 | S195: =R195/$R$1*100 -> 75.1499973 | U195: Motif:tRNA-Gln-CAA | V195: 24 | W195: =V195+W194 -> 26121 | X195: =W195/$W$1*100 -> 82.92380952 | Z195: Motif:CACTA-1_CapOwc | AA195: 29 | AB195: =AA195+AB194 -> 67467 | AC195: =AB195/$AB$1*100 -> 95.52173297 | AE195: Motif:EnSpm-N13_DR | AF195: 4 | AG195: =AF195+AG194 -> 4648 | AH195: =AG195/$AG$1*100 -> 89.21305182 | AJ195: Motif:Jockey-3_DPer | AK195: 2 | AL195: =AK195+AL194 -> 3082 | AM195: =AL195/$AL$1*100 -> 91.72619048 | AO195: Motif:Jockey-3_DGri | AP195: 3 | AQ195: =AP195+AQ194 -> 1526 | AR195: =AQ195/$AQ$1*100 -> 59.65598124 | AT195: Motif:Waldo-3_AAe | AU195: 1 | AV195: =AU195+AV194 -> 1049 | AW195: =AV195/$AV$1*100 -> 71.36054422
A196: Motif:SSU-rRNA_Ath | B196: 7 | C196: =B196+C195 -> 10486 | D196: =C196/$C$1*100 -> 87.69024921 | F196: Motif:Daphne-73_HMa | G196: 67 | H196: =G196+H195 -> 72852 | I196: =H196/$H$1*100 -> 85.15124597 | K196: Motif:EnSpm-7_HM | L196: 28 | M196: =L196+M195 -> 74476 | N196: =M196/$M$1*100 -> 89.20456587 | P196: Motif:Chapaev-1_AA | Q196: 51 | R196: =Q196+R195 -> 41760 | S196: =R196/$R$1*100 -> 75.24188753 | U196: Motif:RLTR21 | V196: 24 | W196: =V196+W195 -> 26145 | X196: =W196/$W$1*100 -> 83 | Z196: Motif:BEL-30_CQ-LTR | AA196: 29 | AB196: =AA196+AB195 -> 67496 | AC196: =AB196/$AB$1*100 -> 95.56279201 | AE196: Motif:Dada-tL_DR | AF196: 4 | AG196: =AF196+AG195 -> 4652 | AH196: =AG196/$AG$1*100 -> 89.28982726 | AJ196: Motif:Jockey-2_DEu | AK196: 2 | AL196: =AK196+AL195 -> 3084 | AM196: =AL196/$AL$1*100 -> 91.78571429 | AO196: Motif:Helitron-5_CGi | AP196: 3 | AQ196: =AP196+AQ195 -> 1529 | AR196: =AQ196/$AQ$1*100 -> 59.77326036 | AT196: Motif:Vingi-1_PMa | AU196: 1 | AV196: =AU196+AV195 -> 1050 | AW196: =AV196/$AV$1*100 -> 71.42857143
A197: Motif:RLTR20C2_MM | B197: 7 | C197: =B197+C196 -> 10493 | D197: =C197/$C$1*100 -> 87.74878742 | F197: Motif:Zisupton-1_DR | G197: 66 | H197: =G197+H196 -> 72918 | I197: =H197/$H$1*100 -> 85.22838842 | K197: Motif:Sm1 | L197: 27 | M197: =L197+M196 -> 74503 | N197: =M197/$M$1*100 -> 89.23690546 | P197: Motif:TE-2_XT | Q197: 50 | R197: =Q197+R196 -> 41810 | S197: =R197/$R$1*100 -> 75.331976 | U197: Motif:Polinton-1_PBa | V197: 24 | W197: =V197+W196 -> 26169 | X197: =W197/$W$1*100 -> 83.07619048 | Z197: Motif:MSAT_MG | AA197: 28 | AB197: =AA197+AB196 -> 67524 | AC197: =AB197/$AB$1*100 -> 95.60243523 | AE197: Motif:CryptonV-2_DR | AF197: 4 | AG197: =AF197+AG196 -> 4656 | AH197: =AG197/$AG$1*100 -> 89.36660269 | AJ197: Motif:IS3EU-N1_CGi | AK197: 2 | AL197: =AK197+AL196 -> 3086 | AM197: =AL197/$AL$1*100 -> 91.8452381 | AO197: Motif:Helitron-3_ZM | AP197: 3 | AQ197: =AP197+AQ196 -> 1532 | AR197: =AQ197/$AQ$1*100 -> 59.89053948 | AT197: Motif:Ves2_ML | AU197: 1 | AV197: =AU197+AV196 -> 1051 | AW197: =AV197/$AV$1*100 -> 71.49659864
A198: Motif:RLTR17B_Mm | B198: 7 | C198: =B198+C197 -> 10500 | D198: =C198/$C$1*100 -> 87.80732564 | F198: Motif:piggyBac-N5_DR | G198: 66 | H198: =G198+H197 -> 72984 | I198: =H198/$H$1*100 -> 85.30553088 | K198: Motif:Polinton-1_HM | L198: 27 | M198: =L198+M197 -> 74530 | N198: =M198/$M$1*100 -> 89.26924505 | P198: Motif:TRAS1 | Q198: 49 | R198: =Q198+R197 -> 41859 | S198: =R198/$R$1*100 -> 75.4202627 | U198: Motif:P-1_LHu | V198: 24 | W198: =V198+W197 -> 26193 | X198: =W198/$W$1*100 -> 83.15238095 | Z198: Motif:DNA6-4_DR | AA198: 28 | AB198: =AA198+AB197 -> 67552 | AC198: =AB198/$AB$1*100 -> 95.64207844 | AE198: Motif:Copia-75_Mad-LTR | AF198: 4 | AG198: =AF198+AG197 -> 4660 | AH198: =AG198/$AG$1*100 -> 89.44337812 | AJ198: Motif:I-7B_AAe | AK198: 2 | AL198: =AK198+AL197 -> 3088 | AM198: =AL198/$AL$1*100 -> 91.9047619 | AO198: Motif:hAT-N53_DR | AP198: 3 | AQ198: =AP198+AQ197 -> 1535 | AR198: =AQ198/$AQ$1*100 -> 60.00781861 | AT198: Motif:Ves2B_ML | AU198: 1 | AV198: =AU198+AV197 -> 1052 | AW198: =AV198/$AV$1*100 -> 71.56462585
A199: Motif:Mariner-29_AEc | B199: 7 | C199: =B199+C198 -> 10507 | D199: =C199/$C$1*100 -> 87.86586386 | F199: Motif:Gypsy-14_RP-I | G199: 66 | H199: =G199+H198 -> 73050 | I199: =H199/$H$1*100 -> 85.38267334 | K199: Motif:Kolobok-2_AP | L199: 27 | M199: =L199+M198 -> 74557 | N199: =M199/$M$1*100 -> 89.30158464 | P199: Motif:EnSpm-N14_DR | Q199: 49 | R199: =Q199+R198 -> 41908 | S199: =R199/$R$1*100 -> 75.5085494 | U199: Motif:DIRS-4_DR | V199: 24 | W199: =V199+W198 -> 26217 | X199: =W199/$W$1*100 -> 83.22857143 | Z199: Motif:DNA4-24_CGi | AA199: 28 | AB199: =AA199+AB198 -> 67580 | AC199: =AB199/$AB$1*100 -> 95.68172165 | AE199: Motif:Copia16-NVi_I-int | AF199: 4 | AG199: =AF199+AG198 -> 4664 | AH199: =AG199/$AG$1*100 -> 89.52015355 | AJ199: Motif:Helitron-N35_CGi | AK199: 2 | AL199: =AK199+AL198 -> 3090 | AM199: =AL199/$AL$1*100 -> 91.96428571 | AO199: Motif:Gypsy-95_AA-I | AP199: 3 | AQ199: =AP199+AQ198 -> 1538 | AR199: =AQ199/$AQ$1*100 -> 60.12509773 | AT199: Motif:U2 | AU199: 1 | AV199: =AU199+AV198 -> 1053 | AW199: =AV199/$AV$1*100 -> 71.63265306
A200: Motif:Mariner-17_AEc | B200: 7 | C200: =B200+C199 -> 10514 | D200: =C200/$C$1*100 -> 87.92440207 | F200: Motif:Gypsy120-LTR_DR | G200: 66 | H200: =G200+H199 -> 73116 | I200: =H200/$H$1*100 -> 85.45981579 | K200: Motif:Helitron-N1_PBa | L200: 27 | M200: =L200+M199 -> 74584 | N200: =M200/$M$1*100 -> 89.33392423 | P200: Motif:P-27_HM | Q200: 48 | R200: =Q200+R199 -> 41956 | S200: =R200/$R$1*100 -> 75.59503432 | U200: Motif:RMER12 | V200: 23 | W200: =V200+W199 -> 26240 | X200: =W200/$W$1*100 -> 83.3015873 | Z200: Motif:CATCH2LTR_DR | AA200: 28 | AB200: =AA200+AB199 -> 67608 | AC200: =AB200/$AB$1*100 -> 95.72136486 | AE200: Motif:CACTA-1_CapOwc | AF200: 4 | AG200: =AF200+AG199 -> 4668 | AH200: =AG200/$AG$1*100 -> 89.59692898 | AJ200: Motif:Helitron-N1_HSal | AK200: 2 | AL200: =AK200+AL199 -> 3092 | AM200: =AL200/$AL$1*100 -> 92.02380952 | AO200: Motif:Gypsy-93_GM-I | AP200: 3 | AQ200: =AP200+AQ199 -> 1541 | AR200: =AQ200/$AQ$1*100 -> 60.24237686 | AT200: Motif:Tx1-34_DR | AU200: 1 | AV200: =AU200+AV199 -> 1054 | AW200: =AV200/$AV$1*100 -> 71.70068027
... 3406 more rows
